Body Name,Transaction Number,Account Code Description,Expenses Type,Service Code,Service Area Categorisation,Supplier Name,Date,Amount
Bath and North East Somerset Council,10892128,LM1,Volunt Homes Placements Top/Up,P12,Children & Young People,KEYS  EDUCATION & CARE LTD,30/11/2017,6149.99
Bath and North East Somerset Council,10892129,LM1,Volunt Homes Placements Top/Up,P12,Children & Young People,KEYS  EDUCATION & CARE LTD,31/12/2017,27235.67
Bath and North East Somerset Council,10896741,LL8,Individualised Budget,P11,"Adult Care, Health & Wellbeing",REDACTED,01/10/2018,2304.09
Bath and North East Somerset Council,10895693,LM3,Residential Care,P11,"Adult Care, Health & Wellbeing",CAMBIAN AUTISM SERVICES LTD,26/11/2018,26577.79
Bath and North East Somerset Council,10897399,LL8,Individualised Budget,P11,"Adult Care, Health & Wellbeing",REDACTED,26/11/2018,1774.61
Bath and North East Somerset Council,10895682,LM6,Nursing Care,P11,"Adult Care, Health & Wellbeing",PORTHAVEN CARE HOMES LTD,20/12/2018,8580.00
Bath and North East Somerset Council,80819180,LM2,Foster Carer Allowances,P12,Children & Young People,REDACTED,02/01/2019,75.00
Bath and North East Somerset Council,80819180,LM2,Foster Carer Allowances,P12,Children & Young People,REDACTED,02/01/2019,125.00
Bath and North East Somerset Council,80819222,LM2,Foster Carer Allowances,P12,Children & Young People,REDACTED,02/01/2019,150.00
Bath and North East Somerset Council,80819222,LM2,Foster Carer Allowances,P12,Children & Young People,REDACTED,02/01/2019,150.00
Bath and North East Somerset Council,80819199,LM2,Foster Carer Allowances,P12,Children & Young People,REDACTED,02/01/2019,150.00
Bath and North East Somerset Council,80819199,LM2,Foster Carer Allowances,P12,Children & Young People,REDACTED,02/01/2019,150.00
Bath and North East Somerset Council,80819173,LM2,Foster Carer Allowances,P12,Children & Young People,REDACTED,02/01/2019,150.00
Bath and North East Somerset Council,80819173,LM2,Foster Carer Allowances,P12,Children & Young People,REDACTED,02/01/2019,150.00
Bath and North East Somerset Council,80819208,LM2,Foster Carer Allowances,P12,Children & Young People,REDACTED,02/01/2019,171.43
Bath and North East Somerset Council,80819195,LM2,Foster Carer Allowances,P12,Children & Young People,REDACTED,02/01/2019,250.00
Bath and North East Somerset Council,80819199,LM2,Foster Carer Allowances,P12,Children & Young People,REDACTED,02/01/2019,250.00
Bath and North East Somerset Council,80819199,LM2,Foster Carer Allowances,P12,Children & Young People,REDACTED,02/01/2019,250.00
Bath and North East Somerset Council,80819243,LL7,Residence Orders,P12,Children & Young People,REDACTED,02/01/2019,255.94
Bath and North East Somerset Council,80819243,LL7,Residence Orders,P12,Children & Young People,REDACTED,02/01/2019,255.94
Bath and North East Somerset Council,80819180,LM2,Foster Carer Allowances,P12,Children & Young People,REDACTED,02/01/2019,256.61
Bath and North East Somerset Council,80819222,LM2,Foster Carer Allowances,P12,Children & Young People,REDACTED,02/01/2019,297.52
Bath and North East Somerset Council,80819195,LM2,Foster Carer Allowances,P12,Children & Young People,REDACTED,02/01/2019,297.52
Bath and North East Somerset Council,80819173,LM2,Foster Carer Allowances,P12,Children & Young People,REDACTED,02/01/2019,297.52
Bath and North East Somerset Council,80819180,LL9,Special Guardianship,P12,Children & Young People,REDACTED,02/01/2019,316.21
Bath and North East Somerset Council,80819208,LM2,Foster Carer Allowances,P12,Children & Young People,REDACTED,02/01/2019,340.02
Bath and North East Somerset Council,80819222,LM2,Foster Carer Allowances,P12,Children & Young People,REDACTED,02/01/2019,421.88
Bath and North East Somerset Council,80819195,LM2,Foster Carer Allowances,P12,Children & Young People,REDACTED,02/01/2019,421.88
Bath and North East Somerset Council,80819199,LM2,Foster Carer Allowances,P12,Children & Young People,REDACTED,02/01/2019,421.88
Bath and North East Somerset Council,80819170,PG1,Rent Allowances,P10,Finance & Efficiency,CURO,02/01/2019,500.00
Bath and North East Somerset Council,80819213,LM2,Foster Carer Allowances,P12,Children & Young People,REDACTED,02/01/2019,513.22
Bath and North East Somerset Council,80819199,LM2,Foster Carer Allowances,P12,Children & Young People,REDACTED,02/01/2019,513.22
Bath and North East Somerset Council,80819143,KE2,Payment to Parents/Students,P12,Children & Young People,REDACTED,02/01/2019,551.00
Bath and North East Somerset Council,80819128,KE2,Payment to Parents/Students,P12,Children & Young People,REDACTED,02/01/2019,554.40
Bath and North East Somerset Council,80819115,KE2,Payment to Parents/Students,P12,Children & Young People,REDACTED,02/01/2019,558.00
Bath and North East Somerset Council,80819137,KE2,Payment to Parents/Students,P12,Children & Young People,REDACTED,02/01/2019,558.00
Bath and North East Somerset Council,80819130,KE2,Payment to Parents/Students,P12,Children & Young People,REDACTED,02/01/2019,564.00
Bath and North East Somerset Council,10891552,LL1,Services to/for Clients,P12,Children & Young People,CURO,02/01/2019,581.08
Bath and North East Somerset Council,80819110,KE2,Payment to Parents/Students,P12,Children & Young People,REDACTED,02/01/2019,627.00
Bath and North East Somerset Council,80819250,LL9,Special Guardianship,P12,Children & Young People,REDACTED,02/01/2019,701.30
Bath and North East Somerset Council,10892098,KB1,Hire of Vehicles,P15,Development & Neighbourhoods,ROBERTS (BATH) LTD,02/01/2019,718.50
Bath and North East Somerset Council,80819171,PG1,Rent Allowances,P10,Finance & Efficiency,SOVEREIGN HOUSING ASSOCIATION,02/01/2019,725.79
Bath and North East Somerset Council,10891410,LA7,Purchases for Resale,P16,Economic & Community Regeneration,REDCLIFFE PRESS LTD,02/01/2019,750.00
Bath and North East Somerset Council,80819132,KE2,Payment to Parents/Students,P12,Children & Young People,REDACTED,02/01/2019,762.00
Bath and North East Somerset Council,80819111,KE2,Payment to Parents/Students,P12,Children & Young People,REDACTED,02/01/2019,791.66
Bath and North East Somerset Council,80819174,LM2,Foster Carer Allowances,P12,Children & Young People,REDACTED,02/01/2019,826.00
Bath and North East Somerset Council,80819114,KE2,Payment to Parents/Students,P12,Children & Young People,REDACTED,02/01/2019,874.00
Bath and North East Somerset Council,80819189,LM1,Volunt Homes Placements Top/Up,P12,Children & Young People,REDACTED,02/01/2019,913.22
Bath and North East Somerset Council,10891826,KA1,Repairs & Maintenance,P15,Development & Neighbourhoods,T H WHITE LTD,02/01/2019,958.35
Bath and North East Somerset Council,80819168,PG1,Rent Allowances,P10,Finance & Efficiency,CURO,02/01/2019,960.56
Bath and North East Somerset Council,80819116,KE2,Payment to Parents/Students,P12,Children & Young People,REDACTED,02/01/2019,981.67
Bath and North East Somerset Council,80819121,KE2,Payment to Parents/Students,P12,Children & Young People,REDACTED,02/01/2019,994.34
Bath and North East Somerset Council,80819165,PG1,Rent Allowances,P10,Finance & Efficiency,CURO,02/01/2019,1017.18
Bath and North East Somerset Council,80819145,KE2,Payment to Parents/Students,P12,Children & Young People,REDACTED,02/01/2019,1077.00
Bath and North East Somerset Council,10891983,KB1,Hire of Vehicles,P15,Development & Neighbourhoods,LISTER WILDER,02/01/2019,1235.00
Bath and North East Somerset Council,80819120,KE2,Payment to Parents/Students,P12,Children & Young People,REDACTED,02/01/2019,1266.67
Bath and North East Somerset Council,80819138,KE2,Payment to Parents/Students,P12,Children & Young People,REDACTED,02/01/2019,1280.00
Bath and North East Somerset Council,80819142,KE2,Payment to Parents/Students,P12,Children & Young People,REDACTED,02/01/2019,1330.00
Bath and North East Somerset Council,80819147,PG1,Rent Allowances,P10,Finance & Efficiency,CURO,02/01/2019,1350.00
Bath and North East Somerset Council,80819118,KE2,Payment to Parents/Students,P12,Children & Young People,REDACTED,02/01/2019,1400.00
Bath and North East Somerset Council,80819167,PG1,Rent Allowances,P10,Finance & Efficiency,CURO,02/01/2019,1476.44
Bath and North East Somerset Council,80819169,PG1,Rent Allowances,P10,Finance & Efficiency,CURO,02/01/2019,1500.00
Bath and North East Somerset Council,80819140,KE2,Payment to Parents/Students,P12,Children & Young People,REDACTED,02/01/2019,1545.34
Bath and North East Somerset Council,80819117,KE2,Payment to Parents/Students,P12,Children & Young People,REDACTED,02/01/2019,1800.00
Bath and North East Somerset Council,80819112,KE2,Payment to Parents/Students,P12,Children & Young People,REDACTED,02/01/2019,1836.67
Bath and North East Somerset Council,80819119,KE2,Payment to Parents/Students,P12,Children & Young People,REDACTED,02/01/2019,2153.00
Bath and North East Somerset Council,80819124,KE2,Payment to Parents/Students,P12,Children & Young People,REDACTED,02/01/2019,2310.00
Bath and North East Somerset Council,10891712,LF1,Printing/Design,P18,Transport & Environment,LIBERTY PRINTERS (AR & RF REDDIN) LIMITED,02/01/2019,2406.00
Bath and North East Somerset Council,80817018,LL8,Individualised Budget,P11,"Adult Care, Health & Wellbeing",REDACTED,02/01/2019,3836.62
Bath and North East Somerset Council,10891939,LV2,Contributions to Organisations,P16,Economic & Community Regeneration,AVON WILDLIFE TRUST,02/01/2019,5000.00
Bath and North East Somerset Council,10891442,LL3,Supported Living,P16,Economic & Community Regeneration,AVON & WILTS MENTAL HEALTH PARTNERSHIP,02/01/2019,33080.00
Bath and North East Somerset Council,10892106,LM1,Volunt Homes Placements Top/Up,P12,Children & Young People,AURORA CARE AND EDUCATION OPCO LTD,02/01/2019,52682.33
Bath and North East Somerset Council,10892115,LM1,Volunt Homes Placements Top/Up,P12,Children & Young People,AURORA CARE AND EDUCATION OPCO LTD,02/01/2019,55460.94
Bath and North East Somerset Council,10892114,LM1,Volunt Homes Placements Top/Up,P12,Children & Young People,AURORA CARE AND EDUCATION OPCO LTD,02/01/2019,69441.84
Bath and North East Somerset Council,10892116,LM1,Volunt Homes Placements Top/Up,P12,Children & Young People,AURORA CARE AND EDUCATION OPCO LTD,02/01/2019,70830.67
Bath and North East Somerset Council,10891481,LG9,OT Equipment,P12,Children & Young People,VIRGIN CARE SERVICES LTD,02/01/2019,81057.28
Bath and North East Somerset Council,10892102,LM1,Volunt Homes Placements Top/Up,P12,Children & Young People,AURORA CARE AND EDUCATION OPCO LTD,02/01/2019,85000.00
Bath and North East Somerset Council,10892123,LM1,Volunt Homes Placements Top/Up,P12,Children & Young People,AURORA CARE AND EDUCATION OPCO LTD,02/01/2019,85000.00
Bath and North East Somerset Council,10891840,LN5,Data Lines,P15,Development & Neighbourhoods,THE NETWORKING PEOPLE,03/01/2019,17.18
Bath and North East Somerset Council,10891840,LN5,Data Lines,P16,Economic & Community Regeneration,THE NETWORKING PEOPLE,03/01/2019,30.64
Bath and North East Somerset Council,10891840,LN5,Data Lines,P10,Finance & Efficiency,THE NETWORKING PEOPLE,03/01/2019,30.64
Bath and North East Somerset Council,10891840,LN5,Data Lines,P10,Finance & Efficiency,THE NETWORKING PEOPLE,03/01/2019,47.82
Bath and North East Somerset Council,10892197,KA2,Running Costs,P15,Development & Neighbourhoods,HAKO MACHINES LTD,03/01/2019,50.00
Bath and North East Somerset Council,10891594,LA3,Equipment Maintenance,P18,Transport & Environment,METRIC GROUP LIMITED,03/01/2019,90.20
Bath and North East Somerset Council,10891594,LA3,Equipment Maintenance,P18,Transport & Environment,METRIC GROUP LIMITED,03/01/2019,91.20
Bath and North East Somerset Council,10891594,LA3,Equipment Maintenance,P18,Transport & Environment,METRIC GROUP LIMITED,03/01/2019,91.20
Bath and North East Somerset Council,10891594,LA3,Equipment Maintenance,P18,Transport & Environment,METRIC GROUP LIMITED,03/01/2019,91.20
Bath and North East Somerset Council,10892130,EA1,Training,P15,Development & Neighbourhoods,DH PEOPLE PLUS LTD,03/01/2019,105.00
Bath and North East Somerset Council,10891594,LA3,Equipment Maintenance,P18,Transport & Environment,METRIC GROUP LIMITED,03/01/2019,182.26
Bath and North East Somerset Council,10891594,LA3,Equipment Maintenance,P18,Transport & Environment,METRIC GROUP LIMITED,03/01/2019,182.40
Bath and North East Somerset Council,10891594,LA3,Equipment Maintenance,P18,Transport & Environment,METRIC GROUP LIMITED,03/01/2019,182.40
Bath and North East Somerset Council,10891594,LA3,Equipment Maintenance,P18,Transport & Environment,METRIC GROUP LIMITED,03/01/2019,182.40
Bath and North East Somerset Council,10891594,LA3,Equipment Maintenance,P18,Transport & Environment,METRIC GROUP LIMITED,03/01/2019,273.60
Bath and North East Somerset Council,10891594,LA3,Equipment Maintenance,P18,Transport & Environment,METRIC GROUP LIMITED,03/01/2019,273.60
Bath and North East Somerset Council,10891594,LA3,Equipment Maintenance,P18,Transport & Environment,METRIC GROUP LIMITED,03/01/2019,273.60
Bath and North East Somerset Council,80819262,LL3,Supported Living,P11,"Adult Care, Health & Wellbeing",LIVABILITY,03/01/2019,310.00
Bath and North East Somerset Council,10891594,LA3,Equipment Maintenance,P18,Transport & Environment,METRIC GROUP LIMITED,03/01/2019,327.28
Bath and North East Somerset Council,10891594,LA3,Equipment Maintenance,P18,Transport & Environment,METRIC GROUP LIMITED,03/01/2019,364.80
Bath and North East Somerset Council,10891840,LN5,Data Lines,P10,Finance & Efficiency,THE NETWORKING PEOPLE,03/01/2019,367.47
Bath and North East Somerset Council,10892081,HA1,Responsive Maintenance,P10,Finance & Efficiency,MANNINGS FACILITIES MANAGEMENT LTD,03/01/2019,479.70
Bath and North East Somerset Council,80819325,PG1,Rent Allowances,P10,Finance & Efficiency,GRAINGER RESIDENTIAL MANAGEMENT,03/01/2019,503.12
Bath and North East Somerset Council,80819304,PG1,Rent Allowances,P10,Finance & Efficiency,REDACTED,03/01/2019,507.68
Bath and North East Somerset Council,80819345,PG1,Rent Allowances,P10,Finance & Efficiency,REDACTED,03/01/2019,507.68
Bath and North East Somerset Council,80819300,PG1,Rent Allowances,P10,Finance & Efficiency,REDACTED,03/01/2019,521.52
Bath and North East Somerset Council,10891992,HA1,Responsive Maintenance,P10,Finance & Efficiency,MANNINGS FACILITIES MANAGEMENT LTD,03/01/2019,523.98
Bath and North East Somerset Council,80819305,PG1,Rent Allowances,P10,Finance & Efficiency,THE BATH PROPERTY SHOP,03/01/2019,526.16
Bath and North East Somerset Council,10892178,LJ1,Consultants Fees,P11,"Adult Care, Health & Wellbeing",NATIONAL SCHIZOPHRENIA F/SHIP RC271028,03/01/2019,540.80
Bath and North East Somerset Council,80819324,PG1,Rent Allowances,P10,Finance & Efficiency,REDACTED,03/01/2019,542.21
Bath and North East Somerset Council,80819320,PG1,Rent Allowances,P10,Finance & Efficiency,REDACTED,03/01/2019,542.96
Bath and North East Somerset Council,80819310,PG1,Rent Allowances,P10,Finance & Efficiency,REDACTED,03/01/2019,546.36
Bath and North East Somerset Council,10891594,LA3,Equipment Maintenance,P18,Transport & Environment,METRIC GROUP LIMITED,03/01/2019,547.20
Bath and North East Somerset Council,80819308,PG1,Rent Allowances,P10,Finance & Efficiency,REDACTED,03/01/2019,549.24
Bath and North East Somerset Council,10892154,LM2,Foster Carer Allowances,P12,Children & Young People,CAPSTONE FOSTER CARE (SOUTH WEST)  LTD,03/01/2019,552.16
Bath and North East Somerset Council,80819278,PG1,Rent Allowances,P10,Finance & Efficiency,REDACTED,03/01/2019,553.84
Bath and North East Somerset Council,80819301,PG1,Rent Allowances,P10,Finance & Efficiency,REDACTED,03/01/2019,558.48
Bath and North East Somerset Council,80819313,PG1,Rent Allowances,P10,Finance & Efficiency,REDACTED,03/01/2019,559.24
Bath and North East Somerset Council,80819288,PG1,Rent Allowances,P10,Finance & Efficiency,Y.M.C.A.,03/01/2019,574.36
Bath and North East Somerset Council,10892130,EA1,Training,P15,Development & Neighbourhoods,DH PEOPLE PLUS LTD,03/01/2019,585.00
Bath and North East Somerset Council,10892151,3F7,PCB External Fees,P16,Economic & Community Regeneration,ANDY WALLIS WATER ENGINEERING LTD,03/01/2019,600.00
Bath and North East Somerset Council,10892198,LA5,Materials,P15,Development & Neighbourhoods,NEW PIG LTD,03/01/2019,605.40
Bath and North East Somerset Council,80819326,PG1,Rent Allowances,P10,Finance & Efficiency,REDACTED,03/01/2019,620.04
Bath and North East Somerset Council,80819334,PG1,Rent Allowances,P10,Finance & Efficiency,REDACTED,03/01/2019,623.08
Bath and North East Somerset Council,80819336,PG1,Rent Allowances,P10,Finance & Efficiency,REDACTED,03/01/2019,623.08
Bath and North East Somerset Council,80819316,PG1,Rent Allowances,P10,Finance & Efficiency,CENTRIX PROPERTIES LTD,03/01/2019,625.12
Bath and North East Somerset Council,80819274,PG1,Rent Allowances,P10,Finance & Efficiency,REDACTED,03/01/2019,627.12
Bath and North East Somerset Council,10891594,LA3,Equipment Maintenance,P18,Transport & Environment,METRIC GROUP LIMITED,03/01/2019,638.40
Bath and North East Somerset Council,80819342,PG1,Rent Allowances,P10,Finance & Efficiency,REDACTED,03/01/2019,646.16
Bath and North East Somerset Council,10892136,3E5,PCB IT Hardware,P16,Economic & Community Regeneration,PINACL SOLUTIONS UK LTD,03/01/2019,650.00
Bath and North East Somerset Council,10891996,HA1,Responsive Maintenance,P10,Finance & Efficiency,MANNINGS FACILITIES MANAGEMENT LTD,03/01/2019,650.98
Bath and North East Somerset Council,80819289,PG1,Rent Allowances,P10,Finance & Efficiency,HML PROPERTY MANAGEMENT,03/01/2019,668.92
Bath and North East Somerset Council,80819323,PG1,Rent Allowances,P10,Finance & Efficiency,REDACTED,03/01/2019,668.92
Bath and North East Somerset Council,10892033,HA1,Responsive Maintenance,P10,Finance & Efficiency,MANNINGS FACILITIES MANAGEMENT LTD,03/01/2019,678.36
Bath and North East Somerset Council,10892105,HA3,Planned Maintenance,P15,Development & Neighbourhoods,WESSEX WATER ENTERPRISES,03/01/2019,687.08
Bath and North East Somerset Council,10892140,3E5,PCB IT Hardware,P16,Economic & Community Regeneration,PINACL SOLUTIONS UK LTD,03/01/2019,690.00
Bath and North East Somerset Council,10892074,HA1,Responsive Maintenance,P10,Finance & Efficiency,MANNINGS FACILITIES MANAGEMENT LTD,03/01/2019,692.16
Bath and North East Somerset Council,80819346,PG1,Rent Allowances,P10,Finance & Efficiency,REDACTED,03/01/2019,703.84
Bath and North East Somerset Council,10892212,LJ4,Contracts,P11,"Adult Care, Health & Wellbeing",GREAT WESTERN HOSPITALS NHS FOUNDATION TRUST,03/01/2019,724.17
Bath and North East Somerset Council,80819261,LM8,Home Care,P11,"Adult Care, Health & Wellbeing",DIVINE HEALTHCARE BUSINESS SOLUTIONS LTD,03/01/2019,734.00
Bath and North East Somerset Council,80819328,PG1,Rent Allowances,P10,Finance & Efficiency,REDACTED,03/01/2019,737.56
Bath and North East Somerset Council,80819348,PG1,Rent Allowances,P10,Finance & Efficiency,REDACTED,03/01/2019,745.76
Bath and North East Somerset Council,80819286,PG1,Rent Allowances,P10,Finance & Efficiency,REDACTED,03/01/2019,754.12
Bath and North East Somerset Council,80819344,PG1,Rent Allowances,P10,Finance & Efficiency,REDACTED,03/01/2019,761.52
Bath and North East Somerset Council,80819331,PG1,Rent Allowances,P10,Finance & Efficiency,REDACTED,03/01/2019,761.72
Bath and North East Somerset Council,10892176,LA3,Equipment Maintenance,P18,Transport & Environment,PARKEON LIMITED,03/01/2019,768.75
Bath and North East Somerset Council,10892014,HA1,Responsive Maintenance,P10,Finance & Efficiency,MANNINGS FACILITIES MANAGEMENT LTD,03/01/2019,775.36
Bath and North East Somerset Council,80819257,LM9,Day Care,P11,"Adult Care, Health & Wellbeing",CARE FUTURES,03/01/2019,776.09
Bath and North East Somerset Council,80819341,PG1,Rent Allowances,P10,Finance & Efficiency,REDACTED,03/01/2019,784.64
Bath and North East Somerset Council,10892163,3F7,PCB External Fees,P16,Economic & Community Regeneration,MDA CONSULTING LTD,03/01/2019,843.75
Bath and North East Somerset Council,80819293,PG1,Rent Allowances,P10,Finance & Efficiency,THE GUINNESS PARTNERSHIP,03/01/2019,847.23
Bath and North East Somerset Council,10892072,HA1,Responsive Maintenance,P15,Development & Neighbourhoods,MANNINGS FACILITIES MANAGEMENT LTD,03/01/2019,877.31
Bath and North East Somerset Council,80819352,PG1,Rent Allowances,P10,Finance & Efficiency,RESIDE HOUSING ASSOCIATION,03/01/2019,879.76
Bath and North East Somerset Council,10892068,HA1,Responsive Maintenance,P10,Finance & Efficiency,MANNINGS FACILITIES MANAGEMENT LTD,03/01/2019,881.25
Bath and North East Somerset Council,80819354,PG1,Rent Allowances,P10,Finance & Efficiency,REDACTED,03/01/2019,934.46
Bath and North East Somerset Council,10892207,LJ4,Contracts,P12,Children & Young People,SIGNIS LTD,03/01/2019,937.50
Bath and North East Somerset Council,10892182,HP1,Rent Payable,P18,Transport & Environment,BREA AVALON LLP,03/01/2019,996.70
Bath and North East Somerset Council,80819353,PG1,Rent Allowances,P10,Finance & Efficiency,ARCH CARE SERVICES LTD,03/01/2019,1000.00
Bath and North East Somerset Council,80819294,PG1,Rent Allowances,P10,Finance & Efficiency,SANCTUARY HOUSING SERVICES LIMIT,03/01/2019,1026.48
Bath and North East Somerset Council,10892053,HA1,Responsive Maintenance,P10,Finance & Efficiency,MANNINGS FACILITIES MANAGEMENT LTD,03/01/2019,1073.39
Bath and North East Somerset Council,80819297,PG1,Rent Allowances,P10,Finance & Efficiency,BARONS PROPERTY AGENTS,03/01/2019,1119.00
Bath and North East Somerset Council,80819350,PG1,Rent Allowances,P10,Finance & Efficiency,REDACTED,03/01/2019,1163.08
Bath and North East Somerset Council,80819319,PG1,Rent Allowances,P10,Finance & Efficiency,TRUSTEASE PROPERTY MANAGEMENT LT,03/01/2019,1192.76
Bath and North East Somerset Council,10892197,KA2,Running Costs,P15,Development & Neighbourhoods,HAKO MACHINES LTD,03/01/2019,1260.00
Bath and North East Somerset Council,10892149,KE3,Transport & Travel,P10,Finance & Efficiency,CLICK TRAVEL LTD,03/01/2019,1331.14
Bath and North East Somerset Council,10892195,KA1,Repairs & Maintenance,P15,Development & Neighbourhoods,FINNING (UK) LTD,03/01/2019,1332.00
Bath and North East Somerset Council,10884962,HP8,Service Charges,P10,Finance & Efficiency,BMO REP CLIENT ACCOUNT RE RSA COLLECTIONS A/C,03/01/2019,1354.00
Bath and North East Somerset Council,80819257,LM9,Day Care,P11,"Adult Care, Health & Wellbeing",CARE FUTURES,03/01/2019,1363.53
Bath and North East Somerset Council,10891594,LA3,Equipment Maintenance,P18,Transport & Environment,METRIC GROUP LIMITED,03/01/2019,1368.00
Bath and North East Somerset Council,10891840,LN5,Data Lines,P10,Finance & Efficiency,THE NETWORKING PEOPLE,03/01/2019,1410.58
Bath and North East Somerset Council,80819291,PG1,Rent Allowances,P10,Finance & Efficiency,REDACTED,03/01/2019,1460.77
Bath and North East Somerset Council,80819299,PG1,Rent Allowances,P10,Finance & Efficiency,ANCHOR HANOVER GROUP,03/01/2019,1495.92
Bath and North East Somerset Council,10892220,LJ4,Contracts,P18,Transport & Environment,BBFI LTD,03/01/2019,1600.00
Bath and North East Somerset Council,10891840,LN5,Data Lines,P10,Finance & Efficiency,THE NETWORKING PEOPLE,03/01/2019,1715.65
Bath and North East Somerset Council,80819327,PG1,Rent Allowances,P10,Finance & Efficiency,P.E.O.P.L.E.,03/01/2019,1804.80
Bath and North East Somerset Council,10892077,HP8,Service Charges,P10,Finance & Efficiency,BMO REP CLIENT ACCOUNT RE RSA COLLECTIONS A/C,03/01/2019,1870.83
Bath and North East Somerset Council,80819256,LL3,Supported Living,P11,"Adult Care, Health & Wellbeing",UNITED RESPONSE,03/01/2019,2000.32
Bath and North East Somerset Council,10891981,3C4,Building Works,P10,Finance & Efficiency,MANNINGS FACILITIES MANAGEMENT LTD,03/01/2019,2166.83
Bath and North East Somerset Council,10892167,3E5,PCB IT Hardware,P10,Finance & Efficiency,CACI LIMITED,03/01/2019,2250.00
Bath and North East Somerset Council,10892137,3E5,PCB IT Hardware,P16,Economic & Community Regeneration,PINACL SOLUTIONS UK LTD,03/01/2019,2400.00
Bath and North East Somerset Council,10892096,LK1,Fees,P12,Children & Young People,REDACTED,03/01/2019,2533.00
Bath and North East Somerset Council,10892216,LM2,Foster Carer Allowances,P12,Children & Young People,REGIONAL FOSTER PLACEMENTS LTD,03/01/2019,2540.03
Bath and North East Somerset Council,80819347,PG1,Rent Allowances,P10,Finance & Efficiency,NSAH (ALLIANCE HOMES) LIMITED,03/01/2019,2604.40
Bath and North East Somerset Council,10892153,LM2,Foster Carer Allowances,P12,Children & Young People,CAPSTONE FOSTER CARE (SOUTH WEST)  LTD,03/01/2019,2622.76
Bath and North East Somerset Council,80819338,PG1,Rent Allowances,P10,Finance & Efficiency,REDACTED,03/01/2019,2715.68
Bath and North East Somerset Council,80819262,LL3,Supported Living,P11,"Adult Care, Health & Wellbeing",LIVABILITY,03/01/2019,2717.00
Bath and North East Somerset Council,80819333,PG1,Rent Allowances,P10,Finance & Efficiency,ADVANCE HOUSING SUPPORT **DO NOT,03/01/2019,2814.08
Bath and North East Somerset Council,10892138,3E5,PCB IT Hardware,P16,Economic & Community Regeneration,PINACL SOLUTIONS UK LTD,03/01/2019,2824.00
Bath and North East Somerset Council,80819292,PG1,Rent Allowances,P10,Finance & Efficiency,THE GUINNESS PARTNERSHIP,03/01/2019,2849.46
Bath and North East Somerset Council,10891281,LJ4,Contracts,P11,"Adult Care, Health & Wellbeing",AVON LOCAL PHARMACEUTICAL COMMITTEE,03/01/2019,2880.00
Bath and North East Somerset Council,10892190,LM2,Foster Carer Allowances,P12,Children & Young People,NCH ACTION FOR CHILDREN,03/01/2019,2919.89
Bath and North East Somerset Council,10892165,3F7,PCB External Fees,P16,Economic & Community Regeneration,JONES LANG LASALLE LTD,03/01/2019,3000.00
Bath and North East Somerset Council,10892164,LM2,Foster Carer Allowances,P12,Children & Young People,KITES CHILDRENS SERVICES,03/01/2019,3029.01
Bath and North East Somerset Council,10892179,LM2,Foster Carer Allowances,P12,Children & Young People,NCH ACTION FOR CHILDREN,03/01/2019,3050.09
Bath and North East Somerset Council,10892204,LM2,Foster Carer Allowances,P12,Children & Young People,REGIONAL FOSTER PLACEMENTS LTD,03/01/2019,3302.74
Bath and North East Somerset Council,10892181,LJ4,Contracts,P18,Transport & Environment,VIRGIN CARE SERVICES LTD,03/01/2019,3333.33
Bath and North East Somerset Council,80819356,PG1,Rent Allowances,P10,Finance & Efficiency,BATH & DISTRICT LIFE CARE,03/01/2019,3589.80
Bath and North East Somerset Council,10892192,LM2,Foster Carer Allowances,P12,Children & Young People,NCH ACTION FOR CHILDREN,03/01/2019,3660.17
Bath and North East Somerset Council,10892193,LM2,Foster Carer Allowances,P12,Children & Young People,NCH ACTION FOR CHILDREN,03/01/2019,3660.17
Bath and North East Somerset Council,10891995,HA1,Responsive Maintenance,P10,Finance & Efficiency,MANNINGS FACILITIES MANAGEMENT LTD,03/01/2019,3668.00
Bath and North East Somerset Council,10892085,HA1,Responsive Maintenance,P10,Finance & Efficiency,ZETA COMPLIANCE SERVICES LTD,03/01/2019,3910.00
Bath and North East Somerset Council,80819349,PG1,Rent Allowances,P10,Finance & Efficiency,SELWOOD HOUSING SOCIETY LIMITED,03/01/2019,4245.09
Bath and North East Somerset Council,10892147,LP5,Software Support,P10,Finance & Efficiency,TORBAY COUNCIL,03/01/2019,4915.89
Bath and North East Somerset Council,10892149,KE3,Transport & Travel,P10,Finance & Efficiency,CLICK TRAVEL LTD,03/01/2019,4965.24
Bath and North East Somerset Council,10892135,HP1,Rent Payable,P10,Finance & Efficiency,CHEVY MILLS,03/01/2019,5000.00
Bath and North East Somerset Council,10892206,LJ4,Contracts,P12,Children & Young People,SIGNIS LTD,03/01/2019,5125.00
Bath and North East Somerset Council,10892194,LM2,Foster Carer Allowances,P12,Children & Young People,NCH ACTION FOR CHILDREN,03/01/2019,5219.76
Bath and North East Somerset Council,80819260,LM3,Residential Care,P11,"Adult Care, Health & Wellbeing",RUSKIN MILL TRUST LTD,03/01/2019,5288.00
Bath and North East Somerset Council,10892113,HP3,Room Hire Charges,P10,Finance & Efficiency,AQUATERRA LEISURE SERVICES LTD,03/01/2019,5728.05
Bath and North East Somerset Council,10892005,DB1,Agency Staff,P18,Transport & Environment,MOTT MACDONALD LIMITED,03/01/2019,7182.20
Bath and North East Somerset Council,10892097,YF2,Fees & Charges,P18,Transport & Environment,MOGERS SOLICITORS,03/01/2019,8449.09
Bath and North East Somerset Council,80819337,PG1,Rent Allowances,P10,Finance & Efficiency,ASTER COMMUNITIES,03/01/2019,8773.18
Bath and North East Somerset Council,80819298,PG1,Rent Allowances,P10,Finance & Efficiency,LIVEWEST,03/01/2019,9094.67
Bath and North East Somerset Council,10892134,HP1,Rent Payable,P10,Finance & Efficiency,MR WILLATS' CHARITY,03/01/2019,9125.00
Bath and North East Somerset Council,80819358,PG1,Rent Allowances,P10,Finance & Efficiency,CURO,03/01/2019,9473.07
Bath and North East Somerset Council,80819256,LL3,Supported Living,P11,"Adult Care, Health & Wellbeing",UNITED RESPONSE,03/01/2019,9619.48
Bath and North East Somerset Council,10892184,LM2,Foster Carer Allowances,P12,Children & Young People,HEXAGON CARE SERVICES LTD,03/01/2019,12178.57
Bath and North East Somerset Council,10892187,LM2,Foster Carer Allowances,P12,Children & Young People,KITES CHILDRENS SERVICES,03/01/2019,14171.34
Bath and North East Somerset Council,80819287,PG1,Rent Allowances,P10,Finance & Efficiency,LIVEWEST,03/01/2019,18568.00
Bath and North East Somerset Council,10892139,3E5,PCB IT Hardware,P16,Economic & Community Regeneration,PINACL SOLUTIONS UK LTD,03/01/2019,18834.00
Bath and North East Somerset Council,10892148,DB1,Agency Staff,P10,Finance & Efficiency,COMENSURA LTD,03/01/2019,19129.43
Bath and North East Somerset Council,80819314,PG1,Rent Allowances,P10,Finance & Efficiency,LIVEWEST,03/01/2019,19950.57
Bath and North East Somerset Council,10892185,LM2,Foster Carer Allowances,P12,Children & Young People,BRYN MELYN CARE LTD,03/01/2019,21611.43
Bath and North East Somerset Council,80819255,LM8,Home Care,P11,"Adult Care, Health & Wellbeing",WAY AHEAD COMMUNITY SERVICES LTD,03/01/2019,25408.26
Bath and North East Somerset Council,10892049,LE1,Education Payment (independent school),P12,Children & Young People,AURORA CARE AND EDUCATION OPCO LTD,03/01/2019,26728.33
Bath and North East Somerset Council,10892162,3F7,PCB External Fees,P10,Finance & Efficiency,H MEALING & SONS LTD,03/01/2019,31424.34
Bath and North East Somerset Council,10892205,HE5,Security of Premises,P18,Transport & Environment,SAFE AND SOUND UK LIMITED,03/01/2019,45308.26
Bath and North East Somerset Council,80819357,PG1,Rent Allowances,P10,Finance & Efficiency,CURO,03/01/2019,46366.26
Bath and North East Somerset Council,80819290,PG1,Rent Allowances,P10,Finance & Efficiency,LIVEWEST,03/01/2019,69053.59
Bath and North East Somerset Council,10892203,LJ4,Contracts,P12,Children & Young People,NCH ACTION FOR CHILDREN,03/01/2019,74950.50
Bath and North East Somerset Council,10892215,LJ4,Contracts,P12,Children & Young People,NCH ACTION FOR CHILDREN,03/01/2019,96239.96
Bath and North East Somerset Council,10892208,LJ4,Contracts,P12,Children & Young People,SOUTHSIDE FAMILY PROJECT,03/01/2019,102821.50
Bath and North East Somerset Council,10892476,LN4,Mobile Phones,P10,Finance & Efficiency,EE LIMITED,07/01/2019,2.97
Bath and North East Somerset Council,80819634,LL8,Individualised Budget,P11,"Adult Care, Health & Wellbeing",REDACTED,07/01/2019,16.16
Bath and North East Somerset Council,80819770,LL8,Individualised Budget,P11,"Adult Care, Health & Wellbeing",PHOENIX (SW) LTD,07/01/2019,21.29
Bath and North East Somerset Council,80820060,LM9,Day Care,P11,"Adult Care, Health & Wellbeing",DIMENSIONS (UK) LTD,07/01/2019,32.00
Bath and North East Somerset Council,80819878,LM6,Nursing Care,P11,"Adult Care, Health & Wellbeing",CEDAR CARE HOMES LTD,07/01/2019,45.19
Bath and North East Somerset Council,80820035,LM6,Nursing Care,P11,"Adult Care, Health & Wellbeing",CEDAR CARE HOMES LTD,07/01/2019,58.02
Bath and North East Somerset Council,10892295,LN1,Telephones,P10,Finance & Efficiency,ONECOM LTD,07/01/2019,63.19
Bath and North East Somerset Council,80820066,LL3,Supported Living,P11,"Adult Care, Health & Wellbeing",ARCH CARE SERVICES,07/01/2019,73.44
Bath and North East Somerset Council,80820066,LL3,Supported Living,P11,"Adult Care, Health & Wellbeing",ARCH CARE SERVICES,07/01/2019,73.44
Bath and North East Somerset Council,80820066,LL3,Supported Living,P11,"Adult Care, Health & Wellbeing",ARCH CARE SERVICES,07/01/2019,73.44
Bath and North East Somerset Council,80820066,LL3,Supported Living,P11,"Adult Care, Health & Wellbeing",ARCH CARE SERVICES,07/01/2019,73.44
Bath and North East Somerset Council,80820054,LM6,Nursing Care,P11,"Adult Care, Health & Wellbeing",ST MONICAS GENERAL ACCOUNT,07/01/2019,80.95
Bath and North East Somerset Council,80820067,LL3,Supported Living,P11,"Adult Care, Health & Wellbeing",OPTIONS FOR LIVING LTD,07/01/2019,82.72
Bath and North East Somerset Council,80819872,LM6,Nursing Care,P11,"Adult Care, Health & Wellbeing",REDACTED,07/01/2019,90.38
Bath and North East Somerset Council,80820066,LL3,Supported Living,P11,"Adult Care, Health & Wellbeing",ARCH CARE SERVICES,07/01/2019,110.16
Bath and North East Somerset Council,10892180,KA2,Running Costs,P15,Development & Neighbourhoods,LGS TRANSPORT SERVICES LTD,07/01/2019,115.00
Bath and North East Somerset Council,80820039,XD3,Client Contributions,P11,"Adult Care, Health & Wellbeing",BARKER CHEMICALS LTD T/A ST TERESA'S NH,07/01/2019,119.16
Bath and North East Somerset Council,10891886,KA2,Running Costs,P15,Development & Neighbourhoods,DENNIS EAGLE LTD,07/01/2019,119.88
Bath and North East Somerset Council,80820067,LL3,Supported Living,P11,"Adult Care, Health & Wellbeing",OPTIONS FOR LIVING LTD,07/01/2019,122.88
Bath and North East Somerset Council,80820066,LL3,Supported Living,P11,"Adult Care, Health & Wellbeing",ARCH CARE SERVICES,07/01/2019,146.88
Bath and North East Somerset Council,80819770,LL8,Individualised Budget,P11,"Adult Care, Health & Wellbeing",PHOENIX (SW) LTD,07/01/2019,155.44
Bath and North East Somerset Council,80820060,LL3,Supported Living,P11,"Adult Care, Health & Wellbeing",DIMENSIONS (UK) LTD,07/01/2019,159.84
Bath and North East Somerset Council,80819770,LL8,Individualised Budget,P11,"Adult Care, Health & Wellbeing",PHOENIX (SW) LTD,07/01/2019,160.20
Bath and North East Somerset Council,80820067,LL3,Supported Living,P11,"Adult Care, Health & Wellbeing",OPTIONS FOR LIVING LTD,07/01/2019,165.44
Bath and North East Somerset Council,80820067,LL3,Supported Living,P11,"Adult Care, Health & Wellbeing",OPTIONS FOR LIVING LTD,07/01/2019,165.44
Bath and North East Somerset Council,80820067,LL3,Supported Living,P11,"Adult Care, Health & Wellbeing",OPTIONS FOR LIVING LTD,07/01/2019,165.44
Bath and North East Somerset Council,80820067,LL3,Supported Living,P11,"Adult Care, Health & Wellbeing",OPTIONS FOR LIVING LTD,07/01/2019,165.44
Bath and North East Somerset Council,80820067,LL3,Supported Living,P11,"Adult Care, Health & Wellbeing",OPTIONS FOR LIVING LTD,07/01/2019,165.44
Bath and North East Somerset Council,80820067,LL3,Supported Living,P11,"Adult Care, Health & Wellbeing",OPTIONS FOR LIVING LTD,07/01/2019,165.44
Bath and North East Somerset Council,80820067,LL3,Supported Living,P11,"Adult Care, Health & Wellbeing",OPTIONS FOR LIVING LTD,07/01/2019,165.44
Bath and North East Somerset Council,80820067,LL3,Supported Living,P11,"Adult Care, Health & Wellbeing",OPTIONS FOR LIVING LTD,07/01/2019,165.44
Bath and North East Somerset Council,80820067,LL3,Supported Living,P11,"Adult Care, Health & Wellbeing",OPTIONS FOR LIVING LTD,07/01/2019,165.44
Bath and North East Somerset Council,80820067,LL3,Supported Living,P11,"Adult Care, Health & Wellbeing",OPTIONS FOR LIVING LTD,07/01/2019,165.44
Bath and North East Somerset Council,80820067,LL3,Supported Living,P11,"Adult Care, Health & Wellbeing",OPTIONS FOR LIVING LTD,07/01/2019,165.44
Bath and North East Somerset Council,80820067,LL3,Supported Living,P11,"Adult Care, Health & Wellbeing",OPTIONS FOR LIVING LTD,07/01/2019,165.44
Bath and North East Somerset Council,80820067,LL3,Supported Living,P11,"Adult Care, Health & Wellbeing",OPTIONS FOR LIVING LTD,07/01/2019,165.44
Bath and North East Somerset Council,80820067,LL3,Supported Living,P11,"Adult Care, Health & Wellbeing",OPTIONS FOR LIVING LTD,07/01/2019,165.44
Bath and North East Somerset Council,80820067,LL3,Supported Living,P11,"Adult Care, Health & Wellbeing",OPTIONS FOR LIVING LTD,07/01/2019,165.44
Bath and North East Somerset Council,80820067,LL3,Supported Living,P11,"Adult Care, Health & Wellbeing",OPTIONS FOR LIVING LTD,07/01/2019,165.44
Bath and North East Somerset Council,80820067,LL3,Supported Living,P11,"Adult Care, Health & Wellbeing",OPTIONS FOR LIVING LTD,07/01/2019,165.44
Bath and North East Somerset Council,80820067,LL3,Supported Living,P11,"Adult Care, Health & Wellbeing",OPTIONS FOR LIVING LTD,07/01/2019,165.44
Bath and North East Somerset Council,80820067,LL3,Supported Living,P11,"Adult Care, Health & Wellbeing",OPTIONS FOR LIVING LTD,07/01/2019,165.44
Bath and North East Somerset Council,80820067,LL3,Supported Living,P11,"Adult Care, Health & Wellbeing",OPTIONS FOR LIVING LTD,07/01/2019,165.44
Bath and North East Somerset Council,80820067,LL3,Supported Living,P11,"Adult Care, Health & Wellbeing",OPTIONS FOR LIVING LTD,07/01/2019,165.44
Bath and North East Somerset Council,80820067,LL3,Supported Living,P11,"Adult Care, Health & Wellbeing",OPTIONS FOR LIVING LTD,07/01/2019,165.44
Bath and North East Somerset Council,80820067,LL3,Supported Living,P11,"Adult Care, Health & Wellbeing",OPTIONS FOR LIVING LTD,07/01/2019,165.44
Bath and North East Somerset Council,80820067,LL3,Supported Living,P11,"Adult Care, Health & Wellbeing",OPTIONS FOR LIVING LTD,07/01/2019,165.44
Bath and North East Somerset Council,80820067,LL3,Supported Living,P11,"Adult Care, Health & Wellbeing",OPTIONS FOR LIVING LTD,07/01/2019,165.44
Bath and North East Somerset Council,80819666,LL8,Individualised Budget,P11,"Adult Care, Health & Wellbeing",PENDERELS TRUST,07/01/2019,170.70
Bath and North East Somerset Council,80819913,LM3,Residential Care,P11,"Adult Care, Health & Wellbeing",ASPECTS & MILESTONES TRUST,07/01/2019,174.28
Bath and North East Somerset Council,80819666,LL8,Individualised Budget,P11,"Adult Care, Health & Wellbeing",PENDERELS TRUST,07/01/2019,182.84
Bath and North East Somerset Council,80820066,LL3,Supported Living,P11,"Adult Care, Health & Wellbeing",ARCH CARE SERVICES,07/01/2019,183.60
Bath and North East Somerset Council,80820066,LL3,Supported Living,P11,"Adult Care, Health & Wellbeing",ARCH CARE SERVICES,07/01/2019,183.60
Bath and North East Somerset Council,80820066,LL3,Supported Living,P11,"Adult Care, Health & Wellbeing",ARCH CARE SERVICES,07/01/2019,183.60
Bath and North East Somerset Council,10892339,LF4,Stationery,P10,Finance & Efficiency,ACS LTD,07/01/2019,184.33
Bath and North East Somerset Council,80820067,LL3,Supported Living,P11,"Adult Care, Health & Wellbeing",OPTIONS FOR LIVING LTD,07/01/2019,186.12
Bath and North East Somerset Council,10892295,LN5,Data Lines,P10,Finance & Efficiency,ONECOM LTD,07/01/2019,199.13
Bath and North East Somerset Council,80820067,LL3,Supported Living,P11,"Adult Care, Health & Wellbeing",OPTIONS FOR LIVING LTD,07/01/2019,206.80
Bath and North East Somerset Council,80820067,LL3,Supported Living,P11,"Adult Care, Health & Wellbeing",OPTIONS FOR LIVING LTD,07/01/2019,206.80
Bath and North East Somerset Council,80820067,LL3,Supported Living,P11,"Adult Care, Health & Wellbeing",OPTIONS FOR LIVING LTD,07/01/2019,206.80
Bath and North East Somerset Council,80820067,LL3,Supported Living,P11,"Adult Care, Health & Wellbeing",OPTIONS FOR LIVING LTD,07/01/2019,206.80
Bath and North East Somerset Council,80820067,LL3,Supported Living,P11,"Adult Care, Health & Wellbeing",OPTIONS FOR LIVING LTD,07/01/2019,206.80
Bath and North East Somerset Council,80820067,LL3,Supported Living,P11,"Adult Care, Health & Wellbeing",OPTIONS FOR LIVING LTD,07/01/2019,206.80
Bath and North East Somerset Council,80819666,LL8,Individualised Budget,P11,"Adult Care, Health & Wellbeing",PENDERELS TRUST,07/01/2019,210.34
Bath and North East Somerset Council,80819770,LL8,Individualised Budget,P11,"Adult Care, Health & Wellbeing",PHOENIX (SW) LTD,07/01/2019,214.00
Bath and North East Somerset Council,80820066,LL3,Supported Living,P11,"Adult Care, Health & Wellbeing",ARCH CARE SERVICES,07/01/2019,220.32
Bath and North East Somerset Council,80820067,LL3,Supported Living,P11,"Adult Care, Health & Wellbeing",OPTIONS FOR LIVING LTD,07/01/2019,245.76
Bath and North East Somerset Council,80820067,LL3,Supported Living,P11,"Adult Care, Health & Wellbeing",OPTIONS FOR LIVING LTD,07/01/2019,248.16
Bath and North East Somerset Council,80820067,LL3,Supported Living,P11,"Adult Care, Health & Wellbeing",OPTIONS FOR LIVING LTD,07/01/2019,248.16
Bath and North East Somerset Council,80820067,LL3,Supported Living,P11,"Adult Care, Health & Wellbeing",OPTIONS FOR LIVING LTD,07/01/2019,248.16
Bath and North East Somerset Council,80820067,LL3,Supported Living,P11,"Adult Care, Health & Wellbeing",OPTIONS FOR LIVING LTD,07/01/2019,248.16
Bath and North East Somerset Council,80820067,LL3,Supported Living,P11,"Adult Care, Health & Wellbeing",OPTIONS FOR LIVING LTD,07/01/2019,248.16
Bath and North East Somerset Council,80820067,LL3,Supported Living,P11,"Adult Care, Health & Wellbeing",OPTIONS FOR LIVING LTD,07/01/2019,248.16
Bath and North East Somerset Council,80820067,LL3,Supported Living,P11,"Adult Care, Health & Wellbeing",OPTIONS FOR LIVING LTD,07/01/2019,248.16
Bath and North East Somerset Council,80820067,LL3,Supported Living,P11,"Adult Care, Health & Wellbeing",OPTIONS FOR LIVING LTD,07/01/2019,248.16
Bath and North East Somerset Council,80820067,LL3,Supported Living,P11,"Adult Care, Health & Wellbeing",OPTIONS FOR LIVING LTD,07/01/2019,248.16
Bath and North East Somerset Council,80820067,LL3,Supported Living,P11,"Adult Care, Health & Wellbeing",OPTIONS FOR LIVING LTD,07/01/2019,248.16
Bath and North East Somerset Council,80820067,LL3,Supported Living,P11,"Adult Care, Health & Wellbeing",OPTIONS FOR LIVING LTD,07/01/2019,248.16
Bath and North East Somerset Council,80820067,LL3,Supported Living,P11,"Adult Care, Health & Wellbeing",OPTIONS FOR LIVING LTD,07/01/2019,248.16
Bath and North East Somerset Council,80820067,LL3,Supported Living,P11,"Adult Care, Health & Wellbeing",OPTIONS FOR LIVING LTD,07/01/2019,248.16
Bath and North East Somerset Council,80820067,LL3,Supported Living,P11,"Adult Care, Health & Wellbeing",OPTIONS FOR LIVING LTD,07/01/2019,248.16
Bath and North East Somerset Council,80820067,LL3,Supported Living,P11,"Adult Care, Health & Wellbeing",OPTIONS FOR LIVING LTD,07/01/2019,248.16
Bath and North East Somerset Council,80820067,LL3,Supported Living,P11,"Adult Care, Health & Wellbeing",OPTIONS FOR LIVING LTD,07/01/2019,248.16
Bath and North East Somerset Council,80819770,LL8,Individualised Budget,P11,"Adult Care, Health & Wellbeing",PHOENIX (SW) LTD,07/01/2019,252.00
Bath and North East Somerset Council,80820066,LL3,Supported Living,P11,"Adult Care, Health & Wellbeing",ARCH CARE SERVICES,07/01/2019,257.04
Bath and North East Somerset Council,80820066,LL3,Supported Living,P11,"Adult Care, Health & Wellbeing",ARCH CARE SERVICES,07/01/2019,257.04
Bath and North East Somerset Council,80819770,LL8,Individualised Budget,P11,"Adult Care, Health & Wellbeing",PHOENIX (SW) LTD,07/01/2019,265.04
Bath and North East Somerset Council,80820030,LM3,Residential Care,P11,"Adult Care, Health & Wellbeing",METHODIST HOMES FOR THE AGED,07/01/2019,269.16
Bath and North East Somerset Council,10892295,LN5,Data Lines,P10,Finance & Efficiency,ONECOM LTD,07/01/2019,276.25
Bath and North East Somerset Council,80819770,LL8,Individualised Budget,P11,"Adult Care, Health & Wellbeing",PHOENIX (SW) LTD,07/01/2019,276.48
Bath and North East Somerset Council,80819770,LL8,Individualised Budget,P11,"Adult Care, Health & Wellbeing",PHOENIX (SW) LTD,07/01/2019,278.30
Bath and North East Somerset Council,80820066,LL3,Supported Living,P11,"Adult Care, Health & Wellbeing",ARCH CARE SERVICES,07/01/2019,293.76
Bath and North East Somerset Council,80819770,LL8,Individualised Budget,P11,"Adult Care, Health & Wellbeing",PHOENIX (SW) LTD,07/01/2019,295.02
Bath and North East Somerset Council,80819770,LL8,Individualised Budget,P11,"Adult Care, Health & Wellbeing",PHOENIX (SW) LTD,07/01/2019,302.40
Bath and North East Somerset Council,80820039,LM6,Nursing Care,P11,"Adult Care, Health & Wellbeing",BARKER CHEMICALS LTD T/A ST TERESA'S NH,07/01/2019,311.93
Bath and North East Somerset Council,80820067,LL3,Supported Living,P11,"Adult Care, Health & Wellbeing",OPTIONS FOR LIVING LTD,07/01/2019,315.16
Bath and North East Somerset Council,80819884,LM6,Nursing Care,P11,"Adult Care, Health & Wellbeing",BARCHESTER HEALTH CARE,07/01/2019,316.32
Bath and North East Somerset Council,80819884,LM6,Nursing Care,P11,"Adult Care, Health & Wellbeing",BARCHESTER HEALTH CARE,07/01/2019,316.32
Bath and North East Somerset Council,80819884,LM6,Nursing Care,P11,"Adult Care, Health & Wellbeing",BARCHESTER HEALTH CARE,07/01/2019,316.32
Bath and North East Somerset Council,80819884,LM6,Nursing Care,P11,"Adult Care, Health & Wellbeing",BARCHESTER HEALTH CARE,07/01/2019,316.32
Bath and North East Somerset Council,80819884,LM6,Nursing Care,P11,"Adult Care, Health & Wellbeing",BARCHESTER HEALTH CARE,07/01/2019,316.32
Bath and North East Somerset Council,80819884,LM6,Nursing Care,P11,"Adult Care, Health & Wellbeing",BARCHESTER HEALTH CARE,07/01/2019,316.32
Bath and North East Somerset Council,80819884,LM6,Nursing Care,P11,"Adult Care, Health & Wellbeing",BARCHESTER HEALTH CARE,07/01/2019,316.32
Bath and North East Somerset Council,80819884,LM6,Nursing Care,P11,"Adult Care, Health & Wellbeing",BARCHESTER HEALTH CARE,07/01/2019,316.32
Bath and North East Somerset Council,80819884,LM6,Nursing Care,P11,"Adult Care, Health & Wellbeing",BARCHESTER HEALTH CARE,07/01/2019,316.32
Bath and North East Somerset Council,80819884,LM6,Nursing Care,P11,"Adult Care, Health & Wellbeing",BARCHESTER HEALTH CARE,07/01/2019,316.32
Bath and North East Somerset Council,80819884,LM6,Nursing Care,P11,"Adult Care, Health & Wellbeing",BARCHESTER HEALTH CARE,07/01/2019,316.32
Bath and North East Somerset Council,80819884,LM6,Nursing Care,P11,"Adult Care, Health & Wellbeing",BARCHESTER HEALTH CARE,07/01/2019,316.32
Bath and North East Somerset Council,80819884,LM6,Nursing Care,P11,"Adult Care, Health & Wellbeing",BARCHESTER HEALTH CARE,07/01/2019,316.32
Bath and North East Somerset Council,80819884,LM6,Nursing Care,P11,"Adult Care, Health & Wellbeing",BARCHESTER HEALTH CARE,07/01/2019,316.32
Bath and North East Somerset Council,80819884,LM6,Nursing Care,P11,"Adult Care, Health & Wellbeing",BARCHESTER HEALTH CARE,07/01/2019,316.32
Bath and North East Somerset Council,80819884,LM6,Nursing Care,P11,"Adult Care, Health & Wellbeing",BARCHESTER HEALTH CARE,07/01/2019,316.32
Bath and North East Somerset Council,80819884,LM6,Nursing Care,P11,"Adult Care, Health & Wellbeing",BARCHESTER HEALTH CARE,07/01/2019,316.32
Bath and North East Somerset Council,80819884,LM6,Nursing Care,P11,"Adult Care, Health & Wellbeing",BARCHESTER HEALTH CARE,07/01/2019,316.32
Bath and North East Somerset Council,80819884,LM6,Nursing Care,P11,"Adult Care, Health & Wellbeing",BARCHESTER HEALTH CARE,07/01/2019,316.32
Bath and North East Somerset Council,80819884,LM6,Nursing Care,P11,"Adult Care, Health & Wellbeing",BARCHESTER HEALTH CARE,07/01/2019,316.32
Bath and North East Somerset Council,80819873,LM6,Nursing Care,P11,"Adult Care, Health & Wellbeing",BARCHESTER HEALTHCARE HOMES LTD,07/01/2019,316.32
Bath and North East Somerset Council,80819873,LM6,Nursing Care,P11,"Adult Care, Health & Wellbeing",BARCHESTER HEALTHCARE HOMES LTD,07/01/2019,316.32
Bath and North East Somerset Council,80819873,LM6,Nursing Care,P11,"Adult Care, Health & Wellbeing",BARCHESTER HEALTHCARE HOMES LTD,07/01/2019,316.32
Bath and North East Somerset Council,80819873,LM6,Nursing Care,P11,"Adult Care, Health & Wellbeing",BARCHESTER HEALTHCARE HOMES LTD,07/01/2019,316.32
Bath and North East Somerset Council,80819873,LM6,Nursing Care,P11,"Adult Care, Health & Wellbeing",BARCHESTER HEALTHCARE HOMES LTD,07/01/2019,316.32
Bath and North East Somerset Council,80819873,LM6,Nursing Care,P11,"Adult Care, Health & Wellbeing",BARCHESTER HEALTHCARE HOMES LTD,07/01/2019,316.32
Bath and North East Somerset Council,80819873,LM6,Nursing Care,P11,"Adult Care, Health & Wellbeing",BARCHESTER HEALTHCARE HOMES LTD,07/01/2019,316.32
Bath and North East Somerset Council,80819873,LM6,Nursing Care,P11,"Adult Care, Health & Wellbeing",BARCHESTER HEALTHCARE HOMES LTD,07/01/2019,316.32
Bath and North East Somerset Council,80819873,LM6,Nursing Care,P11,"Adult Care, Health & Wellbeing",BARCHESTER HEALTHCARE HOMES LTD,07/01/2019,316.32
Bath and North East Somerset Council,80819873,LM6,Nursing Care,P11,"Adult Care, Health & Wellbeing",BARCHESTER HEALTHCARE HOMES LTD,07/01/2019,316.32
Bath and North East Somerset Council,80819873,LM6,Nursing Care,P11,"Adult Care, Health & Wellbeing",BARCHESTER HEALTHCARE HOMES LTD,07/01/2019,316.32
Bath and North East Somerset Council,80819873,LM6,Nursing Care,P11,"Adult Care, Health & Wellbeing",BARCHESTER HEALTHCARE HOMES LTD,07/01/2019,316.32
Bath and North East Somerset Council,80819873,LM6,Nursing Care,P11,"Adult Care, Health & Wellbeing",BARCHESTER HEALTHCARE HOMES LTD,07/01/2019,316.32
Bath and North East Somerset Council,80819873,LM6,Nursing Care,P11,"Adult Care, Health & Wellbeing",BARCHESTER HEALTHCARE HOMES LTD,07/01/2019,316.32
Bath and North East Somerset Council,80819873,LM6,Nursing Care,P11,"Adult Care, Health & Wellbeing",BARCHESTER HEALTHCARE HOMES LTD,07/01/2019,316.32
Bath and North East Somerset Council,80819873,LM6,Nursing Care,P11,"Adult Care, Health & Wellbeing",BARCHESTER HEALTHCARE HOMES LTD,07/01/2019,316.32
Bath and North East Somerset Council,80819873,LM6,Nursing Care,P11,"Adult Care, Health & Wellbeing",BARCHESTER HEALTHCARE HOMES LTD,07/01/2019,316.32
Bath and North East Somerset Council,80819873,LM6,Nursing Care,P11,"Adult Care, Health & Wellbeing",BARCHESTER HEALTHCARE HOMES LTD,07/01/2019,316.32
Bath and North East Somerset Council,80819873,LM6,Nursing Care,P11,"Adult Care, Health & Wellbeing",BARCHESTER HEALTHCARE HOMES LTD,07/01/2019,316.32
Bath and North East Somerset Council,80819873,LM6,Nursing Care,P11,"Adult Care, Health & Wellbeing",BARCHESTER HEALTHCARE HOMES LTD,07/01/2019,316.32
Bath and North East Somerset Council,80819873,LM6,Nursing Care,P11,"Adult Care, Health & Wellbeing",BARCHESTER HEALTHCARE HOMES LTD,07/01/2019,316.32
Bath and North East Somerset Council,80819873,LM6,Nursing Care,P11,"Adult Care, Health & Wellbeing",BARCHESTER HEALTHCARE HOMES LTD,07/01/2019,316.32
Bath and North East Somerset Council,80819873,LM6,Nursing Care,P11,"Adult Care, Health & Wellbeing",BARCHESTER HEALTHCARE HOMES LTD,07/01/2019,316.32
Bath and North East Somerset Council,80819873,LM6,Nursing Care,P11,"Adult Care, Health & Wellbeing",BARCHESTER HEALTHCARE HOMES LTD,07/01/2019,316.32
Bath and North East Somerset Council,80819873,LM6,Nursing Care,P11,"Adult Care, Health & Wellbeing",BARCHESTER HEALTHCARE HOMES LTD,07/01/2019,316.32
Bath and North East Somerset Council,80819873,LM6,Nursing Care,P11,"Adult Care, Health & Wellbeing",BARCHESTER HEALTHCARE HOMES LTD,07/01/2019,316.32
Bath and North East Somerset Council,80819873,LM6,Nursing Care,P11,"Adult Care, Health & Wellbeing",BARCHESTER HEALTHCARE HOMES LTD,07/01/2019,316.32
Bath and North East Somerset Council,80819873,LM6,Nursing Care,P11,"Adult Care, Health & Wellbeing",BARCHESTER HEALTHCARE HOMES LTD,07/01/2019,316.32
Bath and North East Somerset Council,80819873,LM6,Nursing Care,P11,"Adult Care, Health & Wellbeing",BARCHESTER HEALTHCARE HOMES LTD,07/01/2019,316.32
Bath and North East Somerset Council,80819873,LM6,Nursing Care,P11,"Adult Care, Health & Wellbeing",BARCHESTER HEALTHCARE HOMES LTD,07/01/2019,316.32
Bath and North East Somerset Council,80819873,LM6,Nursing Care,P11,"Adult Care, Health & Wellbeing",BARCHESTER HEALTHCARE HOMES LTD,07/01/2019,316.32
Bath and North East Somerset Council,80819873,LM6,Nursing Care,P11,"Adult Care, Health & Wellbeing",BARCHESTER HEALTHCARE HOMES LTD,07/01/2019,316.32
Bath and North East Somerset Council,80819873,LM6,Nursing Care,P11,"Adult Care, Health & Wellbeing",BARCHESTER HEALTHCARE HOMES LTD,07/01/2019,316.32
Bath and North East Somerset Council,80819873,LM6,Nursing Care,P11,"Adult Care, Health & Wellbeing",BARCHESTER HEALTHCARE HOMES LTD,07/01/2019,316.32
Bath and North East Somerset Council,80819873,LM6,Nursing Care,P11,"Adult Care, Health & Wellbeing",BARCHESTER HEALTHCARE HOMES LTD,07/01/2019,316.32
Bath and North East Somerset Council,80819873,LM6,Nursing Care,P11,"Adult Care, Health & Wellbeing",BARCHESTER HEALTHCARE HOMES LTD,07/01/2019,316.32
Bath and North East Somerset Council,80819873,LM6,Nursing Care,P11,"Adult Care, Health & Wellbeing",BARCHESTER HEALTHCARE HOMES LTD,07/01/2019,316.32
Bath and North East Somerset Council,80819873,LM6,Nursing Care,P11,"Adult Care, Health & Wellbeing",BARCHESTER HEALTHCARE HOMES LTD,07/01/2019,316.32
Bath and North East Somerset Council,80819873,LM6,Nursing Care,P11,"Adult Care, Health & Wellbeing",BARCHESTER HEALTHCARE HOMES LTD,07/01/2019,316.32
Bath and North East Somerset Council,80819873,LM6,Nursing Care,P11,"Adult Care, Health & Wellbeing",BARCHESTER HEALTHCARE HOMES LTD,07/01/2019,316.32
Bath and North East Somerset Council,80819873,LM6,Nursing Care,P11,"Adult Care, Health & Wellbeing",BARCHESTER HEALTHCARE HOMES LTD,07/01/2019,316.32
Bath and North East Somerset Council,80819873,LM6,Nursing Care,P11,"Adult Care, Health & Wellbeing",BARCHESTER HEALTHCARE HOMES LTD,07/01/2019,316.32
Bath and North East Somerset Council,80819873,LM6,Nursing Care,P11,"Adult Care, Health & Wellbeing",BARCHESTER HEALTHCARE HOMES LTD,07/01/2019,316.32
Bath and North East Somerset Council,80819873,LM6,Nursing Care,P11,"Adult Care, Health & Wellbeing",BARCHESTER HEALTHCARE HOMES LTD,07/01/2019,316.32
Bath and North East Somerset Council,80819873,LM6,Nursing Care,P11,"Adult Care, Health & Wellbeing",BARCHESTER HEALTHCARE HOMES LTD,07/01/2019,316.32
Bath and North East Somerset Council,80819873,LM6,Nursing Care,P11,"Adult Care, Health & Wellbeing",BARCHESTER HEALTHCARE HOMES LTD,07/01/2019,316.32
Bath and North East Somerset Council,80819873,LM6,Nursing Care,P11,"Adult Care, Health & Wellbeing",BARCHESTER HEALTHCARE HOMES LTD,07/01/2019,316.32
Bath and North East Somerset Council,80819873,LM6,Nursing Care,P11,"Adult Care, Health & Wellbeing",BARCHESTER HEALTHCARE HOMES LTD,07/01/2019,316.32
Bath and North East Somerset Council,80819873,LM6,Nursing Care,P11,"Adult Care, Health & Wellbeing",BARCHESTER HEALTHCARE HOMES LTD,07/01/2019,316.32
Bath and North East Somerset Council,80819873,LM6,Nursing Care,P11,"Adult Care, Health & Wellbeing",BARCHESTER HEALTHCARE HOMES LTD,07/01/2019,316.32
Bath and North East Somerset Council,80819873,LM6,Nursing Care,P11,"Adult Care, Health & Wellbeing",BARCHESTER HEALTHCARE HOMES LTD,07/01/2019,316.32
Bath and North East Somerset Council,80819880,LM6,Nursing Care,P11,"Adult Care, Health & Wellbeing",BARKER CHEMICALS LTD T/A ST TERESA'S NH,07/01/2019,316.32
Bath and North East Somerset Council,80819880,LM6,Nursing Care,P11,"Adult Care, Health & Wellbeing",BARKER CHEMICALS LTD T/A ST TERESA'S NH,07/01/2019,316.32
Bath and North East Somerset Council,80819880,LM6,Nursing Care,P11,"Adult Care, Health & Wellbeing",BARKER CHEMICALS LTD T/A ST TERESA'S NH,07/01/2019,316.32
Bath and North East Somerset Council,80819880,LM6,Nursing Care,P11,"Adult Care, Health & Wellbeing",BARKER CHEMICALS LTD T/A ST TERESA'S NH,07/01/2019,316.32
Bath and North East Somerset Council,80819880,LM6,Nursing Care,P11,"Adult Care, Health & Wellbeing",BARKER CHEMICALS LTD T/A ST TERESA'S NH,07/01/2019,316.32
Bath and North East Somerset Council,80819880,LM6,Nursing Care,P11,"Adult Care, Health & Wellbeing",BARKER CHEMICALS LTD T/A ST TERESA'S NH,07/01/2019,316.32
Bath and North East Somerset Council,80819880,LM6,Nursing Care,P11,"Adult Care, Health & Wellbeing",BARKER CHEMICALS LTD T/A ST TERESA'S NH,07/01/2019,316.32
Bath and North East Somerset Council,80819880,LM6,Nursing Care,P11,"Adult Care, Health & Wellbeing",BARKER CHEMICALS LTD T/A ST TERESA'S NH,07/01/2019,316.32
Bath and North East Somerset Council,80819880,LM6,Nursing Care,P11,"Adult Care, Health & Wellbeing",BARKER CHEMICALS LTD T/A ST TERESA'S NH,07/01/2019,316.32
Bath and North East Somerset Council,80819880,LM6,Nursing Care,P11,"Adult Care, Health & Wellbeing",BARKER CHEMICALS LTD T/A ST TERESA'S NH,07/01/2019,316.32
Bath and North East Somerset Council,80819880,LM6,Nursing Care,P11,"Adult Care, Health & Wellbeing",BARKER CHEMICALS LTD T/A ST TERESA'S NH,07/01/2019,316.32
Bath and North East Somerset Council,80819880,LM6,Nursing Care,P11,"Adult Care, Health & Wellbeing",BARKER CHEMICALS LTD T/A ST TERESA'S NH,07/01/2019,316.32
Bath and North East Somerset Council,80819880,LM6,Nursing Care,P11,"Adult Care, Health & Wellbeing",BARKER CHEMICALS LTD T/A ST TERESA'S NH,07/01/2019,316.32
Bath and North East Somerset Council,80819880,LM6,Nursing Care,P11,"Adult Care, Health & Wellbeing",BARKER CHEMICALS LTD T/A ST TERESA'S NH,07/01/2019,316.32
Bath and North East Somerset Council,80819880,LM6,Nursing Care,P11,"Adult Care, Health & Wellbeing",BARKER CHEMICALS LTD T/A ST TERESA'S NH,07/01/2019,316.32
Bath and North East Somerset Council,80819880,LM6,Nursing Care,P11,"Adult Care, Health & Wellbeing",BARKER CHEMICALS LTD T/A ST TERESA'S NH,07/01/2019,316.32
Bath and North East Somerset Council,80819880,LM6,Nursing Care,P11,"Adult Care, Health & Wellbeing",BARKER CHEMICALS LTD T/A ST TERESA'S NH,07/01/2019,316.32
Bath and North East Somerset Council,80819880,LM6,Nursing Care,P11,"Adult Care, Health & Wellbeing",BARKER CHEMICALS LTD T/A ST TERESA'S NH,07/01/2019,316.32
Bath and North East Somerset Council,80819880,LM6,Nursing Care,P11,"Adult Care, Health & Wellbeing",BARKER CHEMICALS LTD T/A ST TERESA'S NH,07/01/2019,316.32
Bath and North East Somerset Council,80819880,LM6,Nursing Care,P11,"Adult Care, Health & Wellbeing",BARKER CHEMICALS LTD T/A ST TERESA'S NH,07/01/2019,316.32
Bath and North East Somerset Council,80819880,LM6,Nursing Care,P11,"Adult Care, Health & Wellbeing",BARKER CHEMICALS LTD T/A ST TERESA'S NH,07/01/2019,316.32
Bath and North East Somerset Council,80819880,LM6,Nursing Care,P11,"Adult Care, Health & Wellbeing",BARKER CHEMICALS LTD T/A ST TERESA'S NH,07/01/2019,316.32
Bath and North East Somerset Council,80819880,LM6,Nursing Care,P11,"Adult Care, Health & Wellbeing",BARKER CHEMICALS LTD T/A ST TERESA'S NH,07/01/2019,316.32
Bath and North East Somerset Council,80819880,LM6,Nursing Care,P11,"Adult Care, Health & Wellbeing",BARKER CHEMICALS LTD T/A ST TERESA'S NH,07/01/2019,316.32
Bath and North East Somerset Council,80819880,LM6,Nursing Care,P11,"Adult Care, Health & Wellbeing",BARKER CHEMICALS LTD T/A ST TERESA'S NH,07/01/2019,316.32
Bath and North East Somerset Council,80819880,LM6,Nursing Care,P11,"Adult Care, Health & Wellbeing",BARKER CHEMICALS LTD T/A ST TERESA'S NH,07/01/2019,316.32
Bath and North East Somerset Council,80819880,LM6,Nursing Care,P11,"Adult Care, Health & Wellbeing",BARKER CHEMICALS LTD T/A ST TERESA'S NH,07/01/2019,316.32
Bath and North East Somerset Council,80819880,LM6,Nursing Care,P11,"Adult Care, Health & Wellbeing",BARKER CHEMICALS LTD T/A ST TERESA'S NH,07/01/2019,316.32
Bath and North East Somerset Council,80819880,LM6,Nursing Care,P11,"Adult Care, Health & Wellbeing",BARKER CHEMICALS LTD T/A ST TERESA'S NH,07/01/2019,316.32
Bath and North East Somerset Council,80819880,LM6,Nursing Care,P11,"Adult Care, Health & Wellbeing",BARKER CHEMICALS LTD T/A ST TERESA'S NH,07/01/2019,316.32
Bath and North East Somerset Council,80819880,LM6,Nursing Care,P11,"Adult Care, Health & Wellbeing",BARKER CHEMICALS LTD T/A ST TERESA'S NH,07/01/2019,316.32
Bath and North East Somerset Council,80819880,LM6,Nursing Care,P11,"Adult Care, Health & Wellbeing",BARKER CHEMICALS LTD T/A ST TERESA'S NH,07/01/2019,316.32
Bath and North East Somerset Council,80819880,LM6,Nursing Care,P11,"Adult Care, Health & Wellbeing",BARKER CHEMICALS LTD T/A ST TERESA'S NH,07/01/2019,316.32
Bath and North East Somerset Council,80819880,LM6,Nursing Care,P11,"Adult Care, Health & Wellbeing",BARKER CHEMICALS LTD T/A ST TERESA'S NH,07/01/2019,316.32
Bath and North East Somerset Council,80819880,LM6,Nursing Care,P11,"Adult Care, Health & Wellbeing",BARKER CHEMICALS LTD T/A ST TERESA'S NH,07/01/2019,316.32
Bath and North East Somerset Council,80819880,LM6,Nursing Care,P11,"Adult Care, Health & Wellbeing",BARKER CHEMICALS LTD T/A ST TERESA'S NH,07/01/2019,316.32
Bath and North East Somerset Council,80819880,LM6,Nursing Care,P11,"Adult Care, Health & Wellbeing",BARKER CHEMICALS LTD T/A ST TERESA'S NH,07/01/2019,316.32
Bath and North East Somerset Council,80819880,LM6,Nursing Care,P11,"Adult Care, Health & Wellbeing",BARKER CHEMICALS LTD T/A ST TERESA'S NH,07/01/2019,316.32
Bath and North East Somerset Council,80819880,LM6,Nursing Care,P11,"Adult Care, Health & Wellbeing",BARKER CHEMICALS LTD T/A ST TERESA'S NH,07/01/2019,316.32
Bath and North East Somerset Council,80819880,LM6,Nursing Care,P11,"Adult Care, Health & Wellbeing",BARKER CHEMICALS LTD T/A ST TERESA'S NH,07/01/2019,316.32
Bath and North East Somerset Council,80819880,LM6,Nursing Care,P11,"Adult Care, Health & Wellbeing",BARKER CHEMICALS LTD T/A ST TERESA'S NH,07/01/2019,316.32
Bath and North East Somerset Council,80819880,LM6,Nursing Care,P11,"Adult Care, Health & Wellbeing",BARKER CHEMICALS LTD T/A ST TERESA'S NH,07/01/2019,316.32
Bath and North East Somerset Council,80819880,LM6,Nursing Care,P11,"Adult Care, Health & Wellbeing",BARKER CHEMICALS LTD T/A ST TERESA'S NH,07/01/2019,316.32
Bath and North East Somerset Council,80819880,LM6,Nursing Care,P11,"Adult Care, Health & Wellbeing",BARKER CHEMICALS LTD T/A ST TERESA'S NH,07/01/2019,316.32
Bath and North East Somerset Council,80819866,LM6,Nursing Care,P11,"Adult Care, Health & Wellbeing",BRIDGE CARE LTD,07/01/2019,316.32
Bath and North East Somerset Council,80819866,LM6,Nursing Care,P11,"Adult Care, Health & Wellbeing",BRIDGE CARE LTD,07/01/2019,316.32
Bath and North East Somerset Council,80819866,LM6,Nursing Care,P11,"Adult Care, Health & Wellbeing",BRIDGE CARE LTD,07/01/2019,316.32
Bath and North East Somerset Council,80819866,LM6,Nursing Care,P11,"Adult Care, Health & Wellbeing",BRIDGE CARE LTD,07/01/2019,316.32
Bath and North East Somerset Council,80819866,LM6,Nursing Care,P11,"Adult Care, Health & Wellbeing",BRIDGE CARE LTD,07/01/2019,316.32
Bath and North East Somerset Council,80819866,LM6,Nursing Care,P11,"Adult Care, Health & Wellbeing",BRIDGE CARE LTD,07/01/2019,316.32
Bath and North East Somerset Council,80819866,LM6,Nursing Care,P11,"Adult Care, Health & Wellbeing",BRIDGE CARE LTD,07/01/2019,316.32
Bath and North East Somerset Council,80819866,LM6,Nursing Care,P11,"Adult Care, Health & Wellbeing",BRIDGE CARE LTD,07/01/2019,316.32
Bath and North East Somerset Council,80819866,LM6,Nursing Care,P11,"Adult Care, Health & Wellbeing",BRIDGE CARE LTD,07/01/2019,316.32
Bath and North East Somerset Council,80819870,LM6,Nursing Care,P11,"Adult Care, Health & Wellbeing",REDACTED,07/01/2019,316.32
Bath and North East Somerset Council,80819870,LM6,Nursing Care,P11,"Adult Care, Health & Wellbeing",REDACTED,07/01/2019,316.32
Bath and North East Somerset Council,80819870,LM6,Nursing Care,P11,"Adult Care, Health & Wellbeing",REDACTED,07/01/2019,316.32
Bath and North East Somerset Council,80819870,LM6,Nursing Care,P11,"Adult Care, Health & Wellbeing",REDACTED,07/01/2019,316.32
Bath and North East Somerset Council,80819870,LM6,Nursing Care,P11,"Adult Care, Health & Wellbeing",REDACTED,07/01/2019,316.32
Bath and North East Somerset Council,80819870,LM6,Nursing Care,P11,"Adult Care, Health & Wellbeing",REDACTED,07/01/2019,316.32
Bath and North East Somerset Council,80819881,LM6,Nursing Care,P11,"Adult Care, Health & Wellbeing",CARE FIRST CARE HOMES LTD,07/01/2019,316.32
Bath and North East Somerset Council,80819881,LM6,Nursing Care,P11,"Adult Care, Health & Wellbeing",CARE FIRST CARE HOMES LTD,07/01/2019,316.32
Bath and North East Somerset Council,80819881,LM6,Nursing Care,P11,"Adult Care, Health & Wellbeing",CARE FIRST CARE HOMES LTD,07/01/2019,316.32
Bath and North East Somerset Council,80819881,LM6,Nursing Care,P11,"Adult Care, Health & Wellbeing",CARE FIRST CARE HOMES LTD,07/01/2019,316.32
Bath and North East Somerset Council,80819881,LM6,Nursing Care,P11,"Adult Care, Health & Wellbeing",CARE FIRST CARE HOMES LTD,07/01/2019,316.32
Bath and North East Somerset Council,80819881,LM6,Nursing Care,P11,"Adult Care, Health & Wellbeing",CARE FIRST CARE HOMES LTD,07/01/2019,316.32
Bath and North East Somerset Council,80819881,LM6,Nursing Care,P11,"Adult Care, Health & Wellbeing",CARE FIRST CARE HOMES LTD,07/01/2019,316.32
Bath and North East Somerset Council,80819881,LM6,Nursing Care,P11,"Adult Care, Health & Wellbeing",CARE FIRST CARE HOMES LTD,07/01/2019,316.32
Bath and North East Somerset Council,80819881,LM6,Nursing Care,P11,"Adult Care, Health & Wellbeing",CARE FIRST CARE HOMES LTD,07/01/2019,316.32
Bath and North East Somerset Council,80819878,LM6,Nursing Care,P11,"Adult Care, Health & Wellbeing",CEDAR CARE HOMES LTD,07/01/2019,316.32
Bath and North East Somerset Council,80819878,LM6,Nursing Care,P11,"Adult Care, Health & Wellbeing",CEDAR CARE HOMES LTD,07/01/2019,316.32
Bath and North East Somerset Council,80819878,LM6,Nursing Care,P11,"Adult Care, Health & Wellbeing",CEDAR CARE HOMES LTD,07/01/2019,316.32
Bath and North East Somerset Council,80819878,LM6,Nursing Care,P11,"Adult Care, Health & Wellbeing",CEDAR CARE HOMES LTD,07/01/2019,316.32
Bath and North East Somerset Council,80819878,LM6,Nursing Care,P11,"Adult Care, Health & Wellbeing",CEDAR CARE HOMES LTD,07/01/2019,316.32
Bath and North East Somerset Council,80819878,LM6,Nursing Care,P11,"Adult Care, Health & Wellbeing",CEDAR CARE HOMES LTD,07/01/2019,316.32
Bath and North East Somerset Council,80819878,LM6,Nursing Care,P11,"Adult Care, Health & Wellbeing",CEDAR CARE HOMES LTD,07/01/2019,316.32
Bath and North East Somerset Council,80819878,LM6,Nursing Care,P11,"Adult Care, Health & Wellbeing",CEDAR CARE HOMES LTD,07/01/2019,316.32
Bath and North East Somerset Council,80819878,LM6,Nursing Care,P11,"Adult Care, Health & Wellbeing",CEDAR CARE HOMES LTD,07/01/2019,316.32
Bath and North East Somerset Council,80819878,LM6,Nursing Care,P11,"Adult Care, Health & Wellbeing",CEDAR CARE HOMES LTD,07/01/2019,316.32
Bath and North East Somerset Council,80819878,LM6,Nursing Care,P11,"Adult Care, Health & Wellbeing",CEDAR CARE HOMES LTD,07/01/2019,316.32
Bath and North East Somerset Council,80819878,LM6,Nursing Care,P11,"Adult Care, Health & Wellbeing",CEDAR CARE HOMES LTD,07/01/2019,316.32
Bath and North East Somerset Council,80819878,LM6,Nursing Care,P11,"Adult Care, Health & Wellbeing",CEDAR CARE HOMES LTD,07/01/2019,316.32
Bath and North East Somerset Council,80819878,LM6,Nursing Care,P11,"Adult Care, Health & Wellbeing",CEDAR CARE HOMES LTD,07/01/2019,316.32
Bath and North East Somerset Council,80819878,LM6,Nursing Care,P11,"Adult Care, Health & Wellbeing",CEDAR CARE HOMES LTD,07/01/2019,316.32
Bath and North East Somerset Council,80819878,LM6,Nursing Care,P11,"Adult Care, Health & Wellbeing",CEDAR CARE HOMES LTD,07/01/2019,316.32
Bath and North East Somerset Council,80819878,LM6,Nursing Care,P11,"Adult Care, Health & Wellbeing",CEDAR CARE HOMES LTD,07/01/2019,316.32
Bath and North East Somerset Council,80819878,LM6,Nursing Care,P11,"Adult Care, Health & Wellbeing",CEDAR CARE HOMES LTD,07/01/2019,316.32
Bath and North East Somerset Council,80819878,LM6,Nursing Care,P11,"Adult Care, Health & Wellbeing",CEDAR CARE HOMES LTD,07/01/2019,316.32
Bath and North East Somerset Council,80819878,LM6,Nursing Care,P11,"Adult Care, Health & Wellbeing",CEDAR CARE HOMES LTD,07/01/2019,316.32
Bath and North East Somerset Council,80819878,LM6,Nursing Care,P11,"Adult Care, Health & Wellbeing",CEDAR CARE HOMES LTD,07/01/2019,316.32
Bath and North East Somerset Council,80819878,LM6,Nursing Care,P11,"Adult Care, Health & Wellbeing",CEDAR CARE HOMES LTD,07/01/2019,316.32
Bath and North East Somerset Council,80819878,LM6,Nursing Care,P11,"Adult Care, Health & Wellbeing",CEDAR CARE HOMES LTD,07/01/2019,316.32
Bath and North East Somerset Council,80819878,LM6,Nursing Care,P11,"Adult Care, Health & Wellbeing",CEDAR CARE HOMES LTD,07/01/2019,316.32
Bath and North East Somerset Council,80819878,LM6,Nursing Care,P11,"Adult Care, Health & Wellbeing",CEDAR CARE HOMES LTD,07/01/2019,316.32
Bath and North East Somerset Council,80819878,LM6,Nursing Care,P11,"Adult Care, Health & Wellbeing",CEDAR CARE HOMES LTD,07/01/2019,316.32
Bath and North East Somerset Council,80819878,LM6,Nursing Care,P11,"Adult Care, Health & Wellbeing",CEDAR CARE HOMES LTD,07/01/2019,316.32
Bath and North East Somerset Council,80819878,LM6,Nursing Care,P11,"Adult Care, Health & Wellbeing",CEDAR CARE HOMES LTD,07/01/2019,316.32
Bath and North East Somerset Council,80819878,LM6,Nursing Care,P11,"Adult Care, Health & Wellbeing",CEDAR CARE HOMES LTD,07/01/2019,316.32
Bath and North East Somerset Council,80819882,LM6,Nursing Care,P11,"Adult Care, Health & Wellbeing",CEDAR CARE HOMES LTD,07/01/2019,316.32
Bath and North East Somerset Council,80819882,LM6,Nursing Care,P11,"Adult Care, Health & Wellbeing",CEDAR CARE HOMES LTD,07/01/2019,316.32
Bath and North East Somerset Council,80819882,LM6,Nursing Care,P11,"Adult Care, Health & Wellbeing",CEDAR CARE HOMES LTD,07/01/2019,316.32
Bath and North East Somerset Council,80819882,LM6,Nursing Care,P11,"Adult Care, Health & Wellbeing",CEDAR CARE HOMES LTD,07/01/2019,316.32
Bath and North East Somerset Council,80819882,LM6,Nursing Care,P11,"Adult Care, Health & Wellbeing",CEDAR CARE HOMES LTD,07/01/2019,316.32
Bath and North East Somerset Council,80819882,LM6,Nursing Care,P11,"Adult Care, Health & Wellbeing",CEDAR CARE HOMES LTD,07/01/2019,316.32
Bath and North East Somerset Council,80819882,LM6,Nursing Care,P11,"Adult Care, Health & Wellbeing",CEDAR CARE HOMES LTD,07/01/2019,316.32
Bath and North East Somerset Council,80819882,LM6,Nursing Care,P11,"Adult Care, Health & Wellbeing",CEDAR CARE HOMES LTD,07/01/2019,316.32
Bath and North East Somerset Council,80819882,LM6,Nursing Care,P11,"Adult Care, Health & Wellbeing",CEDAR CARE HOMES LTD,07/01/2019,316.32
Bath and North East Somerset Council,80819882,LM6,Nursing Care,P11,"Adult Care, Health & Wellbeing",CEDAR CARE HOMES LTD,07/01/2019,316.32
Bath and North East Somerset Council,80819882,LM6,Nursing Care,P11,"Adult Care, Health & Wellbeing",CEDAR CARE HOMES LTD,07/01/2019,316.32
Bath and North East Somerset Council,80819882,LM6,Nursing Care,P11,"Adult Care, Health & Wellbeing",CEDAR CARE HOMES LTD,07/01/2019,316.32
Bath and North East Somerset Council,80819882,LM6,Nursing Care,P11,"Adult Care, Health & Wellbeing",CEDAR CARE HOMES LTD,07/01/2019,316.32
Bath and North East Somerset Council,80819882,LM6,Nursing Care,P11,"Adult Care, Health & Wellbeing",CEDAR CARE HOMES LTD,07/01/2019,316.32
Bath and North East Somerset Council,80819882,LM6,Nursing Care,P11,"Adult Care, Health & Wellbeing",CEDAR CARE HOMES LTD,07/01/2019,316.32
Bath and North East Somerset Council,80819882,LM6,Nursing Care,P11,"Adult Care, Health & Wellbeing",CEDAR CARE HOMES LTD,07/01/2019,316.32
Bath and North East Somerset Council,80819882,LM6,Nursing Care,P11,"Adult Care, Health & Wellbeing",CEDAR CARE HOMES LTD,07/01/2019,316.32
Bath and North East Somerset Council,80819882,LM6,Nursing Care,P11,"Adult Care, Health & Wellbeing",CEDAR CARE HOMES LTD,07/01/2019,316.32
Bath and North East Somerset Council,80819882,LM6,Nursing Care,P11,"Adult Care, Health & Wellbeing",CEDAR CARE HOMES LTD,07/01/2019,316.32
Bath and North East Somerset Council,80819882,LM6,Nursing Care,P11,"Adult Care, Health & Wellbeing",CEDAR CARE HOMES LTD,07/01/2019,316.32
Bath and North East Somerset Council,80819882,LM6,Nursing Care,P11,"Adult Care, Health & Wellbeing",CEDAR CARE HOMES LTD,07/01/2019,316.32
Bath and North East Somerset Council,80819882,LM6,Nursing Care,P11,"Adult Care, Health & Wellbeing",CEDAR CARE HOMES LTD,07/01/2019,316.32
Bath and North East Somerset Council,80819882,LM6,Nursing Care,P11,"Adult Care, Health & Wellbeing",CEDAR CARE HOMES LTD,07/01/2019,316.32
Bath and North East Somerset Council,80819882,LM6,Nursing Care,P11,"Adult Care, Health & Wellbeing",CEDAR CARE HOMES LTD,07/01/2019,316.32
Bath and North East Somerset Council,80819882,LM6,Nursing Care,P11,"Adult Care, Health & Wellbeing",CEDAR CARE HOMES LTD,07/01/2019,316.32
Bath and North East Somerset Council,80819869,LM6,Nursing Care,P11,"Adult Care, Health & Wellbeing",CEDAR PARK NURSING HOME,07/01/2019,316.32
Bath and North East Somerset Council,80819869,LM6,Nursing Care,P11,"Adult Care, Health & Wellbeing",CEDAR PARK NURSING HOME,07/01/2019,316.32
Bath and North East Somerset Council,80819869,LM6,Nursing Care,P11,"Adult Care, Health & Wellbeing",CEDAR PARK NURSING HOME,07/01/2019,316.32
Bath and North East Somerset Council,80819869,LM6,Nursing Care,P11,"Adult Care, Health & Wellbeing",CEDAR PARK NURSING HOME,07/01/2019,316.32
Bath and North East Somerset Council,80819869,LM6,Nursing Care,P11,"Adult Care, Health & Wellbeing",CEDAR PARK NURSING HOME,07/01/2019,316.32
Bath and North East Somerset Council,80819869,LM6,Nursing Care,P11,"Adult Care, Health & Wellbeing",CEDAR PARK NURSING HOME,07/01/2019,316.32
Bath and North East Somerset Council,80819869,LM6,Nursing Care,P11,"Adult Care, Health & Wellbeing",CEDAR PARK NURSING HOME,07/01/2019,316.32
Bath and North East Somerset Council,80819869,LM6,Nursing Care,P11,"Adult Care, Health & Wellbeing",CEDAR PARK NURSING HOME,07/01/2019,316.32
Bath and North East Somerset Council,80819869,LM6,Nursing Care,P11,"Adult Care, Health & Wellbeing",CEDAR PARK NURSING HOME,07/01/2019,316.32
Bath and North East Somerset Council,80819869,LM6,Nursing Care,P11,"Adult Care, Health & Wellbeing",CEDAR PARK NURSING HOME,07/01/2019,316.32
Bath and North East Somerset Council,80819869,LM6,Nursing Care,P11,"Adult Care, Health & Wellbeing",CEDAR PARK NURSING HOME,07/01/2019,316.32
Bath and North East Somerset Council,80819869,LM6,Nursing Care,P11,"Adult Care, Health & Wellbeing",CEDAR PARK NURSING HOME,07/01/2019,316.32
Bath and North East Somerset Council,80819869,LM6,Nursing Care,P11,"Adult Care, Health & Wellbeing",CEDAR PARK NURSING HOME,07/01/2019,316.32
Bath and North East Somerset Council,80819869,LM6,Nursing Care,P11,"Adult Care, Health & Wellbeing",CEDAR PARK NURSING HOME,07/01/2019,316.32
Bath and North East Somerset Council,80819869,LM6,Nursing Care,P11,"Adult Care, Health & Wellbeing",CEDAR PARK NURSING HOME,07/01/2019,316.32
Bath and North East Somerset Council,80819869,LM6,Nursing Care,P11,"Adult Care, Health & Wellbeing",CEDAR PARK NURSING HOME,07/01/2019,316.32
Bath and North East Somerset Council,80819869,LM6,Nursing Care,P11,"Adult Care, Health & Wellbeing",CEDAR PARK NURSING HOME,07/01/2019,316.32
Bath and North East Somerset Council,80819869,LM6,Nursing Care,P11,"Adult Care, Health & Wellbeing",CEDAR PARK NURSING HOME,07/01/2019,316.32
Bath and North East Somerset Council,80819869,LM6,Nursing Care,P11,"Adult Care, Health & Wellbeing",CEDAR PARK NURSING HOME,07/01/2019,316.32
Bath and North East Somerset Council,80819869,LM6,Nursing Care,P11,"Adult Care, Health & Wellbeing",CEDAR PARK NURSING HOME,07/01/2019,316.32
Bath and North East Somerset Council,80819869,LM6,Nursing Care,P11,"Adult Care, Health & Wellbeing",CEDAR PARK NURSING HOME,07/01/2019,316.32
Bath and North East Somerset Council,80819869,LM6,Nursing Care,P11,"Adult Care, Health & Wellbeing",CEDAR PARK NURSING HOME,07/01/2019,316.32
Bath and North East Somerset Council,80819883,LM6,Nursing Care,P11,"Adult Care, Health & Wellbeing",CHERRY GARDEN PROPERTIES LTD,07/01/2019,316.32
Bath and North East Somerset Council,80819883,LM6,Nursing Care,P11,"Adult Care, Health & Wellbeing",CHERRY GARDEN PROPERTIES LTD,07/01/2019,316.32
Bath and North East Somerset Council,80819883,LM6,Nursing Care,P11,"Adult Care, Health & Wellbeing",CHERRY GARDEN PROPERTIES LTD,07/01/2019,316.32
Bath and North East Somerset Council,80819883,LM6,Nursing Care,P11,"Adult Care, Health & Wellbeing",CHERRY GARDEN PROPERTIES LTD,07/01/2019,316.32
Bath and North East Somerset Council,80819883,LM6,Nursing Care,P11,"Adult Care, Health & Wellbeing",CHERRY GARDEN PROPERTIES LTD,07/01/2019,316.32
Bath and North East Somerset Council,80819883,LM6,Nursing Care,P11,"Adult Care, Health & Wellbeing",CHERRY GARDEN PROPERTIES LTD,07/01/2019,316.32
Bath and North East Somerset Council,80819883,LM6,Nursing Care,P11,"Adult Care, Health & Wellbeing",CHERRY GARDEN PROPERTIES LTD,07/01/2019,316.32
Bath and North East Somerset Council,80819883,LM6,Nursing Care,P11,"Adult Care, Health & Wellbeing",CHERRY GARDEN PROPERTIES LTD,07/01/2019,316.32
Bath and North East Somerset Council,80819883,LM6,Nursing Care,P11,"Adult Care, Health & Wellbeing",CHERRY GARDEN PROPERTIES LTD,07/01/2019,316.32
Bath and North East Somerset Council,80819883,LM6,Nursing Care,P11,"Adult Care, Health & Wellbeing",CHERRY GARDEN PROPERTIES LTD,07/01/2019,316.32
Bath and North East Somerset Council,80819883,LM6,Nursing Care,P11,"Adult Care, Health & Wellbeing",CHERRY GARDEN PROPERTIES LTD,07/01/2019,316.32
Bath and North East Somerset Council,80819883,LM6,Nursing Care,P11,"Adult Care, Health & Wellbeing",CHERRY GARDEN PROPERTIES LTD,07/01/2019,316.32
Bath and North East Somerset Council,80819883,LM6,Nursing Care,P11,"Adult Care, Health & Wellbeing",CHERRY GARDEN PROPERTIES LTD,07/01/2019,316.32
Bath and North East Somerset Council,80819883,LM6,Nursing Care,P11,"Adult Care, Health & Wellbeing",CHERRY GARDEN PROPERTIES LTD,07/01/2019,316.32
Bath and North East Somerset Council,80819883,LM6,Nursing Care,P11,"Adult Care, Health & Wellbeing",CHERRY GARDEN PROPERTIES LTD,07/01/2019,316.32
Bath and North East Somerset Council,80819883,LM6,Nursing Care,P11,"Adult Care, Health & Wellbeing",CHERRY GARDEN PROPERTIES LTD,07/01/2019,316.32
Bath and North East Somerset Council,80819883,LM6,Nursing Care,P11,"Adult Care, Health & Wellbeing",CHERRY GARDEN PROPERTIES LTD,07/01/2019,316.32
Bath and North East Somerset Council,80819883,LM6,Nursing Care,P11,"Adult Care, Health & Wellbeing",CHERRY GARDEN PROPERTIES LTD,07/01/2019,316.32
Bath and North East Somerset Council,80819883,LM6,Nursing Care,P11,"Adult Care, Health & Wellbeing",CHERRY GARDEN PROPERTIES LTD,07/01/2019,316.32
Bath and North East Somerset Council,80819883,LM6,Nursing Care,P11,"Adult Care, Health & Wellbeing",CHERRY GARDEN PROPERTIES LTD,07/01/2019,316.32
Bath and North East Somerset Council,80819883,LM6,Nursing Care,P11,"Adult Care, Health & Wellbeing",CHERRY GARDEN PROPERTIES LTD,07/01/2019,316.32
Bath and North East Somerset Council,80819883,LM6,Nursing Care,P11,"Adult Care, Health & Wellbeing",CHERRY GARDEN PROPERTIES LTD,07/01/2019,316.32
Bath and North East Somerset Council,80819883,LM6,Nursing Care,P11,"Adult Care, Health & Wellbeing",CHERRY GARDEN PROPERTIES LTD,07/01/2019,316.32
Bath and North East Somerset Council,80819865,LM6,Nursing Care,P11,"Adult Care, Health & Wellbeing",CHOLWELL HOUSE NURSING HOME,07/01/2019,316.32
Bath and North East Somerset Council,80819865,LM6,Nursing Care,P11,"Adult Care, Health & Wellbeing",CHOLWELL HOUSE NURSING HOME,07/01/2019,316.32
Bath and North East Somerset Council,80819865,LM6,Nursing Care,P11,"Adult Care, Health & Wellbeing",CHOLWELL HOUSE NURSING HOME,07/01/2019,316.32
Bath and North East Somerset Council,80819865,LM6,Nursing Care,P11,"Adult Care, Health & Wellbeing",CHOLWELL HOUSE NURSING HOME,07/01/2019,316.32
Bath and North East Somerset Council,80819865,LM6,Nursing Care,P11,"Adult Care, Health & Wellbeing",CHOLWELL HOUSE NURSING HOME,07/01/2019,316.32
Bath and North East Somerset Council,80819865,LM6,Nursing Care,P11,"Adult Care, Health & Wellbeing",CHOLWELL HOUSE NURSING HOME,07/01/2019,316.32
Bath and North East Somerset Council,80819865,LM6,Nursing Care,P11,"Adult Care, Health & Wellbeing",CHOLWELL HOUSE NURSING HOME,07/01/2019,316.32
Bath and North East Somerset Council,80819865,LM6,Nursing Care,P11,"Adult Care, Health & Wellbeing",CHOLWELL HOUSE NURSING HOME,07/01/2019,316.32
Bath and North East Somerset Council,80819865,LM6,Nursing Care,P11,"Adult Care, Health & Wellbeing",CHOLWELL HOUSE NURSING HOME,07/01/2019,316.32
Bath and North East Somerset Council,80819865,LM6,Nursing Care,P11,"Adult Care, Health & Wellbeing",CHOLWELL HOUSE NURSING HOME,07/01/2019,316.32
Bath and North East Somerset Council,80819865,LM6,Nursing Care,P11,"Adult Care, Health & Wellbeing",CHOLWELL HOUSE NURSING HOME,07/01/2019,316.32
Bath and North East Somerset Council,80819865,LM6,Nursing Care,P11,"Adult Care, Health & Wellbeing",CHOLWELL HOUSE NURSING HOME,07/01/2019,316.32
Bath and North East Somerset Council,80819865,LM6,Nursing Care,P11,"Adult Care, Health & Wellbeing",CHOLWELL HOUSE NURSING HOME,07/01/2019,316.32
Bath and North East Somerset Council,80819865,LM6,Nursing Care,P11,"Adult Care, Health & Wellbeing",CHOLWELL HOUSE NURSING HOME,07/01/2019,316.32
Bath and North East Somerset Council,80819865,LM6,Nursing Care,P11,"Adult Care, Health & Wellbeing",CHOLWELL HOUSE NURSING HOME,07/01/2019,316.32
Bath and North East Somerset Council,80819865,LM6,Nursing Care,P11,"Adult Care, Health & Wellbeing",CHOLWELL HOUSE NURSING HOME,07/01/2019,316.32
Bath and North East Somerset Council,80819865,LM6,Nursing Care,P11,"Adult Care, Health & Wellbeing",CHOLWELL HOUSE NURSING HOME,07/01/2019,316.32
Bath and North East Somerset Council,80819865,LM6,Nursing Care,P11,"Adult Care, Health & Wellbeing",CHOLWELL HOUSE NURSING HOME,07/01/2019,316.32
Bath and North East Somerset Council,80819865,LM6,Nursing Care,P11,"Adult Care, Health & Wellbeing",CHOLWELL HOUSE NURSING HOME,07/01/2019,316.32
Bath and North East Somerset Council,80819865,LM6,Nursing Care,P11,"Adult Care, Health & Wellbeing",CHOLWELL HOUSE NURSING HOME,07/01/2019,316.32
Bath and North East Somerset Council,80819886,LM6,Nursing Care,P11,"Adult Care, Health & Wellbeing",ST MONICAS GENERAL ACCOUNT,07/01/2019,316.32
Bath and North East Somerset Council,80819886,LM6,Nursing Care,P11,"Adult Care, Health & Wellbeing",ST MONICAS GENERAL ACCOUNT,07/01/2019,316.32
Bath and North East Somerset Council,80819886,LM6,Nursing Care,P11,"Adult Care, Health & Wellbeing",ST MONICAS GENERAL ACCOUNT,07/01/2019,316.32
Bath and North East Somerset Council,80819886,LM6,Nursing Care,P11,"Adult Care, Health & Wellbeing",ST MONICAS GENERAL ACCOUNT,07/01/2019,316.32
Bath and North East Somerset Council,80819886,LM6,Nursing Care,P11,"Adult Care, Health & Wellbeing",ST MONICAS GENERAL ACCOUNT,07/01/2019,316.32
Bath and North East Somerset Council,80819886,LM6,Nursing Care,P11,"Adult Care, Health & Wellbeing",ST MONICAS GENERAL ACCOUNT,07/01/2019,316.32
Bath and North East Somerset Council,80819886,LM6,Nursing Care,P11,"Adult Care, Health & Wellbeing",ST MONICAS GENERAL ACCOUNT,07/01/2019,316.32
Bath and North East Somerset Council,80819886,LM6,Nursing Care,P11,"Adult Care, Health & Wellbeing",ST MONICAS GENERAL ACCOUNT,07/01/2019,316.32
Bath and North East Somerset Council,80819886,LM6,Nursing Care,P11,"Adult Care, Health & Wellbeing",ST MONICAS GENERAL ACCOUNT,07/01/2019,316.32
Bath and North East Somerset Council,80819886,LM6,Nursing Care,P11,"Adult Care, Health & Wellbeing",ST MONICAS GENERAL ACCOUNT,07/01/2019,316.32
Bath and North East Somerset Council,80819886,LM6,Nursing Care,P11,"Adult Care, Health & Wellbeing",ST MONICAS GENERAL ACCOUNT,07/01/2019,316.32
Bath and North East Somerset Council,80819886,LM6,Nursing Care,P11,"Adult Care, Health & Wellbeing",ST MONICAS GENERAL ACCOUNT,07/01/2019,316.32
Bath and North East Somerset Council,80819886,LM6,Nursing Care,P11,"Adult Care, Health & Wellbeing",ST MONICAS GENERAL ACCOUNT,07/01/2019,316.32
Bath and North East Somerset Council,80819886,LM6,Nursing Care,P11,"Adult Care, Health & Wellbeing",ST MONICAS GENERAL ACCOUNT,07/01/2019,316.32
Bath and North East Somerset Council,80819886,LM6,Nursing Care,P11,"Adult Care, Health & Wellbeing",ST MONICAS GENERAL ACCOUNT,07/01/2019,316.32
Bath and North East Somerset Council,80819886,LM6,Nursing Care,P11,"Adult Care, Health & Wellbeing",ST MONICAS GENERAL ACCOUNT,07/01/2019,316.32
Bath and North East Somerset Council,80819886,LM6,Nursing Care,P11,"Adult Care, Health & Wellbeing",ST MONICAS GENERAL ACCOUNT,07/01/2019,316.32
Bath and North East Somerset Council,80819886,LM6,Nursing Care,P11,"Adult Care, Health & Wellbeing",ST MONICAS GENERAL ACCOUNT,07/01/2019,316.32
Bath and North East Somerset Council,80819886,LM6,Nursing Care,P11,"Adult Care, Health & Wellbeing",ST MONICAS GENERAL ACCOUNT,07/01/2019,316.32
Bath and North East Somerset Council,80819886,LM6,Nursing Care,P11,"Adult Care, Health & Wellbeing",ST MONICAS GENERAL ACCOUNT,07/01/2019,316.32
Bath and North East Somerset Council,80819886,LM6,Nursing Care,P11,"Adult Care, Health & Wellbeing",ST MONICAS GENERAL ACCOUNT,07/01/2019,316.32
Bath and North East Somerset Council,80819868,LM6,Nursing Care,P11,"Adult Care, Health & Wellbeing",CRANHILL NURSING HOME LTD,07/01/2019,316.32
Bath and North East Somerset Council,80819868,LM6,Nursing Care,P11,"Adult Care, Health & Wellbeing",CRANHILL NURSING HOME LTD,07/01/2019,316.32
Bath and North East Somerset Council,80819868,LM6,Nursing Care,P11,"Adult Care, Health & Wellbeing",CRANHILL NURSING HOME LTD,07/01/2019,316.32
Bath and North East Somerset Council,80819868,LM6,Nursing Care,P11,"Adult Care, Health & Wellbeing",CRANHILL NURSING HOME LTD,07/01/2019,316.32
Bath and North East Somerset Council,80819868,LM6,Nursing Care,P11,"Adult Care, Health & Wellbeing",CRANHILL NURSING HOME LTD,07/01/2019,316.32
Bath and North East Somerset Council,80819868,LM6,Nursing Care,P11,"Adult Care, Health & Wellbeing",CRANHILL NURSING HOME LTD,07/01/2019,316.32
Bath and North East Somerset Council,80819868,LM6,Nursing Care,P11,"Adult Care, Health & Wellbeing",CRANHILL NURSING HOME LTD,07/01/2019,316.32
Bath and North East Somerset Council,80819868,LM6,Nursing Care,P11,"Adult Care, Health & Wellbeing",CRANHILL NURSING HOME LTD,07/01/2019,316.32
Bath and North East Somerset Council,80819868,LM6,Nursing Care,P11,"Adult Care, Health & Wellbeing",CRANHILL NURSING HOME LTD,07/01/2019,316.32
Bath and North East Somerset Council,80819868,LM6,Nursing Care,P11,"Adult Care, Health & Wellbeing",CRANHILL NURSING HOME LTD,07/01/2019,316.32
Bath and North East Somerset Council,80819868,LM6,Nursing Care,P11,"Adult Care, Health & Wellbeing",CRANHILL NURSING HOME LTD,07/01/2019,316.32
Bath and North East Somerset Council,80819868,LM6,Nursing Care,P11,"Adult Care, Health & Wellbeing",CRANHILL NURSING HOME LTD,07/01/2019,316.32
Bath and North East Somerset Council,80819871,LM6,Nursing Care,P11,"Adult Care, Health & Wellbeing",CULVERHAY NURSING HOME,07/01/2019,316.32
Bath and North East Somerset Council,80819871,LM6,Nursing Care,P11,"Adult Care, Health & Wellbeing",CULVERHAY NURSING HOME,07/01/2019,316.32
Bath and North East Somerset Council,80819871,LM6,Nursing Care,P11,"Adult Care, Health & Wellbeing",CULVERHAY NURSING HOME,07/01/2019,316.32
Bath and North East Somerset Council,80819871,LM6,Nursing Care,P11,"Adult Care, Health & Wellbeing",CULVERHAY NURSING HOME,07/01/2019,316.32
Bath and North East Somerset Council,80819871,LM6,Nursing Care,P11,"Adult Care, Health & Wellbeing",CULVERHAY NURSING HOME,07/01/2019,316.32
Bath and North East Somerset Council,80819871,LM6,Nursing Care,P11,"Adult Care, Health & Wellbeing",CULVERHAY NURSING HOME,07/01/2019,316.32
Bath and North East Somerset Council,80819871,LM6,Nursing Care,P11,"Adult Care, Health & Wellbeing",CULVERHAY NURSING HOME,07/01/2019,316.32
Bath and North East Somerset Council,80819871,LM6,Nursing Care,P11,"Adult Care, Health & Wellbeing",CULVERHAY NURSING HOME,07/01/2019,316.32
Bath and North East Somerset Council,80819871,LM6,Nursing Care,P11,"Adult Care, Health & Wellbeing",CULVERHAY NURSING HOME,07/01/2019,316.32
Bath and North East Somerset Council,80819871,LM6,Nursing Care,P11,"Adult Care, Health & Wellbeing",CULVERHAY NURSING HOME,07/01/2019,316.32
Bath and North East Somerset Council,80819871,LM6,Nursing Care,P11,"Adult Care, Health & Wellbeing",CULVERHAY NURSING HOME,07/01/2019,316.32
Bath and North East Somerset Council,80819871,LM6,Nursing Care,P11,"Adult Care, Health & Wellbeing",CULVERHAY NURSING HOME,07/01/2019,316.32
Bath and North East Somerset Council,80819871,LM6,Nursing Care,P11,"Adult Care, Health & Wellbeing",CULVERHAY NURSING HOME,07/01/2019,316.32
Bath and North East Somerset Council,80819871,LM6,Nursing Care,P11,"Adult Care, Health & Wellbeing",CULVERHAY NURSING HOME,07/01/2019,316.32
Bath and North East Somerset Council,80819871,LM6,Nursing Care,P11,"Adult Care, Health & Wellbeing",CULVERHAY NURSING HOME,07/01/2019,316.32
Bath and North East Somerset Council,80819871,LM6,Nursing Care,P11,"Adult Care, Health & Wellbeing",CULVERHAY NURSING HOME,07/01/2019,316.32
Bath and North East Somerset Council,80819871,LM6,Nursing Care,P11,"Adult Care, Health & Wellbeing",CULVERHAY NURSING HOME,07/01/2019,316.32
Bath and North East Somerset Council,80819871,LM6,Nursing Care,P11,"Adult Care, Health & Wellbeing",CULVERHAY NURSING HOME,07/01/2019,316.32
Bath and North East Somerset Council,80819871,LM6,Nursing Care,P11,"Adult Care, Health & Wellbeing",CULVERHAY NURSING HOME,07/01/2019,316.32
Bath and North East Somerset Council,80819871,LM6,Nursing Care,P11,"Adult Care, Health & Wellbeing",CULVERHAY NURSING HOME,07/01/2019,316.32
Bath and North East Somerset Council,80819871,LM6,Nursing Care,P11,"Adult Care, Health & Wellbeing",CULVERHAY NURSING HOME,07/01/2019,316.32
Bath and North East Somerset Council,80819871,LM6,Nursing Care,P11,"Adult Care, Health & Wellbeing",CULVERHAY NURSING HOME,07/01/2019,316.32
Bath and North East Somerset Council,80819871,LM6,Nursing Care,P11,"Adult Care, Health & Wellbeing",CULVERHAY NURSING HOME,07/01/2019,316.32
Bath and North East Somerset Council,80819871,LM6,Nursing Care,P11,"Adult Care, Health & Wellbeing",CULVERHAY NURSING HOME,07/01/2019,316.32
Bath and North East Somerset Council,80819871,LM6,Nursing Care,P11,"Adult Care, Health & Wellbeing",CULVERHAY NURSING HOME,07/01/2019,316.32
Bath and North East Somerset Council,80819871,LM6,Nursing Care,P11,"Adult Care, Health & Wellbeing",CULVERHAY NURSING HOME,07/01/2019,316.32
Bath and North East Somerset Council,80819871,LM6,Nursing Care,P11,"Adult Care, Health & Wellbeing",CULVERHAY NURSING HOME,07/01/2019,316.32
Bath and North East Somerset Council,80819871,LM6,Nursing Care,P11,"Adult Care, Health & Wellbeing",CULVERHAY NURSING HOME,07/01/2019,316.32
Bath and North East Somerset Council,80819871,LM6,Nursing Care,P11,"Adult Care, Health & Wellbeing",CULVERHAY NURSING HOME,07/01/2019,316.32
Bath and North East Somerset Council,80819871,LM6,Nursing Care,P11,"Adult Care, Health & Wellbeing",CULVERHAY NURSING HOME,07/01/2019,316.32
Bath and North East Somerset Council,80819871,LM6,Nursing Care,P11,"Adult Care, Health & Wellbeing",CULVERHAY NURSING HOME,07/01/2019,316.32
Bath and North East Somerset Council,80819871,LM6,Nursing Care,P11,"Adult Care, Health & Wellbeing",CULVERHAY NURSING HOME,07/01/2019,316.32
Bath and North East Somerset Council,80819871,LM6,Nursing Care,P11,"Adult Care, Health & Wellbeing",CULVERHAY NURSING HOME,07/01/2019,316.32
Bath and North East Somerset Council,80819871,LM6,Nursing Care,P11,"Adult Care, Health & Wellbeing",CULVERHAY NURSING HOME,07/01/2019,316.32
Bath and North East Somerset Council,80819871,LM6,Nursing Care,P11,"Adult Care, Health & Wellbeing",CULVERHAY NURSING HOME,07/01/2019,316.32
Bath and North East Somerset Council,80819871,LM6,Nursing Care,P11,"Adult Care, Health & Wellbeing",CULVERHAY NURSING HOME,07/01/2019,316.32
Bath and North East Somerset Council,80819871,LM6,Nursing Care,P11,"Adult Care, Health & Wellbeing",CULVERHAY NURSING HOME,07/01/2019,316.32
Bath and North East Somerset Council,80819871,LM6,Nursing Care,P11,"Adult Care, Health & Wellbeing",CULVERHAY NURSING HOME,07/01/2019,316.32
Bath and North East Somerset Council,80819871,LM6,Nursing Care,P11,"Adult Care, Health & Wellbeing",CULVERHAY NURSING HOME,07/01/2019,316.32
Bath and North East Somerset Council,80819871,LM6,Nursing Care,P11,"Adult Care, Health & Wellbeing",CULVERHAY NURSING HOME,07/01/2019,316.32
Bath and North East Somerset Council,80819871,LM6,Nursing Care,P11,"Adult Care, Health & Wellbeing",CULVERHAY NURSING HOME,07/01/2019,316.32
Bath and North East Somerset Council,80819871,LM6,Nursing Care,P11,"Adult Care, Health & Wellbeing",CULVERHAY NURSING HOME,07/01/2019,316.32
Bath and North East Somerset Council,80819871,LM6,Nursing Care,P11,"Adult Care, Health & Wellbeing",CULVERHAY NURSING HOME,07/01/2019,316.32
Bath and North East Somerset Council,80819871,LM6,Nursing Care,P11,"Adult Care, Health & Wellbeing",CULVERHAY NURSING HOME,07/01/2019,316.32
Bath and North East Somerset Council,80819871,LM6,Nursing Care,P11,"Adult Care, Health & Wellbeing",CULVERHAY NURSING HOME,07/01/2019,316.32
Bath and North East Somerset Council,80819871,LM6,Nursing Care,P11,"Adult Care, Health & Wellbeing",CULVERHAY NURSING HOME,07/01/2019,316.32
Bath and North East Somerset Council,80819871,LM6,Nursing Care,P11,"Adult Care, Health & Wellbeing",CULVERHAY NURSING HOME,07/01/2019,316.32
Bath and North East Somerset Council,80819871,LM6,Nursing Care,P11,"Adult Care, Health & Wellbeing",CULVERHAY NURSING HOME,07/01/2019,316.32
Bath and North East Somerset Council,80819871,LM6,Nursing Care,P11,"Adult Care, Health & Wellbeing",CULVERHAY NURSING HOME,07/01/2019,316.32
Bath and North East Somerset Council,80819885,LM6,Nursing Care,P11,"Adult Care, Health & Wellbeing",GRACEWELL HEALTHCARE 3 LIMITED,07/01/2019,316.32
Bath and North East Somerset Council,80819885,LM6,Nursing Care,P11,"Adult Care, Health & Wellbeing",GRACEWELL HEALTHCARE 3 LIMITED,07/01/2019,316.32
Bath and North East Somerset Council,80819885,LM6,Nursing Care,P11,"Adult Care, Health & Wellbeing",GRACEWELL HEALTHCARE 3 LIMITED,07/01/2019,316.32
Bath and North East Somerset Council,80819885,LM6,Nursing Care,P11,"Adult Care, Health & Wellbeing",GRACEWELL HEALTHCARE 3 LIMITED,07/01/2019,316.32
Bath and North East Somerset Council,80819885,LM6,Nursing Care,P11,"Adult Care, Health & Wellbeing",GRACEWELL HEALTHCARE 3 LIMITED,07/01/2019,316.32
Bath and North East Somerset Council,80819885,LM6,Nursing Care,P11,"Adult Care, Health & Wellbeing",GRACEWELL HEALTHCARE 3 LIMITED,07/01/2019,316.32
Bath and North East Somerset Council,80819885,LM6,Nursing Care,P11,"Adult Care, Health & Wellbeing",GRACEWELL HEALTHCARE 3 LIMITED,07/01/2019,316.32
Bath and North East Somerset Council,80819885,LM6,Nursing Care,P11,"Adult Care, Health & Wellbeing",GRACEWELL HEALTHCARE 3 LIMITED,07/01/2019,316.32
Bath and North East Somerset Council,80819885,LM6,Nursing Care,P11,"Adult Care, Health & Wellbeing",GRACEWELL HEALTHCARE 3 LIMITED,07/01/2019,316.32
Bath and North East Somerset Council,80819885,LM6,Nursing Care,P11,"Adult Care, Health & Wellbeing",GRACEWELL HEALTHCARE 3 LIMITED,07/01/2019,316.32
Bath and North East Somerset Council,80819885,LM6,Nursing Care,P11,"Adult Care, Health & Wellbeing",GRACEWELL HEALTHCARE 3 LIMITED,07/01/2019,316.32
Bath and North East Somerset Council,80819885,LM6,Nursing Care,P11,"Adult Care, Health & Wellbeing",GRACEWELL HEALTHCARE 3 LIMITED,07/01/2019,316.32
Bath and North East Somerset Council,80819874,LM6,Nursing Care,P11,"Adult Care, Health & Wellbeing",LARKHALL SPRINGS NURSING HOME,07/01/2019,316.32
Bath and North East Somerset Council,80819874,LM6,Nursing Care,P11,"Adult Care, Health & Wellbeing",LARKHALL SPRINGS NURSING HOME,07/01/2019,316.32
Bath and North East Somerset Council,80819874,LM6,Nursing Care,P11,"Adult Care, Health & Wellbeing",LARKHALL SPRINGS NURSING HOME,07/01/2019,316.32
Bath and North East Somerset Council,80819874,LM6,Nursing Care,P11,"Adult Care, Health & Wellbeing",LARKHALL SPRINGS NURSING HOME,07/01/2019,316.32
Bath and North East Somerset Council,80819874,LM6,Nursing Care,P11,"Adult Care, Health & Wellbeing",LARKHALL SPRINGS NURSING HOME,07/01/2019,316.32
Bath and North East Somerset Council,80819874,LM6,Nursing Care,P11,"Adult Care, Health & Wellbeing",LARKHALL SPRINGS NURSING HOME,07/01/2019,316.32
Bath and North East Somerset Council,80819874,LM6,Nursing Care,P11,"Adult Care, Health & Wellbeing",LARKHALL SPRINGS NURSING HOME,07/01/2019,316.32
Bath and North East Somerset Council,80819874,LM6,Nursing Care,P11,"Adult Care, Health & Wellbeing",LARKHALL SPRINGS NURSING HOME,07/01/2019,316.32
Bath and North East Somerset Council,80819874,LM6,Nursing Care,P11,"Adult Care, Health & Wellbeing",LARKHALL SPRINGS NURSING HOME,07/01/2019,316.32
Bath and North East Somerset Council,80819874,LM6,Nursing Care,P11,"Adult Care, Health & Wellbeing",LARKHALL SPRINGS NURSING HOME,07/01/2019,316.32
Bath and North East Somerset Council,80819874,LM6,Nursing Care,P11,"Adult Care, Health & Wellbeing",LARKHALL SPRINGS NURSING HOME,07/01/2019,316.32
Bath and North East Somerset Council,80819874,LM6,Nursing Care,P11,"Adult Care, Health & Wellbeing",LARKHALL SPRINGS NURSING HOME,07/01/2019,316.32
Bath and North East Somerset Council,80819874,LM6,Nursing Care,P11,"Adult Care, Health & Wellbeing",LARKHALL SPRINGS NURSING HOME,07/01/2019,316.32
Bath and North East Somerset Council,80819874,LM6,Nursing Care,P11,"Adult Care, Health & Wellbeing",LARKHALL SPRINGS NURSING HOME,07/01/2019,316.32
Bath and North East Somerset Council,80819874,LM6,Nursing Care,P11,"Adult Care, Health & Wellbeing",LARKHALL SPRINGS NURSING HOME,07/01/2019,316.32
Bath and North East Somerset Council,80819874,LM6,Nursing Care,P11,"Adult Care, Health & Wellbeing",LARKHALL SPRINGS NURSING HOME,07/01/2019,316.32
Bath and North East Somerset Council,80819874,LM6,Nursing Care,P11,"Adult Care, Health & Wellbeing",LARKHALL SPRINGS NURSING HOME,07/01/2019,316.32
Bath and North East Somerset Council,80819874,LM6,Nursing Care,P11,"Adult Care, Health & Wellbeing",LARKHALL SPRINGS NURSING HOME,07/01/2019,316.32
Bath and North East Somerset Council,80819874,LM6,Nursing Care,P11,"Adult Care, Health & Wellbeing",LARKHALL SPRINGS NURSING HOME,07/01/2019,316.32
Bath and North East Somerset Council,80819874,LM6,Nursing Care,P11,"Adult Care, Health & Wellbeing",LARKHALL SPRINGS NURSING HOME,07/01/2019,316.32
Bath and North East Somerset Council,80819874,LM6,Nursing Care,P11,"Adult Care, Health & Wellbeing",LARKHALL SPRINGS NURSING HOME,07/01/2019,316.32
Bath and North East Somerset Council,80819874,LM6,Nursing Care,P11,"Adult Care, Health & Wellbeing",LARKHALL SPRINGS NURSING HOME,07/01/2019,316.32
Bath and North East Somerset Council,80819874,LM6,Nursing Care,P11,"Adult Care, Health & Wellbeing",LARKHALL SPRINGS NURSING HOME,07/01/2019,316.32
Bath and North East Somerset Council,80819874,LM6,Nursing Care,P11,"Adult Care, Health & Wellbeing",LARKHALL SPRINGS NURSING HOME,07/01/2019,316.32
Bath and North East Somerset Council,80819874,LM6,Nursing Care,P11,"Adult Care, Health & Wellbeing",LARKHALL SPRINGS NURSING HOME,07/01/2019,316.32
Bath and North East Somerset Council,80819874,LM6,Nursing Care,P11,"Adult Care, Health & Wellbeing",LARKHALL SPRINGS NURSING HOME,07/01/2019,316.32
Bath and North East Somerset Council,80819877,LM6,Nursing Care,P11,"Adult Care, Health & Wellbeing",LEONARD CHESHIRE FOUNDATION,07/01/2019,316.32
Bath and North East Somerset Council,80819877,LM6,Nursing Care,P11,"Adult Care, Health & Wellbeing",LEONARD CHESHIRE FOUNDATION,07/01/2019,316.32
Bath and North East Somerset Council,80819877,LM6,Nursing Care,P11,"Adult Care, Health & Wellbeing",LEONARD CHESHIRE FOUNDATION,07/01/2019,316.32
Bath and North East Somerset Council,80819877,LM6,Nursing Care,P11,"Adult Care, Health & Wellbeing",LEONARD CHESHIRE FOUNDATION,07/01/2019,316.32
Bath and North East Somerset Council,80819877,LM6,Nursing Care,P11,"Adult Care, Health & Wellbeing",LEONARD CHESHIRE FOUNDATION,07/01/2019,316.32
Bath and North East Somerset Council,80819877,LM6,Nursing Care,P11,"Adult Care, Health & Wellbeing",LEONARD CHESHIRE FOUNDATION,07/01/2019,316.32
Bath and North East Somerset Council,80819877,LM6,Nursing Care,P11,"Adult Care, Health & Wellbeing",LEONARD CHESHIRE FOUNDATION,07/01/2019,316.32
Bath and North East Somerset Council,80819877,LM6,Nursing Care,P11,"Adult Care, Health & Wellbeing",LEONARD CHESHIRE FOUNDATION,07/01/2019,316.32
Bath and North East Somerset Council,80819877,LM6,Nursing Care,P11,"Adult Care, Health & Wellbeing",LEONARD CHESHIRE FOUNDATION,07/01/2019,316.32
Bath and North East Somerset Council,80819877,LM6,Nursing Care,P11,"Adult Care, Health & Wellbeing",LEONARD CHESHIRE FOUNDATION,07/01/2019,316.32
Bath and North East Somerset Council,80819877,LM6,Nursing Care,P11,"Adult Care, Health & Wellbeing",LEONARD CHESHIRE FOUNDATION,07/01/2019,316.32
Bath and North East Somerset Council,80819877,LM6,Nursing Care,P11,"Adult Care, Health & Wellbeing",LEONARD CHESHIRE FOUNDATION,07/01/2019,316.32
Bath and North East Somerset Council,80819872,LM6,Nursing Care,P11,"Adult Care, Health & Wellbeing",REDACTED,07/01/2019,316.32
Bath and North East Somerset Council,80819872,LM6,Nursing Care,P11,"Adult Care, Health & Wellbeing",REDACTED,07/01/2019,316.32
Bath and North East Somerset Council,80819872,LM6,Nursing Care,P11,"Adult Care, Health & Wellbeing",REDACTED,07/01/2019,316.32
Bath and North East Somerset Council,80819872,LM6,Nursing Care,P11,"Adult Care, Health & Wellbeing",REDACTED,07/01/2019,316.32
Bath and North East Somerset Council,80819872,LM6,Nursing Care,P11,"Adult Care, Health & Wellbeing",REDACTED,07/01/2019,316.32
Bath and North East Somerset Council,80819872,LM6,Nursing Care,P11,"Adult Care, Health & Wellbeing",REDACTED,07/01/2019,316.32
Bath and North East Somerset Council,80819872,LM6,Nursing Care,P11,"Adult Care, Health & Wellbeing",REDACTED,07/01/2019,316.32
Bath and North East Somerset Council,80819872,LM6,Nursing Care,P11,"Adult Care, Health & Wellbeing",REDACTED,07/01/2019,316.32
Bath and North East Somerset Council,80819872,LM6,Nursing Care,P11,"Adult Care, Health & Wellbeing",REDACTED,07/01/2019,316.32
Bath and North East Somerset Council,80819872,LM6,Nursing Care,P11,"Adult Care, Health & Wellbeing",REDACTED,07/01/2019,316.32
Bath and North East Somerset Council,80819872,LM6,Nursing Care,P11,"Adult Care, Health & Wellbeing",REDACTED,07/01/2019,316.32
Bath and North East Somerset Council,80819872,LM6,Nursing Care,P11,"Adult Care, Health & Wellbeing",REDACTED,07/01/2019,316.32
Bath and North East Somerset Council,80819872,LM6,Nursing Care,P11,"Adult Care, Health & Wellbeing",REDACTED,07/01/2019,316.32
Bath and North East Somerset Council,80819875,LM6,Nursing Care,P11,"Adult Care, Health & Wellbeing",RNID  (REDACTED),07/01/2019,316.32
Bath and North East Somerset Council,80819875,LM6,Nursing Care,P11,"Adult Care, Health & Wellbeing",RNID  (REDACTED),07/01/2019,316.32
Bath and North East Somerset Council,80819875,LM6,Nursing Care,P11,"Adult Care, Health & Wellbeing",RNID  (REDACTED),07/01/2019,316.32
Bath and North East Somerset Council,80819875,LM6,Nursing Care,P11,"Adult Care, Health & Wellbeing",RNID  (REDACTED),07/01/2019,316.32
Bath and North East Somerset Council,80819875,LM6,Nursing Care,P11,"Adult Care, Health & Wellbeing",RNID  (REDACTED),07/01/2019,316.32
Bath and North East Somerset Council,80819875,LM6,Nursing Care,P11,"Adult Care, Health & Wellbeing",RNID  (REDACTED),07/01/2019,316.32
Bath and North East Somerset Council,80819867,LM6,Nursing Care,P11,"Adult Care, Health & Wellbeing",STANTON COURT,07/01/2019,316.32
Bath and North East Somerset Council,80819867,LM6,Nursing Care,P11,"Adult Care, Health & Wellbeing",STANTON COURT,07/01/2019,316.32
Bath and North East Somerset Council,80819867,LM6,Nursing Care,P11,"Adult Care, Health & Wellbeing",STANTON COURT,07/01/2019,316.32
Bath and North East Somerset Council,80819867,LM6,Nursing Care,P11,"Adult Care, Health & Wellbeing",STANTON COURT,07/01/2019,316.32
Bath and North East Somerset Council,80819867,LM6,Nursing Care,P11,"Adult Care, Health & Wellbeing",STANTON COURT,07/01/2019,316.32
Bath and North East Somerset Council,80819867,LM6,Nursing Care,P11,"Adult Care, Health & Wellbeing",STANTON COURT,07/01/2019,316.32
Bath and North East Somerset Council,80819867,LM6,Nursing Care,P11,"Adult Care, Health & Wellbeing",STANTON COURT,07/01/2019,316.32
Bath and North East Somerset Council,80819867,LM6,Nursing Care,P11,"Adult Care, Health & Wellbeing",STANTON COURT,07/01/2019,316.32
Bath and North East Somerset Council,80819867,LM6,Nursing Care,P11,"Adult Care, Health & Wellbeing",STANTON COURT,07/01/2019,316.32
Bath and North East Somerset Council,80819867,LM6,Nursing Care,P11,"Adult Care, Health & Wellbeing",STANTON COURT,07/01/2019,316.32
Bath and North East Somerset Council,80819867,LM6,Nursing Care,P11,"Adult Care, Health & Wellbeing",STANTON COURT,07/01/2019,316.32
Bath and North East Somerset Council,80819867,LM6,Nursing Care,P11,"Adult Care, Health & Wellbeing",STANTON COURT,07/01/2019,316.32
Bath and North East Somerset Council,80819867,LM6,Nursing Care,P11,"Adult Care, Health & Wellbeing",STANTON COURT,07/01/2019,316.32
Bath and North East Somerset Council,80819867,LM6,Nursing Care,P11,"Adult Care, Health & Wellbeing",STANTON COURT,07/01/2019,316.32
Bath and North East Somerset Council,80819876,LM6,Nursing Care,P11,"Adult Care, Health & Wellbeing",SUNNYMEDE LTD,07/01/2019,316.32
Bath and North East Somerset Council,80819876,LM6,Nursing Care,P11,"Adult Care, Health & Wellbeing",SUNNYMEDE LTD,07/01/2019,316.32
Bath and North East Somerset Council,80819876,LM6,Nursing Care,P11,"Adult Care, Health & Wellbeing",SUNNYMEDE LTD,07/01/2019,316.32
Bath and North East Somerset Council,80819876,LM6,Nursing Care,P11,"Adult Care, Health & Wellbeing",SUNNYMEDE LTD,07/01/2019,316.32
Bath and North East Somerset Council,80819876,LM6,Nursing Care,P11,"Adult Care, Health & Wellbeing",SUNNYMEDE LTD,07/01/2019,316.32
Bath and North East Somerset Council,80819876,LM6,Nursing Care,P11,"Adult Care, Health & Wellbeing",SUNNYMEDE LTD,07/01/2019,316.32
Bath and North East Somerset Council,80819876,LM6,Nursing Care,P11,"Adult Care, Health & Wellbeing",SUNNYMEDE LTD,07/01/2019,316.32
Bath and North East Somerset Council,80819876,LM6,Nursing Care,P11,"Adult Care, Health & Wellbeing",SUNNYMEDE LTD,07/01/2019,316.32
Bath and North East Somerset Council,80819876,LM6,Nursing Care,P11,"Adult Care, Health & Wellbeing",SUNNYMEDE LTD,07/01/2019,316.32
Bath and North East Somerset Council,80819876,LM6,Nursing Care,P11,"Adult Care, Health & Wellbeing",SUNNYMEDE LTD,07/01/2019,316.32
Bath and North East Somerset Council,80819876,LM6,Nursing Care,P11,"Adult Care, Health & Wellbeing",SUNNYMEDE LTD,07/01/2019,316.32
Bath and North East Somerset Council,80819876,LM6,Nursing Care,P11,"Adult Care, Health & Wellbeing",SUNNYMEDE LTD,07/01/2019,316.32
Bath and North East Somerset Council,80819876,LM6,Nursing Care,P11,"Adult Care, Health & Wellbeing",SUNNYMEDE LTD,07/01/2019,316.32
Bath and North East Somerset Council,80819876,LM6,Nursing Care,P11,"Adult Care, Health & Wellbeing",SUNNYMEDE LTD,07/01/2019,316.32
Bath and North East Somerset Council,80820033,LM6,Nursing Care,P11,"Adult Care, Health & Wellbeing",SUNNYMEDE LTD,07/01/2019,316.32
Bath and North East Somerset Council,80819879,LM6,Nursing Care,P11,"Adult Care, Health & Wellbeing",T C CAREHOME LTD,07/01/2019,316.32
Bath and North East Somerset Council,80819879,LM6,Nursing Care,P11,"Adult Care, Health & Wellbeing",T C CAREHOME LTD,07/01/2019,316.32
Bath and North East Somerset Council,80819879,LM6,Nursing Care,P11,"Adult Care, Health & Wellbeing",T C CAREHOME LTD,07/01/2019,316.32
Bath and North East Somerset Council,80819879,LM6,Nursing Care,P11,"Adult Care, Health & Wellbeing",T C CAREHOME LTD,07/01/2019,316.32
Bath and North East Somerset Council,80819879,LM6,Nursing Care,P11,"Adult Care, Health & Wellbeing",T C CAREHOME LTD,07/01/2019,316.32
Bath and North East Somerset Council,80819879,LM6,Nursing Care,P11,"Adult Care, Health & Wellbeing",T C CAREHOME LTD,07/01/2019,316.32
Bath and North East Somerset Council,80819879,LM6,Nursing Care,P11,"Adult Care, Health & Wellbeing",T C CAREHOME LTD,07/01/2019,316.32
Bath and North East Somerset Council,80819879,LM6,Nursing Care,P11,"Adult Care, Health & Wellbeing",T C CAREHOME LTD,07/01/2019,316.32
Bath and North East Somerset Council,80819879,LM6,Nursing Care,P11,"Adult Care, Health & Wellbeing",T C CAREHOME LTD,07/01/2019,316.32
Bath and North East Somerset Council,80819879,LM6,Nursing Care,P11,"Adult Care, Health & Wellbeing",T C CAREHOME LTD,07/01/2019,316.32
Bath and North East Somerset Council,80819879,LM6,Nursing Care,P11,"Adult Care, Health & Wellbeing",T C CAREHOME LTD,07/01/2019,316.32
Bath and North East Somerset Council,80819879,LM6,Nursing Care,P11,"Adult Care, Health & Wellbeing",T C CAREHOME LTD,07/01/2019,316.32
Bath and North East Somerset Council,80819879,LM6,Nursing Care,P11,"Adult Care, Health & Wellbeing",T C CAREHOME LTD,07/01/2019,316.32
Bath and North East Somerset Council,80819879,LM6,Nursing Care,P11,"Adult Care, Health & Wellbeing",T C CAREHOME LTD,07/01/2019,316.32
Bath and North East Somerset Council,80819879,LM6,Nursing Care,P11,"Adult Care, Health & Wellbeing",T C CAREHOME LTD,07/01/2019,316.32
Bath and North East Somerset Council,80819879,LM6,Nursing Care,P11,"Adult Care, Health & Wellbeing",T C CAREHOME LTD,07/01/2019,316.32
Bath and North East Somerset Council,80819879,LM6,Nursing Care,P11,"Adult Care, Health & Wellbeing",T C CAREHOME LTD,07/01/2019,316.32
Bath and North East Somerset Council,80819879,LM6,Nursing Care,P11,"Adult Care, Health & Wellbeing",T C CAREHOME LTD,07/01/2019,316.32
Bath and North East Somerset Council,80819879,LM6,Nursing Care,P11,"Adult Care, Health & Wellbeing",T C CAREHOME LTD,07/01/2019,316.32
Bath and North East Somerset Council,80819879,LM6,Nursing Care,P11,"Adult Care, Health & Wellbeing",T C CAREHOME LTD,07/01/2019,316.32
Bath and North East Somerset Council,80819879,LM6,Nursing Care,P11,"Adult Care, Health & Wellbeing",T C CAREHOME LTD,07/01/2019,316.32
Bath and North East Somerset Council,80819879,LM6,Nursing Care,P11,"Adult Care, Health & Wellbeing",T C CAREHOME LTD,07/01/2019,316.32
Bath and North East Somerset Council,80819879,LM6,Nursing Care,P11,"Adult Care, Health & Wellbeing",T C CAREHOME LTD,07/01/2019,316.32
Bath and North East Somerset Council,80819770,LL8,Individualised Budget,P11,"Adult Care, Health & Wellbeing",PHOENIX (SW) LTD,07/01/2019,325.76
Bath and North East Somerset Council,80819770,LL8,Individualised Budget,P11,"Adult Care, Health & Wellbeing",PHOENIX (SW) LTD,07/01/2019,325.78
Bath and North East Somerset Council,80819770,LL8,Individualised Budget,P11,"Adult Care, Health & Wellbeing",PHOENIX (SW) LTD,07/01/2019,326.00
Bath and North East Somerset Council,80820067,LL3,Supported Living,P11,"Adult Care, Health & Wellbeing",OPTIONS FOR LIVING LTD,07/01/2019,330.88
Bath and North East Somerset Council,80820066,LL3,Supported Living,P11,"Adult Care, Health & Wellbeing",ARCH CARE SERVICES,07/01/2019,367.20
Bath and North East Somerset Council,80819770,LL8,Individualised Budget,P11,"Adult Care, Health & Wellbeing",PHOENIX (SW) LTD,07/01/2019,367.80
Bath and North East Somerset Council,80820067,LL3,Supported Living,P11,"Adult Care, Health & Wellbeing",OPTIONS FOR LIVING LTD,07/01/2019,368.64
Bath and North East Somerset Council,10891886,3N7,PCB Misc. Costs,P15,Development & Neighbourhoods,DENNIS EAGLE LTD,07/01/2019,370.00
Bath and North East Somerset Council,80820067,LL3,Supported Living,P11,"Adult Care, Health & Wellbeing",OPTIONS FOR LIVING LTD,07/01/2019,372.24
Bath and North East Somerset Council,80820067,LL3,Supported Living,P11,"Adult Care, Health & Wellbeing",OPTIONS FOR LIVING LTD,07/01/2019,372.24
Bath and North East Somerset Council,80820067,LL3,Supported Living,P11,"Adult Care, Health & Wellbeing",OPTIONS FOR LIVING LTD,07/01/2019,372.24
Bath and North East Somerset Council,80820067,LL3,Supported Living,P11,"Adult Care, Health & Wellbeing",OPTIONS FOR LIVING LTD,07/01/2019,372.24
Bath and North East Somerset Council,80820067,LL3,Supported Living,P11,"Adult Care, Health & Wellbeing",OPTIONS FOR LIVING LTD,07/01/2019,372.24
Bath and North East Somerset Council,80820067,LL3,Supported Living,P11,"Adult Care, Health & Wellbeing",OPTIONS FOR LIVING LTD,07/01/2019,372.24
Bath and North East Somerset Council,80820067,LL3,Supported Living,P11,"Adult Care, Health & Wellbeing",OPTIONS FOR LIVING LTD,07/01/2019,372.24
Bath and North East Somerset Council,80820067,LL3,Supported Living,P11,"Adult Care, Health & Wellbeing",OPTIONS FOR LIVING LTD,07/01/2019,372.24
Bath and North East Somerset Council,80820067,LL3,Supported Living,P11,"Adult Care, Health & Wellbeing",OPTIONS FOR LIVING LTD,07/01/2019,372.24
Bath and North East Somerset Council,80820067,LL3,Supported Living,P11,"Adult Care, Health & Wellbeing",OPTIONS FOR LIVING LTD,07/01/2019,372.24
Bath and North East Somerset Council,10892252,LJ4,Contracts,P18,Transport & Environment,ROMAN CONTRACTS (BATH) LTD,07/01/2019,373.75
Bath and North East Somerset Council,80819770,LL8,Individualised Budget,P11,"Adult Care, Health & Wellbeing",PHOENIX (SW) LTD,07/01/2019,375.00
Bath and North East Somerset Council,80819666,LL8,Individualised Budget,P11,"Adult Care, Health & Wellbeing",PENDERELS TRUST,07/01/2019,385.24
Bath and North East Somerset Council,10892233,DB1,Agency Staff,P15,Development & Neighbourhoods,M4 RECRUITMENT LTD,07/01/2019,390.08
Bath and North East Somerset Council,80820016,XD3,Client Contributions,P11,"Adult Care, Health & Wellbeing",CHOLWELL HOUSE NURSING HOME,07/01/2019,398.51
Bath and North East Somerset Council,80819770,LL8,Individualised Budget,P11,"Adult Care, Health & Wellbeing",PHOENIX (SW) LTD,07/01/2019,400.36
Bath and North East Somerset Council,80820023,XD3,Client Contributions,P11,"Adult Care, Health & Wellbeing",REDACTED,07/01/2019,401.16
Bath and North East Somerset Council,80819770,LL8,Individualised Budget,P11,"Adult Care, Health & Wellbeing",PHOENIX (SW) LTD,07/01/2019,402.90
Bath and North East Somerset Council,80819770,LL8,Individualised Budget,P11,"Adult Care, Health & Wellbeing",PHOENIX (SW) LTD,07/01/2019,404.00
Bath and North East Somerset Council,80819770,LL8,Individualised Budget,P11,"Adult Care, Health & Wellbeing",PHOENIX (SW) LTD,07/01/2019,404.72
Bath and North East Somerset Council,80819770,LL8,Individualised Budget,P11,"Adult Care, Health & Wellbeing",PHOENIX (SW) LTD,07/01/2019,407.16
Bath and North East Somerset Council,80819770,LL8,Individualised Budget,P11,"Adult Care, Health & Wellbeing",PHOENIX (SW) LTD,07/01/2019,412.54
Bath and North East Somerset Council,80820067,LL3,Supported Living,P11,"Adult Care, Health & Wellbeing",OPTIONS FOR LIVING LTD,07/01/2019,413.60
Bath and North East Somerset Council,80819770,LL8,Individualised Budget,P11,"Adult Care, Health & Wellbeing",PHOENIX (SW) LTD,07/01/2019,420.00
Bath and North East Somerset Council,80820067,LL3,Supported Living,P11,"Adult Care, Health & Wellbeing",OPTIONS FOR LIVING LTD,07/01/2019,431.33
Bath and North East Somerset Council,10892331,HA1,Responsive Maintenance,P16,Economic & Community Regeneration,AVON FIRE SYSTEMS LTD,07/01/2019,435.00
Bath and North East Somerset Council,80819770,LL8,Individualised Budget,P11,"Adult Care, Health & Wellbeing",PHOENIX (SW) LTD,07/01/2019,435.94
Bath and North East Somerset Council,10891508,LJ1,Consultants Fees,P17,Transformation & Customer Services,MARKETING MEANS UK LTD,07/01/2019,437.00
Bath and North East Somerset Council,80819770,LL8,Individualised Budget,P11,"Adult Care, Health & Wellbeing",PHOENIX (SW) LTD,07/01/2019,442.56
Bath and North East Somerset Council,10892430,PB4,Payments to Private Contractors,P15,Development & Neighbourhoods,CLEANSING SERVICE GROUP LTD,07/01/2019,447.12
Bath and North East Somerset Council,10892379,HA1,Responsive Maintenance,P16,Economic & Community Regeneration,VALIANT ENGINEERING SERVICES LTD,07/01/2019,450.00
Bath and North East Somerset Council,10892394,LJ4,Contracts,P18,Transport & Environment,EAST HARPTREE COUNTRY CABS,07/01/2019,450.10
Bath and North East Somerset Council,80820052,LM3,Residential Care,P11,"Adult Care, Health & Wellbeing",BEDBOROUGH HOUSE,07/01/2019,454.50
Bath and North East Somerset Council,80819770,LL8,Individualised Budget,P11,"Adult Care, Health & Wellbeing",PHOENIX (SW) LTD,07/01/2019,458.08
Bath and North East Somerset Council,10892348,LA1,Equipment Purchase,P16,Economic & Community Regeneration,ASHTON AIR CONDITIONING SERVICES LIMITED,07/01/2019,480.00
Bath and North East Somerset Council,80820067,LL3,Supported Living,P11,"Adult Care, Health & Wellbeing",OPTIONS FOR LIVING LTD,07/01/2019,480.36
Bath and North East Somerset Council,80820056,LL3,Supported Living,P11,"Adult Care, Health & Wellbeing",SWALLOW LTD,07/01/2019,481.75
Bath and North East Somerset Council,80820069,LL3,Supported Living,P11,"Adult Care, Health & Wellbeing",MAPLES COMMUNITY CARE LTD,07/01/2019,484.20
Bath and North East Somerset Council,80819770,LL8,Individualised Budget,P11,"Adult Care, Health & Wellbeing",PHOENIX (SW) LTD,07/01/2019,486.00
Bath and North East Somerset Council,80820067,LL3,Supported Living,P11,"Adult Care, Health & Wellbeing",OPTIONS FOR LIVING LTD,07/01/2019,496.32
Bath and North East Somerset Council,80820067,LL3,Supported Living,P11,"Adult Care, Health & Wellbeing",OPTIONS FOR LIVING LTD,07/01/2019,496.32
Bath and North East Somerset Council,80820067,LL3,Supported Living,P11,"Adult Care, Health & Wellbeing",OPTIONS FOR LIVING LTD,07/01/2019,496.32
Bath and North East Somerset Council,80820067,LL3,Supported Living,P11,"Adult Care, Health & Wellbeing",OPTIONS FOR LIVING LTD,07/01/2019,496.32
Bath and North East Somerset Council,80820060,LL3,Supported Living,P11,"Adult Care, Health & Wellbeing",DIMENSIONS (UK) LTD,07/01/2019,504.86
Bath and North East Somerset Council,10892385,LH3,Publicity,P16,Economic & Community Regeneration,WORLD OF WEDMIN LTD,07/01/2019,507.00
Bath and North East Somerset Council,10892295,LN1,Telephones,P10,Finance & Efficiency,ONECOM LTD,07/01/2019,508.76
Bath and North East Somerset Council,80819540,LL8,Individualised Budget,P11,"Adult Care, Health & Wellbeing",REDACTED,07/01/2019,520.00
Bath and North East Somerset Council,80819624,LL8,Individualised Budget,P11,"Adult Care, Health & Wellbeing",REDACTED,07/01/2019,520.42
Bath and North East Somerset Council,80819769,LL8,Individualised Budget,P11,"Adult Care, Health & Wellbeing",REDACTED,07/01/2019,523.76
Bath and North East Somerset Council,80819936,LM6,Nursing Care,P11,"Adult Care, Health & Wellbeing",ROSEVILLE CARE HOMES MELKSHAM,07/01/2019,525.60
Bath and North East Somerset Council,80819666,LL8,Individualised Budget,P11,"Adult Care, Health & Wellbeing",PENDERELS TRUST,07/01/2019,528.24
Bath and North East Somerset Council,80819833,LL4,Direct Payments,P12,Children & Young People,REDACTED,07/01/2019,529.40
Bath and North East Somerset Council,80820067,LL3,Supported Living,P11,"Adult Care, Health & Wellbeing",OPTIONS FOR LIVING LTD,07/01/2019,537.68
Bath and North East Somerset Council,80819770,LL8,Individualised Budget,P11,"Adult Care, Health & Wellbeing",PHOENIX (SW) LTD,07/01/2019,548.00
Bath and North East Somerset Council,80819734,LL8,Individualised Budget,P11,"Adult Care, Health & Wellbeing",REDACTED,07/01/2019,554.12
Bath and North East Somerset Council,80819770,LL8,Individualised Budget,P11,"Adult Care, Health & Wellbeing",PHOENIX (SW) LTD,07/01/2019,560.00
Bath and North East Somerset Council,80819662,LL8,Individualised Budget,P11,"Adult Care, Health & Wellbeing",REDACTED,07/01/2019,576.00
Bath and North East Somerset Council,10892432,LJ4,Contracts,P18,Transport & Environment,KEYNSHAM CARS,07/01/2019,576.00
Bath and North East Somerset Council,80820056,LL3,Supported Living,P11,"Adult Care, Health & Wellbeing",SWALLOW LTD,07/01/2019,578.10
Bath and North East Somerset Council,80820056,LL3,Supported Living,P11,"Adult Care, Health & Wellbeing",SWALLOW LTD,07/01/2019,578.10
Bath and North East Somerset Council,80820056,LL3,Supported Living,P11,"Adult Care, Health & Wellbeing",SWALLOW LTD,07/01/2019,578.10
Bath and North East Somerset Council,80819770,LL8,Individualised Budget,P11,"Adult Care, Health & Wellbeing",PHOENIX (SW) LTD,07/01/2019,585.63
Bath and North East Somerset Council,10891450,3F7,PCB External Fees,P16,Economic & Community Regeneration,TROWERS & HAMLINS LLP,07/01/2019,596.34
Bath and North East Somerset Council,10892240,LJ4,Contracts,P15,Development & Neighbourhoods,ROMAQUIP LTD,07/01/2019,597.53
Bath and North East Somerset Council,10892246,3J2,PCB Consultants,P10,Finance & Efficiency,PEOPLE SOURCE CONSULTING LTD,07/01/2019,600.00
Bath and North East Somerset Council,80819623,LL8,Individualised Budget,P11,"Adult Care, Health & Wellbeing",REDACTED,07/01/2019,603.44
Bath and North East Somerset Council,10892260,HK2,Street Lighting Maintenance,P18,Transport & Environment,WESTERN POWER DISTRIBUTION (SO,07/01/2019,606.76
Bath and North East Somerset Council,80820056,LL3,Supported Living,P11,"Adult Care, Health & Wellbeing",SWALLOW LTD,07/01/2019,616.64
Bath and North East Somerset Council,80819645,LL8,Individualised Budget,P11,"Adult Care, Health & Wellbeing",REDACTED,07/01/2019,616.72
Bath and North East Somerset Council,80820067,LL3,Supported Living,P11,"Adult Care, Health & Wellbeing",OPTIONS FOR LIVING LTD,07/01/2019,620.40
Bath and North East Somerset Council,10892274,LJ4,Contracts,P18,Transport & Environment,ROMAN CONTRACTS (BATH) LTD,07/01/2019,621.00
Bath and North East Somerset Council,80819740,LL8,Individualised Budget,P11,"Adult Care, Health & Wellbeing",REDACTED,07/01/2019,627.52
Bath and North East Somerset Council,10892218,LF6,Subscriptions,P10,Finance & Efficiency,PRENAX LTD,07/01/2019,630.91
Bath and North East Somerset Council,80819770,LL8,Individualised Budget,P11,"Adult Care, Health & Wellbeing",PHOENIX (SW) LTD,07/01/2019,639.00
Bath and North East Somerset Council,80820060,LL3,Supported Living,P11,"Adult Care, Health & Wellbeing",DIMENSIONS (UK) LTD,07/01/2019,640.62
Bath and North East Somerset Council,80819770,LL8,Individualised Budget,P11,"Adult Care, Health & Wellbeing",PHOENIX (SW) LTD,07/01/2019,650.00
Bath and North East Somerset Council,10892382,HA1,Responsive Maintenance,P16,Economic & Community Regeneration,ASHTON AIR CONDITIONING SERVICES LIMITED,07/01/2019,658.00
Bath and North East Somerset Council,80819770,LL8,Individualised Budget,P11,"Adult Care, Health & Wellbeing",PHOENIX (SW) LTD,07/01/2019,664.50
Bath and North East Somerset Council,80819770,LL8,Individualised Budget,P11,"Adult Care, Health & Wellbeing",PHOENIX (SW) LTD,07/01/2019,679.80
Bath and North East Somerset Council,10892371,LK1,Fees,P10,Finance & Efficiency,BAILEY PARTNERSHIP (CONSULTANTS) LLP,07/01/2019,682.50
Bath and North East Somerset Council,80819607,LL8,Individualised Budget,P11,"Adult Care, Health & Wellbeing",REDACTED,07/01/2019,696.84
Bath and North East Somerset Council,80819635,LL8,Individualised Budget,P11,"Adult Care, Health & Wellbeing",REDACTED,07/01/2019,699.66
Bath and North East Somerset Council,10892312,LK1,Fees,P12,Children & Young People,BRISTOL CITY COUNCIL,07/01/2019,700.00
Bath and North East Somerset Council,80819591,LL8,Individualised Budget,P11,"Adult Care, Health & Wellbeing",REDACTED,07/01/2019,700.00
Bath and North East Somerset Council,10892347,HA1,Responsive Maintenance,P16,Economic & Community Regeneration,AVON ALARMS LIMITED,07/01/2019,715.00
Bath and North East Somerset Council,80819784,LL8,Individualised Budget,P12,Children & Young People,REDACTED,07/01/2019,716.94
Bath and North East Somerset Council,80819771,LL8,Individualised Budget,P11,"Adult Care, Health & Wellbeing",REDACTED,07/01/2019,718.50
Bath and North East Somerset Council,10892390,LJ4,Contracts,P18,Transport & Environment,T WESTLAKE ACCESS TRAVEL,07/01/2019,720.00
Bath and North East Somerset Council,80819770,LL8,Individualised Budget,P11,"Adult Care, Health & Wellbeing",PHOENIX (SW) LTD,07/01/2019,722.00
Bath and North East Somerset Council,80819663,LL8,Individualised Budget,P11,"Adult Care, Health & Wellbeing",REDACTED,07/01/2019,728.00
Bath and North East Somerset Council,80819701,LL8,Individualised Budget,P11,"Adult Care, Health & Wellbeing",REDACTED,07/01/2019,730.54
Bath and North East Somerset Council,80820056,LL3,Supported Living,P11,"Adult Care, Health & Wellbeing",SWALLOW LTD,07/01/2019,732.26
Bath and North East Somerset Council,80819715,LL8,Individualised Budget,P11,"Adult Care, Health & Wellbeing",REDACTED,07/01/2019,734.62
Bath and North East Somerset Council,80819710,LL8,Individualised Budget,P11,"Adult Care, Health & Wellbeing",REDACTED,07/01/2019,742.48
Bath and North East Somerset Council,80820060,LL3,Supported Living,P11,"Adult Care, Health & Wellbeing",DIMENSIONS (UK) LTD,07/01/2019,744.16
Bath and North East Somerset Council,80819558,LL8,Individualised Budget,P11,"Adult Care, Health & Wellbeing",REDACTED,07/01/2019,744.96
Bath and North East Somerset Council,80819562,LL8,Individualised Budget,P11,"Adult Care, Health & Wellbeing",REDACTED,07/01/2019,748.54
Bath and North East Somerset Council,10892346,LJ4,Contracts,P15,Development & Neighbourhoods,CWS ENGINEERING LTD,07/01/2019,760.00
Bath and North East Somerset Council,80819770,LL8,Individualised Budget,P11,"Adult Care, Health & Wellbeing",PHOENIX (SW) LTD,07/01/2019,765.10
Bath and North East Somerset Council,10892442,LJ4,Contracts,P15,Development & Neighbourhoods,FAUN ZOELLOR UK LTD,07/01/2019,774.29
Bath and North East Somerset Council,80819795,LL8,Individualised Budget,P11,"Adult Care, Health & Wellbeing",REDACTED,07/01/2019,780.00
Bath and North East Somerset Council,80819463,LL8,Individualised Budget,P11,"Adult Care, Health & Wellbeing",REDACTED,07/01/2019,782.00
Bath and North East Somerset Council,80820056,LL3,Supported Living,P11,"Adult Care, Health & Wellbeing",SWALLOW LTD,07/01/2019,782.37
Bath and North East Somerset Council,80819758,LL8,Individualised Budget,P11,"Adult Care, Health & Wellbeing",REDACTED,07/01/2019,789.90
Bath and North East Somerset Council,80819634,LL8,Individualised Budget,P11,"Adult Care, Health & Wellbeing",REDACTED,07/01/2019,791.40
Bath and North East Somerset Council,10892397,LJ4,Contracts,P18,Transport & Environment,RUSSELL CONTRACTS (SW) LIMITED,07/01/2019,792.00
Bath and North East Somerset Council,80819529,LL8,Individualised Budget,P12,Children & Young People,REDACTED,07/01/2019,795.08
Bath and North East Somerset Council,80819666,LL8,Individualised Budget,P11,"Adult Care, Health & Wellbeing",PENDERELS TRUST,07/01/2019,798.00
Bath and North East Somerset Council,80819577,LL8,Individualised Budget,P11,"Adult Care, Health & Wellbeing",REDACTED,07/01/2019,799.00
Bath and North East Somerset Council,10892270,LJ4,Contracts,P18,Transport & Environment,TRAVELBILLITY LTD,07/01/2019,799.20
Bath and North East Somerset Council,10892477,EA1,Training,P12,Children & Young People,THE TRAINING EXCHANGE,07/01/2019,800.00
Bath and North East Somerset Council,80820060,LL3,Supported Living,P11,"Adult Care, Health & Wellbeing",DIMENSIONS (UK) LTD,07/01/2019,801.62
Bath and North East Somerset Council,80819561,LL8,Individualised Budget,P11,"Adult Care, Health & Wellbeing",REDACTED,07/01/2019,802.80
Bath and North East Somerset Council,80819598,LL8,Individualised Budget,P11,"Adult Care, Health & Wellbeing",REDACTED,07/01/2019,807.56
Bath and North East Somerset Council,10892362,3F7,PCB External Fees,P11,"Adult Care, Health & Wellbeing",MACE LIMITED,07/01/2019,820.00
Bath and North East Somerset Council,80819988,LM3,Residential Care,P11,"Adult Care, Health & Wellbeing",TIDINGS CARE HOME LTD,07/01/2019,820.00
Bath and North East Somerset Council,80820060,LL3,Supported Living,P11,"Adult Care, Health & Wellbeing",DIMENSIONS (UK) LTD,07/01/2019,823.56
Bath and North East Somerset Council,80820067,LL3,Supported Living,P11,"Adult Care, Health & Wellbeing",OPTIONS FOR LIVING LTD,07/01/2019,827.20
Bath and North East Somerset Council,80820031,LM3,Residential Care,P11,"Adult Care, Health & Wellbeing",DIMENSIONS (UK) LTD,07/01/2019,830.02
Bath and North East Somerset Council,80820031,LM3,Residential Care,P11,"Adult Care, Health & Wellbeing",DIMENSIONS (UK) LTD,07/01/2019,830.02
Bath and North East Somerset Council,80820039,LM6,Nursing Care,P11,"Adult Care, Health & Wellbeing",BARKER CHEMICALS LTD T/A ST TERESA'S NH,07/01/2019,831.81
Bath and North East Somerset Council,80819533,LL8,Individualised Budget,P11,"Adult Care, Health & Wellbeing",REDACTED,07/01/2019,840.00
Bath and North East Somerset Council,80820060,LL3,Supported Living,P11,"Adult Care, Health & Wellbeing",DIMENSIONS (UK) LTD,07/01/2019,846.68
Bath and North East Somerset Council,80819856,LL8,Individualised Budget,P11,"Adult Care, Health & Wellbeing",REDACTED,07/01/2019,846.72
Bath and North East Somerset Council,80819770,LL8,Individualised Budget,P11,"Adult Care, Health & Wellbeing",PHOENIX (SW) LTD,07/01/2019,850.00
Bath and North East Somerset Council,80819446,LL8,Individualised Budget,P11,"Adult Care, Health & Wellbeing",REDACTED,07/01/2019,850.20
Bath and North East Somerset Council,10892413,LJ4,Contracts,P18,Transport & Environment,RUSSELL CONTRACTS (SW) LIMITED,07/01/2019,856.00
Bath and North East Somerset Council,10891670,LP1,Hardware Purchase,P16,Economic & Community Regeneration,MAINTEL EUROPE LTD,07/01/2019,856.24
Bath and North East Somerset Council,80819593,LL8,Individualised Budget,P11,"Adult Care, Health & Wellbeing",REDACTED,07/01/2019,858.00
Bath and North East Somerset Council,80819800,LL8,Individualised Budget,P11,"Adult Care, Health & Wellbeing",REDACTED,07/01/2019,861.40
Bath and North East Somerset Council,80819579,LL8,Individualised Budget,P11,"Adult Care, Health & Wellbeing",REDACTED,07/01/2019,864.00
Bath and North East Somerset Council,80820060,LL3,Supported Living,P11,"Adult Care, Health & Wellbeing",DIMENSIONS (UK) LTD,07/01/2019,865.16
Bath and North East Somerset Council,80820056,LL3,Supported Living,P11,"Adult Care, Health & Wellbeing",SWALLOW LTD,07/01/2019,867.15
Bath and North East Somerset Council,10892416,LJ4,Contracts,P18,Transport & Environment,HIGHWAY TAXIS & TRAVEL,07/01/2019,871.50
Bath and North East Somerset Council,80819770,LL8,Individualised Budget,P11,"Adult Care, Health & Wellbeing",PHOENIX (SW) LTD,07/01/2019,873.34
Bath and North East Somerset Council,80819770,LL8,Individualised Budget,P11,"Adult Care, Health & Wellbeing",PHOENIX (SW) LTD,07/01/2019,877.80
Bath and North East Somerset Council,80819770,LL8,Individualised Budget,P11,"Adult Care, Health & Wellbeing",PHOENIX (SW) LTD,07/01/2019,881.72
Bath and North East Somerset Council,80820064,LL3,Supported Living,P11,"Adult Care, Health & Wellbeing",DEVON SHELTERED HOMES TRUST - REDACTED,07/01/2019,883.80
Bath and North East Somerset Council,80820056,LL3,Supported Living,P11,"Adult Care, Health & Wellbeing",SWALLOW LTD,07/01/2019,886.42
Bath and North East Somerset Council,80819770,LL8,Individualised Budget,P11,"Adult Care, Health & Wellbeing",PHOENIX (SW) LTD,07/01/2019,891.80
Bath and North East Somerset Council,10892180,KA2,Running Costs,P15,Development & Neighbourhoods,LGS TRANSPORT SERVICES LTD,07/01/2019,900.00
Bath and North East Somerset Council,80819982,LM3,Residential Care,P11,"Adult Care, Health & Wellbeing",BROUGHTON LODGE CARE HOME LTD,07/01/2019,904.00
Bath and North East Somerset Council,80819987,LM3,Residential Care,P11,"Adult Care, Health & Wellbeing",PONDSMEAD (SHEPTON MALLET) LTD,07/01/2019,904.00
Bath and North East Somerset Council,80819701,LL8,Individualised Budget,P11,"Adult Care, Health & Wellbeing",REDACTED,07/01/2019,905.54
Bath and North East Somerset Council,80820056,LL3,Supported Living,P11,"Adult Care, Health & Wellbeing",SWALLOW LTD,07/01/2019,905.69
Bath and North East Somerset Council,80819606,LL8,Individualised Budget,P11,"Adult Care, Health & Wellbeing",REDACTED,07/01/2019,910.00
Bath and North East Somerset Council,80820069,LL3,Supported Living,P11,"Adult Care, Health & Wellbeing",MAPLES COMMUNITY CARE LTD,07/01/2019,913.04
Bath and North East Somerset Council,80819620,LL8,Individualised Budget,P11,"Adult Care, Health & Wellbeing",REDACTED,07/01/2019,915.28
Bath and North East Somerset Council,80820009,LM3,Residential Care,P11,"Adult Care, Health & Wellbeing",ACER HOUSE CARE HOME,07/01/2019,923.22
Bath and North East Somerset Council,10892414,LJ4,Contracts,P18,Transport & Environment,RUSSELL CONTRACTS (SW) LIMITED,07/01/2019,924.00
Bath and North East Somerset Council,80819987,LM6,Nursing Care,P11,"Adult Care, Health & Wellbeing",PONDSMEAD (SHEPTON MALLET) LTD,07/01/2019,928.00
Bath and North East Somerset Council,80819987,LM6,Nursing Care,P11,"Adult Care, Health & Wellbeing",PONDSMEAD (SHEPTON MALLET) LTD,07/01/2019,928.00
Bath and North East Somerset Council,80820060,LL3,Supported Living,P11,"Adult Care, Health & Wellbeing",DIMENSIONS (UK) LTD,07/01/2019,928.66
Bath and North East Somerset Council,10892398,LJ4,Contracts,P18,Transport & Environment,RUSSELL CONTRACTS (SW) LIMITED,07/01/2019,935.28
Bath and North East Somerset Council,10892255,LJ4,Contracts,P18,Transport & Environment,ROMAN CONTRACTS (BATH) LTD,07/01/2019,938.00
Bath and North East Somerset Council,80820038,LM6,Nursing Care,P11,"Adult Care, Health & Wellbeing",T C CAREHOME LTD,07/01/2019,939.70
Bath and North East Somerset Council,80820060,LL3,Supported Living,P11,"Adult Care, Health & Wellbeing",DIMENSIONS (UK) LTD,07/01/2019,944.54
Bath and North East Somerset Council,80819659,LL8,Individualised Budget,P11,"Adult Care, Health & Wellbeing",REDACTED,07/01/2019,944.66
Bath and North East Somerset Council,10892294,LK1,Fees,P12,Children & Young People,HOPSCOTCH NURSERY SCHOOL,07/01/2019,945.00
Bath and North East Somerset Council,80819860,LL8,Individualised Budget,P11,"Adult Care, Health & Wellbeing",REDACTED,07/01/2019,946.06
Bath and North East Somerset Council,80819648,LL8,Individualised Budget,P11,"Adult Care, Health & Wellbeing",REDACTED,07/01/2019,947.34
Bath and North East Somerset Council,80819647,LL8,Individualised Budget,P11,"Adult Care, Health & Wellbeing",REDACTED,07/01/2019,949.12
Bath and North East Somerset Council,80819755,LL8,Individualised Budget,P11,"Adult Care, Health & Wellbeing",REDACTED,07/01/2019,949.48
Bath and North East Somerset Council,80820066,LL3,Supported Living,P11,"Adult Care, Health & Wellbeing",ARCH CARE SERVICES,07/01/2019,950.00
Bath and North East Somerset Council,80820066,LL3,Supported Living,P11,"Adult Care, Health & Wellbeing",ARCH CARE SERVICES,07/01/2019,950.00
Bath and North East Somerset Council,80820066,LL3,Supported Living,P11,"Adult Care, Health & Wellbeing",ARCH CARE SERVICES,07/01/2019,950.00
Bath and North East Somerset Council,80820066,LL3,Supported Living,P11,"Adult Care, Health & Wellbeing",ARCH CARE SERVICES,07/01/2019,950.00
Bath and North East Somerset Council,80820066,LL3,Supported Living,P11,"Adult Care, Health & Wellbeing",ARCH CARE SERVICES,07/01/2019,950.00
Bath and North East Somerset Council,80820066,LL3,Supported Living,P11,"Adult Care, Health & Wellbeing",ARCH CARE SERVICES,07/01/2019,950.00
Bath and North East Somerset Council,80820066,LL3,Supported Living,P11,"Adult Care, Health & Wellbeing",ARCH CARE SERVICES,07/01/2019,950.00
Bath and North East Somerset Council,80820066,LL3,Supported Living,P11,"Adult Care, Health & Wellbeing",ARCH CARE SERVICES,07/01/2019,950.00
Bath and North East Somerset Council,80820066,LL3,Supported Living,P11,"Adult Care, Health & Wellbeing",ARCH CARE SERVICES,07/01/2019,950.00
Bath and North East Somerset Council,80820066,LL3,Supported Living,P11,"Adult Care, Health & Wellbeing",ARCH CARE SERVICES,07/01/2019,950.00
Bath and North East Somerset Council,80820060,LL3,Supported Living,P11,"Adult Care, Health & Wellbeing",DIMENSIONS (UK) LTD,07/01/2019,961.38
Bath and North East Somerset Council,80819855,LL8,Individualised Budget,P11,"Adult Care, Health & Wellbeing",REDACTED,07/01/2019,969.10
Bath and North East Somerset Council,80820081,YF2,Fees & Charges,Z99,Outside Revenue Accounts,MNSP RE SHOSCOMBE PRIMARY,07/01/2019,977.76
Bath and North East Somerset Council,80819950,LM3,Residential Care,P11,"Adult Care, Health & Wellbeing",REDACTED,07/01/2019,992.00
Bath and North East Somerset Council,80820067,LL3,Supported Living,P11,"Adult Care, Health & Wellbeing",OPTIONS FOR LIVING LTD,07/01/2019,992.64
Bath and North East Somerset Council,80819951,LM6,Nursing Care,P11,"Adult Care, Health & Wellbeing",CEDARS CARE (WINSCOMBE HALL) LTD,07/01/2019,994.00
Bath and North East Somerset Council,80820057,LM8,Home Care,P11,"Adult Care, Health & Wellbeing",THE BRANDON TRUST,07/01/2019,998.12
Bath and North East Somerset Council,80819992,LM3,Residential Care,P11,"Adult Care, Health & Wellbeing",ELMWOOD RESIDENTIAL HOME LTD,07/01/2019,1000.00
Bath and North East Somerset Council,10892122,LJ4,Contracts,P11,"Adult Care, Health & Wellbeing",VIRGIN CARE SERVICES LTD,07/01/2019,1000.00
Bath and North East Somerset Council,80819689,LL8,Individualised Budget,P11,"Adult Care, Health & Wellbeing",REDACTED,07/01/2019,1000.26
Bath and North East Somerset Council,10892400,LJ4,Contracts,P18,Transport & Environment,RUSSELL CONTRACTS (SW) LIMITED,07/01/2019,1003.80
Bath and North East Somerset Council,80819608,LL8,Individualised Budget,P11,"Adult Care, Health & Wellbeing",REDACTED,07/01/2019,1007.52
Bath and North East Somerset Council,80819727,LL8,Individualised Budget,P11,"Adult Care, Health & Wellbeing",REDACTED,07/01/2019,1008.76
Bath and North East Somerset Council,80820058,LL3,Supported Living,P11,"Adult Care, Health & Wellbeing",BRIGHTBOW LODGE,07/01/2019,1011.40
Bath and North East Somerset Council,10892418,LJ4,Contracts,P18,Transport & Environment,R E & V P JEFFRIES,07/01/2019,1014.00
Bath and North East Somerset Council,80820066,LL3,Supported Living,P11,"Adult Care, Health & Wellbeing",ARCH CARE SERVICES,07/01/2019,1023.44
Bath and North East Somerset Council,10892318,LK2,Licences,P16,Economic & Community Regeneration,BATH & DISTRICT BUSINESS CRIME REDUCTION,07/01/2019,1028.00
Bath and North East Somerset Council,80819677,LL8,Individualised Budget,P11,"Adult Care, Health & Wellbeing",REDACTED,07/01/2019,1032.10
Bath and North East Somerset Council,80820038,LM6,Nursing Care,P11,"Adult Care, Health & Wellbeing",T C CAREHOME LTD,07/01/2019,1032.14
Bath and North East Somerset Council,10892253,LJ4,Contracts,P18,Transport & Environment,ROMAN CONTRACTS (BATH) LTD,07/01/2019,1032.64
Bath and North East Somerset Council,80819821,LL8,Individualised Budget,P11,"Adult Care, Health & Wellbeing",REDACTED,07/01/2019,1036.12
Bath and North East Somerset Council,80820056,LL3,Supported Living,P11,"Adult Care, Health & Wellbeing",SWALLOW LTD,07/01/2019,1038.77
Bath and North East Somerset Council,80819827,LL8,Individualised Budget,P11,"Adult Care, Health & Wellbeing",REDACTED,07/01/2019,1040.00
Bath and North East Somerset Council,80820031,LM3,Residential Care,P11,"Adult Care, Health & Wellbeing",DIMENSIONS (UK) LTD,07/01/2019,1040.40
Bath and North East Somerset Council,80820031,LM3,Residential Care,P11,"Adult Care, Health & Wellbeing",DIMENSIONS (UK) LTD,07/01/2019,1040.40
Bath and North East Somerset Council,80820067,LL3,Supported Living,P11,"Adult Care, Health & Wellbeing",OPTIONS FOR LIVING LTD,07/01/2019,1046.36
Bath and North East Somerset Council,10892305,KB1,Hire of Vehicles,P15,Development & Neighbourhoods,ROBERTS (BATH) LTD,07/01/2019,1050.00
Bath and North East Somerset Council,10892247,3J2,PCB Consultants,P10,Finance & Efficiency,PEOPLE SOURCE CONSULTING LTD,07/01/2019,1050.00
Bath and North East Somerset Council,80819986,LM3,Residential Care,P11,"Adult Care, Health & Wellbeing",THE GRANVILLE CARE HOME LIMITED,07/01/2019,1050.00
Bath and North East Somerset Council,80820024,LM3,Residential Care,P11,"Adult Care, Health & Wellbeing",BARCHESTER HEALTHCARE HOMES LTD,07/01/2019,1059.46
Bath and North East Somerset Council,80820031,LM3,Residential Care,P11,"Adult Care, Health & Wellbeing",DIMENSIONS (UK) LTD,07/01/2019,1063.64
Bath and North East Somerset Council,80819770,LL8,Individualised Budget,P11,"Adult Care, Health & Wellbeing",PHOENIX (SW) LTD,07/01/2019,1064.32
Bath and North East Somerset Council,80819687,LL8,Individualised Budget,P11,"Adult Care, Health & Wellbeing",REDACTED,07/01/2019,1064.90
Bath and North East Somerset Council,80820001,LM6,Nursing Care,P11,"Adult Care, Health & Wellbeing",CTCH LTD,07/01/2019,1072.78
Bath and North East Somerset Council,80819517,LL8,Individualised Budget,P11,"Adult Care, Health & Wellbeing",REDACTED,07/01/2019,1080.00
Bath and North East Somerset Council,10892391,LJ4,Contracts,P18,Transport & Environment,T WESTLAKE ACCESS TRAVEL,07/01/2019,1081.50
Bath and North East Somerset Council,80820060,LL3,Supported Living,P11,"Adult Care, Health & Wellbeing",DIMENSIONS (UK) LTD,07/01/2019,1087.46
Bath and North East Somerset Council,80820058,LL3,Supported Living,P11,"Adult Care, Health & Wellbeing",BRIGHTBOW LODGE,07/01/2019,1089.20
Bath and North East Somerset Council,80820079,YF2,Fees & Charges,Z99,Outside Revenue Accounts,MNSP RE ST JULIANS PRIMARY,07/01/2019,1098.72
Bath and North East Somerset Council,80819644,LL8,Individualised Budget,P11,"Adult Care, Health & Wellbeing",REDACTED,07/01/2019,1099.45
Bath and North East Somerset Council,80819842,LL8,Individualised Budget,P11,"Adult Care, Health & Wellbeing",REDACTED,07/01/2019,1100.00
Bath and North East Somerset Council,80820060,LL3,Supported Living,P11,"Adult Care, Health & Wellbeing",DIMENSIONS (UK) LTD,07/01/2019,1101.44
Bath and North East Somerset Council,80819987,LM3,Residential Care,P11,"Adult Care, Health & Wellbeing",PONDSMEAD (SHEPTON MALLET) LTD,07/01/2019,1105.78
Bath and North East Somerset Council,80820036,LM3,Residential Care,P11,"Adult Care, Health & Wellbeing",ARTI SERVICES LTD T/A THE MANOR FARM HOUSE,07/01/2019,1106.00
Bath and North East Somerset Council,80820036,LM3,Residential Care,P11,"Adult Care, Health & Wellbeing",ARTI SERVICES LTD T/A THE MANOR FARM HOUSE,07/01/2019,1106.00
Bath and North East Somerset Council,80819907,LM3,Residential Care,P11,"Adult Care, Health & Wellbeing",LINKSIDE SERVICES LTD,07/01/2019,1106.00
Bath and North East Somerset Council,80820045,LM3,Residential Care,P11,"Adult Care, Health & Wellbeing",NEWBRIDGE TOWERS RESIDENTIAL CARE HOME,07/01/2019,1106.00
Bath and North East Somerset Council,80820045,LM3,Residential Care,P11,"Adult Care, Health & Wellbeing",NEWBRIDGE TOWERS RESIDENTIAL CARE HOME,07/01/2019,1106.00
Bath and North East Somerset Council,80819915,LM3,Residential Care,P11,"Adult Care, Health & Wellbeing",SOMERSET CARE LTD,07/01/2019,1106.00
Bath and North East Somerset Council,80819901,LM3,Residential Care,P11,"Adult Care, Health & Wellbeing",REDACTED,07/01/2019,1106.00
Bath and North East Somerset Council,80819987,LM3,Residential Care,P11,"Adult Care, Health & Wellbeing",PONDSMEAD (SHEPTON MALLET) LTD,07/01/2019,1111.00
Bath and North East Somerset Council,80819987,LM6,Nursing Care,P11,"Adult Care, Health & Wellbeing",PONDSMEAD (SHEPTON MALLET) LTD,07/01/2019,1111.90
Bath and North East Somerset Council,80819987,LM6,Nursing Care,P11,"Adult Care, Health & Wellbeing",PONDSMEAD (SHEPTON MALLET) LTD,07/01/2019,1111.90
Bath and North East Somerset Council,80819987,LM6,Nursing Care,P11,"Adult Care, Health & Wellbeing",PONDSMEAD (SHEPTON MALLET) LTD,07/01/2019,1111.90
Bath and North East Somerset Council,80819987,LM6,Nursing Care,P11,"Adult Care, Health & Wellbeing",PONDSMEAD (SHEPTON MALLET) LTD,07/01/2019,1111.90
Bath and North East Somerset Council,80819987,LM6,Nursing Care,P11,"Adult Care, Health & Wellbeing",PONDSMEAD (SHEPTON MALLET) LTD,07/01/2019,1111.90
Bath and North East Somerset Council,80819904,LM6,Nursing Care,P11,"Adult Care, Health & Wellbeing",WELLS NURSING HOME,07/01/2019,1111.90
Bath and North East Somerset Council,80819915,LM3,Residential Care,P11,"Adult Care, Health & Wellbeing",SOMERSET CARE LTD,07/01/2019,1112.00
Bath and North East Somerset Council,80820045,LM3,Residential Care,P11,"Adult Care, Health & Wellbeing",NEWBRIDGE TOWERS RESIDENTIAL CARE HOME,07/01/2019,1116.00
Bath and North East Somerset Council,80820067,LL3,Supported Living,P11,"Adult Care, Health & Wellbeing",OPTIONS FOR LIVING LTD,07/01/2019,1116.72
Bath and North East Somerset Council,80820050,LM3,Residential Care,P11,"Adult Care, Health & Wellbeing",ARTI CARE HOMES (SOUTHWEST) LTD,07/01/2019,1117.06
Bath and North East Somerset Council,80820024,LM3,Residential Care,P11,"Adult Care, Health & Wellbeing",BARCHESTER HEALTHCARE HOMES LTD,07/01/2019,1117.06
Bath and North East Somerset Council,80820027,LM3,Residential Care,P11,"Adult Care, Health & Wellbeing",BCVS HOMES,07/01/2019,1117.06
Bath and North East Somerset Council,80820027,LM3,Residential Care,P11,"Adult Care, Health & Wellbeing",BCVS HOMES,07/01/2019,1117.06
Bath and North East Somerset Council,80820017,LM3,Residential Care,P11,"Adult Care, Health & Wellbeing",BRIDGE CARE LTD,07/01/2019,1117.06
Bath and North East Somerset Council,80820055,LM3,Residential Care,P11,"Adult Care, Health & Wellbeing",CEDAR CARE HOMES LTD,07/01/2019,1117.06
Bath and North East Somerset Council,80820047,LM3,Residential Care,P11,"Adult Care, Health & Wellbeing",CHERRY GARDEN PROPERTIES LTD,07/01/2019,1117.06
Bath and North East Somerset Council,80820047,LM3,Residential Care,P11,"Adult Care, Health & Wellbeing",CHERRY GARDEN PROPERTIES LTD,07/01/2019,1117.06
Bath and North East Somerset Council,80820040,LM3,Residential Care,P11,"Adult Care, Health & Wellbeing",FSHC NEWCO 2 LTD: REDACTED,07/01/2019,1117.06
Bath and North East Somerset Council,80820040,LM3,Residential Care,P11,"Adult Care, Health & Wellbeing",FSHC NEWCO 2 LTD: REDACTED,07/01/2019,1117.06
Bath and North East Somerset Council,80819974,LM3,Residential Care,P11,"Adult Care, Health & Wellbeing",MAJESTIC 3 LTD,07/01/2019,1117.06
Bath and North East Somerset Council,80820030,LM3,Residential Care,P11,"Adult Care, Health & Wellbeing",METHODIST HOMES FOR THE AGED,07/01/2019,1117.06
Bath and North East Somerset Council,80820023,LM3,Residential Care,P11,"Adult Care, Health & Wellbeing",REDACTED,07/01/2019,1117.06
Bath and North East Somerset Council,80819987,LM3,Residential Care,P11,"Adult Care, Health & Wellbeing",PONDSMEAD (SHEPTON MALLET) LTD,07/01/2019,1117.06
Bath and North East Somerset Council,80819987,LM3,Residential Care,P11,"Adult Care, Health & Wellbeing",PONDSMEAD (SHEPTON MALLET) LTD,07/01/2019,1117.06
Bath and North East Somerset Council,80820019,LM3,Residential Care,P11,"Adult Care, Health & Wellbeing",SS PHILP & JAMES RETIREMENT HOME LTD,07/01/2019,1117.06
Bath and North East Somerset Council,80820018,LM3,Residential Care,P11,"Adult Care, Health & Wellbeing",STANTON COURT,07/01/2019,1117.06
Bath and North East Somerset Council,80820018,LM3,Residential Care,P11,"Adult Care, Health & Wellbeing",STANTON COURT,07/01/2019,1117.06
Bath and North East Somerset Council,80820018,LM3,Residential Care,P11,"Adult Care, Health & Wellbeing",STANTON COURT,07/01/2019,1117.06
Bath and North East Somerset Council,80820018,LM3,Residential Care,P11,"Adult Care, Health & Wellbeing",STANTON COURT,07/01/2019,1117.06
Bath and North East Somerset Council,80820018,LM3,Residential Care,P11,"Adult Care, Health & Wellbeing",STANTON COURT,07/01/2019,1117.06
Bath and North East Somerset Council,80820038,LM3,Residential Care,P11,"Adult Care, Health & Wellbeing",T C CAREHOME LTD,07/01/2019,1117.06
Bath and North East Somerset Council,80820038,LM3,Residential Care,P11,"Adult Care, Health & Wellbeing",T C CAREHOME LTD,07/01/2019,1117.06
Bath and North East Somerset Council,80820038,LM3,Residential Care,P11,"Adult Care, Health & Wellbeing",T C CAREHOME LTD,07/01/2019,1117.06
Bath and North East Somerset Council,80820038,LM3,Residential Care,P11,"Adult Care, Health & Wellbeing",T C CAREHOME LTD,07/01/2019,1117.06
Bath and North East Somerset Council,80820067,LL3,Supported Living,P11,"Adult Care, Health & Wellbeing",OPTIONS FOR LIVING LTD,07/01/2019,1118.60
Bath and North East Somerset Council,80820067,LL3,Supported Living,P11,"Adult Care, Health & Wellbeing",OPTIONS FOR LIVING LTD,07/01/2019,1118.60
Bath and North East Somerset Council,80820067,LL3,Supported Living,P11,"Adult Care, Health & Wellbeing",OPTIONS FOR LIVING LTD,07/01/2019,1118.60
Bath and North East Somerset Council,80820067,LL3,Supported Living,P11,"Adult Care, Health & Wellbeing",OPTIONS FOR LIVING LTD,07/01/2019,1118.60
Bath and North East Somerset Council,80820067,LL3,Supported Living,P11,"Adult Care, Health & Wellbeing",OPTIONS FOR LIVING LTD,07/01/2019,1118.60
Bath and North East Somerset Council,80820060,LL3,Supported Living,P11,"Adult Care, Health & Wellbeing",DIMENSIONS (UK) LTD,07/01/2019,1119.22
Bath and North East Somerset Council,10892392,LJ4,Contracts,P18,Transport & Environment,T WESTLAKE ACCESS TRAVEL,07/01/2019,1120.00
Bath and North East Somerset Council,80820024,LM6,Nursing Care,P11,"Adult Care, Health & Wellbeing",BARCHESTER HEALTHCARE HOMES LTD,07/01/2019,1123.02
Bath and North East Somerset Council,80820024,LM6,Nursing Care,P11,"Adult Care, Health & Wellbeing",BARCHESTER HEALTHCARE HOMES LTD,07/01/2019,1123.02
Bath and North East Somerset Council,80820024,LM6,Nursing Care,P11,"Adult Care, Health & Wellbeing",BARCHESTER HEALTHCARE HOMES LTD,07/01/2019,1123.02
Bath and North East Somerset Council,80820024,LM6,Nursing Care,P11,"Adult Care, Health & Wellbeing",BARCHESTER HEALTHCARE HOMES LTD,07/01/2019,1123.02
Bath and North East Somerset Council,80820024,LM6,Nursing Care,P11,"Adult Care, Health & Wellbeing",BARCHESTER HEALTHCARE HOMES LTD,07/01/2019,1123.02
Bath and North East Somerset Council,80820039,LM6,Nursing Care,P11,"Adult Care, Health & Wellbeing",BARKER CHEMICALS LTD T/A ST TERESA'S NH,07/01/2019,1123.02
Bath and North East Somerset Council,80820039,LM6,Nursing Care,P11,"Adult Care, Health & Wellbeing",BARKER CHEMICALS LTD T/A ST TERESA'S NH,07/01/2019,1123.02
Bath and North East Somerset Council,80820017,LM6,Nursing Care,P11,"Adult Care, Health & Wellbeing",BRIDGE CARE LTD,07/01/2019,1123.02
Bath and North East Somerset Council,80820017,LM6,Nursing Care,P11,"Adult Care, Health & Wellbeing",BRIDGE CARE LTD,07/01/2019,1123.02
Bath and North East Somerset Council,80820017,LM6,Nursing Care,P11,"Adult Care, Health & Wellbeing",BRIDGE CARE LTD,07/01/2019,1123.02
Bath and North East Somerset Council,80820042,LM6,Nursing Care,P11,"Adult Care, Health & Wellbeing",CARE FIRST CARE HOMES LTD,07/01/2019,1123.02
Bath and North East Somerset Council,80820042,LM6,Nursing Care,P11,"Adult Care, Health & Wellbeing",CARE FIRST CARE HOMES LTD,07/01/2019,1123.02
Bath and North East Somerset Council,80820021,LM6,Nursing Care,P11,"Adult Care, Health & Wellbeing",CEDAR PARK NURSING HOME,07/01/2019,1123.02
Bath and North East Somerset Council,80820021,LM6,Nursing Care,P11,"Adult Care, Health & Wellbeing",CEDAR PARK NURSING HOME,07/01/2019,1123.02
Bath and North East Somerset Council,80820021,LM6,Nursing Care,P11,"Adult Care, Health & Wellbeing",CEDAR PARK NURSING HOME,07/01/2019,1123.02
Bath and North East Somerset Council,80820021,LM6,Nursing Care,P11,"Adult Care, Health & Wellbeing",CEDAR PARK NURSING HOME,07/01/2019,1123.02
Bath and North East Somerset Council,80820021,LM6,Nursing Care,P11,"Adult Care, Health & Wellbeing",CEDAR PARK NURSING HOME,07/01/2019,1123.02
Bath and North East Somerset Council,80820021,LM6,Nursing Care,P11,"Adult Care, Health & Wellbeing",CEDAR PARK NURSING HOME,07/01/2019,1123.02
Bath and North East Somerset Council,80820021,LM6,Nursing Care,P11,"Adult Care, Health & Wellbeing",CEDAR PARK NURSING HOME,07/01/2019,1123.02
Bath and North East Somerset Council,80820021,LM6,Nursing Care,P11,"Adult Care, Health & Wellbeing",CEDAR PARK NURSING HOME,07/01/2019,1123.02
Bath and North East Somerset Council,80820047,LM6,Nursing Care,P11,"Adult Care, Health & Wellbeing",CHERRY GARDEN PROPERTIES LTD,07/01/2019,1123.02
Bath and North East Somerset Council,80820047,LM6,Nursing Care,P11,"Adult Care, Health & Wellbeing",CHERRY GARDEN PROPERTIES LTD,07/01/2019,1123.02
Bath and North East Somerset Council,80820047,LM6,Nursing Care,P11,"Adult Care, Health & Wellbeing",CHERRY GARDEN PROPERTIES LTD,07/01/2019,1123.02
Bath and North East Somerset Council,80820047,LM6,Nursing Care,P11,"Adult Care, Health & Wellbeing",CHERRY GARDEN PROPERTIES LTD,07/01/2019,1123.02
Bath and North East Somerset Council,80820046,LM6,Nursing Care,P11,"Adult Care, Health & Wellbeing",FOUR SEASONS EVEDALE LTD WHITCHURCH,07/01/2019,1123.02
Bath and North East Somerset Council,80820046,LM6,Nursing Care,P11,"Adult Care, Health & Wellbeing",FOUR SEASONS EVEDALE LTD WHITCHURCH,07/01/2019,1123.02
Bath and North East Somerset Council,80820025,LM6,Nursing Care,P11,"Adult Care, Health & Wellbeing",LARKHALL SPRINGS NURSING HOME,07/01/2019,1123.02
Bath and North East Somerset Council,80820023,LM6,Nursing Care,P11,"Adult Care, Health & Wellbeing",REDACTED,07/01/2019,1123.02
Bath and North East Somerset Council,80819987,LM6,Nursing Care,P11,"Adult Care, Health & Wellbeing",PONDSMEAD (SHEPTON MALLET) LTD,07/01/2019,1123.02
Bath and North East Somerset Council,80819987,LM6,Nursing Care,P11,"Adult Care, Health & Wellbeing",PONDSMEAD (SHEPTON MALLET) LTD,07/01/2019,1123.02
Bath and North East Somerset Council,80819987,LM6,Nursing Care,P11,"Adult Care, Health & Wellbeing",PONDSMEAD (SHEPTON MALLET) LTD,07/01/2019,1123.02
Bath and North East Somerset Council,80820018,LM6,Nursing Care,P11,"Adult Care, Health & Wellbeing",STANTON COURT,07/01/2019,1123.02
Bath and North East Somerset Council,80820033,LM6,Nursing Care,P11,"Adult Care, Health & Wellbeing",SUNNYMEDE LTD,07/01/2019,1123.02
Bath and North East Somerset Council,80820033,LM6,Nursing Care,P11,"Adult Care, Health & Wellbeing",SUNNYMEDE LTD,07/01/2019,1123.02
Bath and North East Somerset Council,80820033,LM6,Nursing Care,P11,"Adult Care, Health & Wellbeing",SUNNYMEDE LTD,07/01/2019,1123.02
Bath and North East Somerset Council,80820033,LM6,Nursing Care,P11,"Adult Care, Health & Wellbeing",SUNNYMEDE LTD,07/01/2019,1123.02
Bath and North East Somerset Council,80820033,LM6,Nursing Care,P11,"Adult Care, Health & Wellbeing",SUNNYMEDE LTD,07/01/2019,1123.02
Bath and North East Somerset Council,80820033,LM6,Nursing Care,P11,"Adult Care, Health & Wellbeing",SUNNYMEDE LTD,07/01/2019,1123.02
Bath and North East Somerset Council,80820033,LM6,Nursing Care,P11,"Adult Care, Health & Wellbeing",SUNNYMEDE LTD,07/01/2019,1123.02
Bath and North East Somerset Council,80820033,LM6,Nursing Care,P11,"Adult Care, Health & Wellbeing",SUNNYMEDE LTD,07/01/2019,1123.02
Bath and North East Somerset Council,80820033,LM6,Nursing Care,P11,"Adult Care, Health & Wellbeing",SUNNYMEDE LTD,07/01/2019,1123.02
Bath and North East Somerset Council,80820038,LM6,Nursing Care,P11,"Adult Care, Health & Wellbeing",T C CAREHOME LTD,07/01/2019,1123.02
Bath and North East Somerset Council,80820038,LM6,Nursing Care,P11,"Adult Care, Health & Wellbeing",T C CAREHOME LTD,07/01/2019,1123.02
Bath and North East Somerset Council,80820010,LM6,Nursing Care,P11,"Adult Care, Health & Wellbeing",FROME NURSING HOME,07/01/2019,1123.22
Bath and North East Somerset Council,80819987,LM6,Nursing Care,P11,"Adult Care, Health & Wellbeing",PONDSMEAD (SHEPTON MALLET) LTD,07/01/2019,1123.22
Bath and North East Somerset Council,80819618,LL8,Individualised Budget,P11,"Adult Care, Health & Wellbeing",REDACTED,07/01/2019,1134.48
Bath and North East Somerset Council,80819692,LL8,Individualised Budget,P11,"Adult Care, Health & Wellbeing",REDACTED,07/01/2019,1140.00
Bath and North East Somerset Council,80820036,LM3,Residential Care,P11,"Adult Care, Health & Wellbeing",ARTI SERVICES LTD T/A THE MANOR FARM HOUSE,07/01/2019,1146.00
Bath and North East Somerset Council,80820036,LM3,Residential Care,P11,"Adult Care, Health & Wellbeing",ARTI SERVICES LTD T/A THE MANOR FARM HOUSE,07/01/2019,1146.00
Bath and North East Somerset Council,80820036,LM3,Residential Care,P11,"Adult Care, Health & Wellbeing",ARTI SERVICES LTD T/A THE MANOR FARM HOUSE,07/01/2019,1146.00
Bath and North East Somerset Council,80820045,LM3,Residential Care,P11,"Adult Care, Health & Wellbeing",NEWBRIDGE TOWERS RESIDENTIAL CARE HOME,07/01/2019,1146.00
Bath and North East Somerset Council,80820050,LM3,Residential Care,P11,"Adult Care, Health & Wellbeing",ARTI CARE HOMES (SOUTHWEST) LTD,07/01/2019,1146.66
Bath and North East Somerset Council,80820021,LM6,Nursing Care,P11,"Adult Care, Health & Wellbeing",CEDAR PARK NURSING HOME,07/01/2019,1147.20
Bath and North East Somerset Council,80820050,LM6,Nursing Care,P11,"Adult Care, Health & Wellbeing",ARTI CARE HOMES (SOUTHWEST) LTD,07/01/2019,1148.66
Bath and North East Somerset Council,80820054,LM6,Nursing Care,P11,"Adult Care, Health & Wellbeing",ST MONICAS GENERAL ACCOUNT,07/01/2019,1148.66
Bath and North East Somerset Council,80820027,LM3,Residential Care,P11,"Adult Care, Health & Wellbeing",BCVS HOMES,07/01/2019,1154.00
Bath and North East Somerset Council,80819902,LM6,Nursing Care,P11,"Adult Care, Health & Wellbeing",GRAND CROSS LTD RE KINGSWOOD COURT,07/01/2019,1155.60
Bath and North East Somerset Council,80819902,LM6,Nursing Care,P11,"Adult Care, Health & Wellbeing",GRAND CROSS LTD RE KINGSWOOD COURT,07/01/2019,1155.60
Bath and North East Somerset Council,80819958,LM6,Nursing Care,P11,"Adult Care, Health & Wellbeing",LAUDCARE LTD T/A OAKTREE CARE HOME,07/01/2019,1155.60
Bath and North East Somerset Council,80819922,LM6,Nursing Care,P11,"Adult Care, Health & Wellbeing",HC-ONE OVAL LTD,07/01/2019,1156.86
Bath and North East Somerset Council,80819928,LM6,Nursing Care,P11,"Adult Care, Health & Wellbeing",HC-ONE OVAL LTD,07/01/2019,1156.86
Bath and North East Somerset Council,80819895,LM3,Residential Care,P11,"Adult Care, Health & Wellbeing",REDACTED,07/01/2019,1157.14
Bath and North East Somerset Council,80820050,LM3,Residential Care,P11,"Adult Care, Health & Wellbeing",ARTI CARE HOMES (SOUTHWEST) LTD,07/01/2019,1157.46
Bath and North East Somerset Council,80820050,LM3,Residential Care,P11,"Adult Care, Health & Wellbeing",ARTI CARE HOMES (SOUTHWEST) LTD,07/01/2019,1157.46
Bath and North East Somerset Council,80820050,LM3,Residential Care,P11,"Adult Care, Health & Wellbeing",ARTI CARE HOMES (SOUTHWEST) LTD,07/01/2019,1157.46
Bath and North East Somerset Council,80820027,LM3,Residential Care,P11,"Adult Care, Health & Wellbeing",BCVS HOMES,07/01/2019,1157.46
Bath and North East Somerset Council,80820055,LM3,Residential Care,P11,"Adult Care, Health & Wellbeing",CEDAR CARE HOMES LTD,07/01/2019,1157.46
Bath and North East Somerset Council,80820016,LM3,Residential Care,P11,"Adult Care, Health & Wellbeing",CHOLWELL HOUSE NURSING HOME,07/01/2019,1157.46
Bath and North East Somerset Council,80819983,LM3,Residential Care,P11,"Adult Care, Health & Wellbeing",EQUALITY CARE LIMITED,07/01/2019,1157.46
Bath and North East Somerset Council,80820003,LM3,Residential Care,P11,"Adult Care, Health & Wellbeing",GORSELANDS REST HOME,07/01/2019,1157.46
Bath and North East Somerset Council,80819987,LM3,Residential Care,P11,"Adult Care, Health & Wellbeing",PONDSMEAD (SHEPTON MALLET) LTD,07/01/2019,1157.46
Bath and North East Somerset Council,80820057,LL3,Supported Living,P11,"Adult Care, Health & Wellbeing",THE BRANDON TRUST,07/01/2019,1158.98
Bath and North East Somerset Council,80820039,LM6,Nursing Care,P11,"Adult Care, Health & Wellbeing",BARKER CHEMICALS LTD T/A ST TERESA'S NH,07/01/2019,1159.38
Bath and North East Somerset Council,80820039,LM6,Nursing Care,P11,"Adult Care, Health & Wellbeing",BARKER CHEMICALS LTD T/A ST TERESA'S NH,07/01/2019,1159.38
Bath and North East Somerset Council,80820039,LM6,Nursing Care,P11,"Adult Care, Health & Wellbeing",BARKER CHEMICALS LTD T/A ST TERESA'S NH,07/01/2019,1159.38
Bath and North East Somerset Council,80820039,LM6,Nursing Care,P11,"Adult Care, Health & Wellbeing",BARKER CHEMICALS LTD T/A ST TERESA'S NH,07/01/2019,1159.38
Bath and North East Somerset Council,80820039,LM6,Nursing Care,P11,"Adult Care, Health & Wellbeing",BARKER CHEMICALS LTD T/A ST TERESA'S NH,07/01/2019,1159.38
Bath and North East Somerset Council,80820035,LM6,Nursing Care,P11,"Adult Care, Health & Wellbeing",CEDAR CARE HOMES LTD,07/01/2019,1159.38
Bath and North East Somerset Council,80820035,LM6,Nursing Care,P11,"Adult Care, Health & Wellbeing",CEDAR CARE HOMES LTD,07/01/2019,1159.38
Bath and North East Somerset Council,80820033,LM6,Nursing Care,P11,"Adult Care, Health & Wellbeing",SUNNYMEDE LTD,07/01/2019,1159.38
Bath and North East Somerset Council,80819987,LM3,Residential Care,P11,"Adult Care, Health & Wellbeing",PONDSMEAD (SHEPTON MALLET) LTD,07/01/2019,1160.00
Bath and North East Somerset Council,80820019,LM3,Residential Care,P11,"Adult Care, Health & Wellbeing",SS PHILP & JAMES RETIREMENT HOME LTD,07/01/2019,1168.00
Bath and North East Somerset Council,80820035,LM6,Nursing Care,P11,"Adult Care, Health & Wellbeing",CEDAR CARE HOMES LTD,07/01/2019,1169.80
Bath and North East Somerset Council,80819513,LL8,Individualised Budget,P11,"Adult Care, Health & Wellbeing",TRUSTEES OF REDACTED,07/01/2019,1173.62
Bath and North East Somerset Council,80820057,LM8,Home Care,P11,"Adult Care, Health & Wellbeing",THE BRANDON TRUST,07/01/2019,1174.26
Bath and North East Somerset Council,80820060,LL3,Supported Living,P11,"Adult Care, Health & Wellbeing",DIMENSIONS (UK) LTD,07/01/2019,1175.76
Bath and North East Somerset Council,80820027,LM3,Residential Care,P11,"Adult Care, Health & Wellbeing",BCVS HOMES,07/01/2019,1184.00
Bath and North East Somerset Council,80819953,LM3,Residential Care,P11,"Adult Care, Health & Wellbeing",KINGFISHER HEALTHCARE LIMITED,07/01/2019,1192.00
Bath and North East Somerset Council,80820045,LM3,Residential Care,P11,"Adult Care, Health & Wellbeing",NEWBRIDGE TOWERS RESIDENTIAL CARE HOME,07/01/2019,1194.04
Bath and North East Somerset Council,80820056,LL3,Supported Living,P11,"Adult Care, Health & Wellbeing",SWALLOW LTD,07/01/2019,1194.74
Bath and North East Somerset Council,80819617,LL8,Individualised Budget,P11,"Adult Care, Health & Wellbeing",REDACTED,07/01/2019,1197.24
Bath and North East Somerset Council,80820000,LM6,Nursing Care,P11,"Adult Care, Health & Wellbeing",HC1 RE: REDACTED,07/01/2019,1198.00
Bath and North East Somerset Council,80820060,LL3,Supported Living,P11,"Adult Care, Health & Wellbeing",DIMENSIONS (UK) LTD,07/01/2019,1198.60
Bath and North East Somerset Council,80819646,LL8,Individualised Budget,P11,"Adult Care, Health & Wellbeing",REDACTED,07/01/2019,1199.04
Bath and North East Somerset Council,80820050,LM3,Residential Care,P11,"Adult Care, Health & Wellbeing",ARTI CARE HOMES (SOUTHWEST) LTD,07/01/2019,1200.00
Bath and North East Somerset Council,80820036,LM3,Residential Care,P11,"Adult Care, Health & Wellbeing",ARTI SERVICES LTD T/A THE MANOR FARM HOUSE,07/01/2019,1200.00
Bath and North East Somerset Council,80819897,LM3,Residential Care,P11,"Adult Care, Health & Wellbeing",EDGEMONT HOUSE,07/01/2019,1200.00
Bath and North East Somerset Council,80819987,LM6,Nursing Care,P11,"Adult Care, Health & Wellbeing",PONDSMEAD (SHEPTON MALLET) LTD,07/01/2019,1200.00
Bath and North East Somerset Council,80819987,LM3,Residential Care,P11,"Adult Care, Health & Wellbeing",PONDSMEAD (SHEPTON MALLET) LTD,07/01/2019,1200.00
Bath and North East Somerset Council,10892448,PB4,Payments to Private Contractors,P15,Development & Neighbourhoods,TRADEBE HEALTHCARE LTD,07/01/2019,1202.70
Bath and North East Somerset Council,80820036,LM3,Residential Care,P11,"Adult Care, Health & Wellbeing",ARTI SERVICES LTD T/A THE MANOR FARM HOUSE,07/01/2019,1206.00
Bath and North East Somerset Council,80820057,LM8,Home Care,P11,"Adult Care, Health & Wellbeing",THE BRANDON TRUST,07/01/2019,1208.36
Bath and North East Somerset Council,80820021,LM6,Nursing Care,P11,"Adult Care, Health & Wellbeing",CEDAR PARK NURSING HOME,07/01/2019,1208.40
Bath and North East Somerset Council,80820027,LM3,Residential Care,P11,"Adult Care, Health & Wellbeing",BCVS HOMES,07/01/2019,1212.00
Bath and North East Somerset Council,80820011,LM6,Nursing Care,P11,"Adult Care, Health & Wellbeing",COUNTY COURT CARE HOMES 3 OPCO LTD,07/01/2019,1215.88
Bath and North East Somerset Council,80819770,LL8,Individualised Budget,P11,"Adult Care, Health & Wellbeing",PHOENIX (SW) LTD,07/01/2019,1218.00
Bath and North East Somerset Council,80820004,LM3,Residential Care,P11,"Adult Care, Health & Wellbeing",TREASURE HOMES LTD,07/01/2019,1220.00
Bath and North East Somerset Council,80819669,LL8,Individualised Budget,P11,"Adult Care, Health & Wellbeing",REDACTED,07/01/2019,1224.00
Bath and North East Somerset Council,80819965,LM3,Residential Care,P11,"Adult Care, Health & Wellbeing",KAHANAH CARE LTD,07/01/2019,1226.00
Bath and North East Somerset Council,80820053,LM3,Residential Care,P11,"Adult Care, Health & Wellbeing",ORIEL LODGE LIMITED,07/01/2019,1226.00
Bath and North East Somerset Council,80820067,LL3,Supported Living,P11,"Adult Care, Health & Wellbeing",OPTIONS FOR LIVING LTD,07/01/2019,1226.96
Bath and North East Somerset Council,10892415,LJ4,Contracts,P18,Transport & Environment,RUSSELL CONTRACTS (SW) LIMITED,07/01/2019,1232.00
Bath and North East Somerset Council,80820027,LM3,Residential Care,P11,"Adult Care, Health & Wellbeing",BCVS HOMES,07/01/2019,1240.00
Bath and North East Somerset Council,80820027,LM3,Residential Care,P11,"Adult Care, Health & Wellbeing",BCVS HOMES,07/01/2019,1240.00
Bath and North East Somerset Council,80820027,LM3,Residential Care,P11,"Adult Care, Health & Wellbeing",BCVS HOMES,07/01/2019,1240.00
Bath and North East Somerset Council,10892259,HK1,Highway Maintenance,P18,Transport & Environment,J R HOLDER T/A KELSTON FORGE,07/01/2019,1245.00
Bath and North East Somerset Council,10892233,DB1,Agency Staff,P15,Development & Neighbourhoods,M4 RECRUITMENT LTD,07/01/2019,1248.38
Bath and North East Somerset Council,80820050,LM3,Residential Care,P11,"Adult Care, Health & Wellbeing",ARTI CARE HOMES (SOUTHWEST) LTD,07/01/2019,1250.00
Bath and North East Somerset Council,80820050,LM3,Residential Care,P11,"Adult Care, Health & Wellbeing",ARTI CARE HOMES (SOUTHWEST) LTD,07/01/2019,1250.00
Bath and North East Somerset Council,80820050,LM3,Residential Care,P11,"Adult Care, Health & Wellbeing",ARTI CARE HOMES (SOUTHWEST) LTD,07/01/2019,1250.00
Bath and North East Somerset Council,80820002,LM3,Residential Care,P11,"Adult Care, Health & Wellbeing",LINKSMAX LTD T/A FAIRVIEW HOUSE,07/01/2019,1250.00
Bath and North East Somerset Council,80820039,LM6,Nursing Care,P11,"Adult Care, Health & Wellbeing",BARKER CHEMICALS LTD T/A ST TERESA'S NH,07/01/2019,1252.40
Bath and North East Somerset Council,80820048,LM6,Nursing Care,P11,"Adult Care, Health & Wellbeing",BARCHESTER HEALTH CARE,07/01/2019,1256.00
Bath and North East Somerset Council,80820016,LM6,Nursing Care,P11,"Adult Care, Health & Wellbeing",CHOLWELL HOUSE NURSING HOME,07/01/2019,1258.40
Bath and North East Somerset Council,80819668,LL8,Individualised Budget,P11,"Adult Care, Health & Wellbeing",REDACTED,07/01/2019,1259.76
Bath and North East Somerset Council,10892434,LJ4,Contracts,P18,Transport & Environment,JASON KING LTD,07/01/2019,1260.00
Bath and North East Somerset Council,80820019,LM3,Residential Care,P11,"Adult Care, Health & Wellbeing",SS PHILP & JAMES RETIREMENT HOME LTD,07/01/2019,1260.00
Bath and North East Somerset Council,80819572,LL8,Individualised Budget,P11,"Adult Care, Health & Wellbeing",REDACTED,07/01/2019,1262.60
Bath and North East Somerset Council,80819557,LL8,Individualised Budget,P11,"Adult Care, Health & Wellbeing",REDACTED,07/01/2019,1262.60
Bath and North East Somerset Council,80820019,LM3,Residential Care,P11,"Adult Care, Health & Wellbeing",SS PHILP & JAMES RETIREMENT HOME LTD,07/01/2019,1271.14
Bath and North East Somerset Council,10892251,LK1,Fees,P12,Children & Young People,REDACTED,07/01/2019,1272.00
Bath and North East Somerset Council,80819770,LL8,Individualised Budget,P11,"Adult Care, Health & Wellbeing",PHOENIX (SW) LTD,07/01/2019,1273.60
Bath and North East Somerset Council,80820024,LM6,Nursing Care,P11,"Adult Care, Health & Wellbeing",BARCHESTER HEALTHCARE HOMES LTD,07/01/2019,1278.40
Bath and North East Somerset Council,80820025,LM6,Nursing Care,P11,"Adult Care, Health & Wellbeing",LARKHALL SPRINGS NURSING HOME,07/01/2019,1279.90
Bath and North East Somerset Council,80820036,LM3,Residential Care,P11,"Adult Care, Health & Wellbeing",ARTI SERVICES LTD T/A THE MANOR FARM HOUSE,07/01/2019,1280.00
Bath and North East Somerset Council,80819469,LL8,Individualised Budget,P11,"Adult Care, Health & Wellbeing",REDACTED,07/01/2019,1282.76
Bath and North East Somerset Council,80820047,LM6,Nursing Care,P11,"Adult Care, Health & Wellbeing",CHERRY GARDEN PROPERTIES LTD,07/01/2019,1283.68
Bath and North East Somerset Council,80820023,LM6,Nursing Care,P11,"Adult Care, Health & Wellbeing",REDACTED,07/01/2019,1283.68
Bath and North East Somerset Council,80819936,LM6,Nursing Care,P11,"Adult Care, Health & Wellbeing",ROSEVILLE CARE HOMES MELKSHAM,07/01/2019,1284.50
Bath and North East Somerset Council,80820024,LM6,Nursing Care,P11,"Adult Care, Health & Wellbeing",BARCHESTER HEALTHCARE HOMES LTD,07/01/2019,1294.40
Bath and North East Somerset Council,80820024,LM6,Nursing Care,P11,"Adult Care, Health & Wellbeing",BARCHESTER HEALTHCARE HOMES LTD,07/01/2019,1294.40
Bath and North East Somerset Council,80820045,LM3,Residential Care,P11,"Adult Care, Health & Wellbeing",NEWBRIDGE TOWERS RESIDENTIAL CARE HOME,07/01/2019,1299.80
Bath and North East Somerset Council,80802697,LM6,Nursing Care,P11,"Adult Care, Health & Wellbeing",BRUNEL CARE HOME,07/01/2019,1299.90
Bath and North East Somerset Council,80805784,LM6,Nursing Care,P11,"Adult Care, Health & Wellbeing",BRUNEL CARE HOME,07/01/2019,1299.90
Bath and North East Somerset Council,80808675,LM6,Nursing Care,P11,"Adult Care, Health & Wellbeing",BRUNEL CARE HOME,07/01/2019,1299.90
Bath and North East Somerset Council,80811799,LM6,Nursing Care,P11,"Adult Care, Health & Wellbeing",BRUNEL CARE HOME,07/01/2019,1299.90
Bath and North East Somerset Council,80814612,LM6,Nursing Care,P11,"Adult Care, Health & Wellbeing",BRUNEL CARE HOME,07/01/2019,1299.90
Bath and North East Somerset Council,80817275,LM6,Nursing Care,P11,"Adult Care, Health & Wellbeing",BRUNEL CARE HOME,07/01/2019,1299.90
Bath and North East Somerset Council,80819967,LM6,Nursing Care,P11,"Adult Care, Health & Wellbeing",BRUNEL CARE HOME,07/01/2019,1299.90
Bath and North East Somerset Council,80820050,LM3,Residential Care,P11,"Adult Care, Health & Wellbeing",ARTI CARE HOMES (SOUTHWEST) LTD,07/01/2019,1300.00
Bath and North East Somerset Council,80820050,LM3,Residential Care,P11,"Adult Care, Health & Wellbeing",ARTI CARE HOMES (SOUTHWEST) LTD,07/01/2019,1300.00
Bath and North East Somerset Council,80820017,LM3,Residential Care,P11,"Adult Care, Health & Wellbeing",BRIDGE CARE LTD,07/01/2019,1300.00
Bath and North East Somerset Council,80819907,LM3,Residential Care,P11,"Adult Care, Health & Wellbeing",LINKSIDE SERVICES LTD,07/01/2019,1300.00
Bath and North East Somerset Council,80820051,LM3,Residential Care,P11,"Adult Care, Health & Wellbeing",MOSTYN LODGE KEYNSHAM LTD,07/01/2019,1300.00
Bath and North East Somerset Council,80820051,LM3,Residential Care,P11,"Adult Care, Health & Wellbeing",MOSTYN LODGE KEYNSHAM LTD,07/01/2019,1300.00
Bath and North East Somerset Council,80820045,LM3,Residential Care,P11,"Adult Care, Health & Wellbeing",NEWBRIDGE TOWERS RESIDENTIAL CARE HOME,07/01/2019,1300.00
Bath and North East Somerset Council,80819467,LL8,Individualised Budget,P11,"Adult Care, Health & Wellbeing",REDACTED,07/01/2019,1300.00
Bath and North East Somerset Council,80820053,LM3,Residential Care,P11,"Adult Care, Health & Wellbeing",ORIEL LODGE LIMITED,07/01/2019,1300.00
Bath and North East Somerset Council,80820031,LM3,Residential Care,P11,"Adult Care, Health & Wellbeing",DIMENSIONS (UK) LTD,07/01/2019,1303.64
Bath and North East Somerset Council,80820031,LM3,Residential Care,P11,"Adult Care, Health & Wellbeing",DIMENSIONS (UK) LTD,07/01/2019,1303.64
Bath and North East Somerset Council,80820031,LM3,Residential Care,P11,"Adult Care, Health & Wellbeing",DIMENSIONS (UK) LTD,07/01/2019,1303.64
Bath and North East Somerset Council,80820025,LM6,Nursing Care,P11,"Adult Care, Health & Wellbeing",LARKHALL SPRINGS NURSING HOME,07/01/2019,1306.40
Bath and North East Somerset Council,80820031,LM3,Residential Care,P11,"Adult Care, Health & Wellbeing",DIMENSIONS (UK) LTD,07/01/2019,1306.92
Bath and North East Somerset Council,80820050,LM3,Residential Care,P11,"Adult Care, Health & Wellbeing",ARTI CARE HOMES (SOUTHWEST) LTD,07/01/2019,1310.00
Bath and North East Somerset Council,80819531,LL8,Individualised Budget,P11,"Adult Care, Health & Wellbeing",REDACTED,07/01/2019,1313.00
Bath and North East Somerset Council,80820044,LM3,Residential Care,P11,"Adult Care, Health & Wellbeing",SPRINGFIELD BATH LTD,07/01/2019,1314.00
Bath and North East Somerset Council,10892302,LP1,Hardware Purchase,P10,Finance & Efficiency,SOFTWARE BOX LTD,07/01/2019,1318.32
Bath and North East Somerset Council,80820039,LM6,Nursing Care,P11,"Adult Care, Health & Wellbeing",BARKER CHEMICALS LTD T/A ST TERESA'S NH,07/01/2019,1320.40
Bath and North East Somerset Council,80820018,LM6,Nursing Care,P11,"Adult Care, Health & Wellbeing",STANTON COURT,07/01/2019,1326.40
Bath and North East Somerset Council,80820024,LM3,Residential Care,P11,"Adult Care, Health & Wellbeing",BARCHESTER HEALTHCARE HOMES LTD,07/01/2019,1328.00
Bath and North East Somerset Council,80820042,LM3,Residential Care,P11,"Adult Care, Health & Wellbeing",CARE FIRST CARE HOMES LTD,07/01/2019,1328.00
Bath and North East Somerset Council,80819758,LL8,Individualised Budget,P11,"Adult Care, Health & Wellbeing",REDACTED,07/01/2019,1331.40
Bath and North East Somerset Council,80820047,LM6,Nursing Care,P11,"Adult Care, Health & Wellbeing",CHERRY GARDEN PROPERTIES LTD,07/01/2019,1333.68
Bath and North East Somerset Council,80820060,LL3,Supported Living,P11,"Adult Care, Health & Wellbeing",DIMENSIONS (UK) LTD,07/01/2019,1334.56
Bath and North East Somerset Council,80820053,LM3,Residential Care,P11,"Adult Care, Health & Wellbeing",ORIEL LODGE LIMITED,07/01/2019,1340.00
Bath and North East Somerset Council,80819770,LL8,Individualised Budget,P11,"Adult Care, Health & Wellbeing",PHOENIX (SW) LTD,07/01/2019,1340.00
Bath and North East Somerset Council,80820012,LM3,Residential Care,P11,"Adult Care, Health & Wellbeing",STOKELEIGH LODGE,07/01/2019,1340.00
Bath and North East Somerset Council,80820056,LL3,Supported Living,P11,"Adult Care, Health & Wellbeing",SWALLOW LTD,07/01/2019,1340.00
Bath and North East Somerset Council,80820021,LM6,Nursing Care,P11,"Adult Care, Health & Wellbeing",CEDAR PARK NURSING HOME,07/01/2019,1344.40
Bath and North East Somerset Council,80820069,LM8,Home Care,P11,"Adult Care, Health & Wellbeing",MAPLES COMMUNITY CARE LTD,07/01/2019,1346.38
Bath and North East Somerset Council,80820044,LM3,Residential Care,P11,"Adult Care, Health & Wellbeing",SPRINGFIELD BATH LTD,07/01/2019,1350.00
Bath and North East Somerset Council,80820025,LM6,Nursing Care,P11,"Adult Care, Health & Wellbeing",LARKHALL SPRINGS NURSING HOME,07/01/2019,1352.40
Bath and North East Somerset Council,80819786,LL8,Individualised Budget,P11,"Adult Care, Health & Wellbeing",REDACTED,07/01/2019,1352.74
Bath and North East Somerset Council,80819545,LL8,Individualised Budget,P11,"Adult Care, Health & Wellbeing",REDACTED,07/01/2019,1356.00
Bath and North East Somerset Council,80820047,LM3,Residential Care,P11,"Adult Care, Health & Wellbeing",CHERRY GARDEN PROPERTIES LTD,07/01/2019,1370.00
Bath and North East Somerset Council,80820049,LM3,Residential Care,P11,"Adult Care, Health & Wellbeing",DAVID NERY LTD T/A BEECHCROFT RESIDENTIAL HOME,07/01/2019,1370.00
Bath and North East Somerset Council,80820018,LM6,Nursing Care,P11,"Adult Care, Health & Wellbeing",STANTON COURT,07/01/2019,1374.40
Bath and North East Somerset Council,80820039,LM6,Nursing Care,P11,"Adult Care, Health & Wellbeing",BARKER CHEMICALS LTD T/A ST TERESA'S NH,07/01/2019,1379.90
Bath and North East Somerset Council,80820049,LM3,Residential Care,P11,"Adult Care, Health & Wellbeing",DAVID NERY LTD T/A BEECHCROFT RESIDENTIAL HOME,07/01/2019,1380.00
Bath and North East Somerset Council,80820006,LM3,Residential Care,P11,"Adult Care, Health & Wellbeing",KISMET HOUSE CARE HOME LTD,07/01/2019,1380.00
Bath and North East Somerset Council,80820061,LM8,Home Care,P11,"Adult Care, Health & Wellbeing",MANOR COMMUNITY CARE HOME,07/01/2019,1383.10
Bath and North East Somerset Council,80820017,LM6,Nursing Care,P11,"Adult Care, Health & Wellbeing",BRIDGE CARE LTD,07/01/2019,1383.68
Bath and North East Somerset Council,80820055,LM3,Residential Care,P11,"Adult Care, Health & Wellbeing",CEDAR CARE HOMES LTD,07/01/2019,1386.00
Bath and North East Somerset Council,80820046,LM6,Nursing Care,P11,"Adult Care, Health & Wellbeing",FOUR SEASONS EVEDALE LTD WHITCHURCH,07/01/2019,1387.50
Bath and North East Somerset Council,80820024,LM6,Nursing Care,P11,"Adult Care, Health & Wellbeing",BARCHESTER HEALTHCARE HOMES LTD,07/01/2019,1389.90
Bath and North East Somerset Council,80820038,LM6,Nursing Care,P11,"Adult Care, Health & Wellbeing",T C CAREHOME LTD,07/01/2019,1389.90
Bath and North East Somerset Council,80819993,LM6,Nursing Care,P11,"Adult Care, Health & Wellbeing",FOR & ON BEHALF OF ELLENBOROUGH CARE LT,07/01/2019,1390.00
Bath and North East Somerset Council,80820045,LM3,Residential Care,P11,"Adult Care, Health & Wellbeing",NEWBRIDGE TOWERS RESIDENTIAL CARE HOME,07/01/2019,1390.00
Bath and North East Somerset Council,80820045,LM3,Residential Care,P11,"Adult Care, Health & Wellbeing",NEWBRIDGE TOWERS RESIDENTIAL CARE HOME,07/01/2019,1391.00
Bath and North East Somerset Council,80819891,LM3,Residential Care,P11,"Adult Care, Health & Wellbeing",SOUTH GLOUCESTERSHIRE COUNCIL,07/01/2019,1392.62
Bath and North East Somerset Council,80820039,LM6,Nursing Care,P11,"Adult Care, Health & Wellbeing",BARKER CHEMICALS LTD T/A ST TERESA'S NH,07/01/2019,1394.40
Bath and North East Somerset Council,80820021,LM6,Nursing Care,P11,"Adult Care, Health & Wellbeing",CEDAR PARK NURSING HOME,07/01/2019,1394.40
Bath and North East Somerset Council,10892494,LJ4,Contracts,P18,Transport & Environment,V CARS,07/01/2019,1397.18
Bath and North East Somerset Council,80820050,LM3,Residential Care,P11,"Adult Care, Health & Wellbeing",ARTI CARE HOMES (SOUTHWEST) LTD,07/01/2019,1400.00
Bath and North East Somerset Council,80820050,LM3,Residential Care,P11,"Adult Care, Health & Wellbeing",ARTI CARE HOMES (SOUTHWEST) LTD,07/01/2019,1400.00
Bath and North East Somerset Council,80820024,LM3,Residential Care,P11,"Adult Care, Health & Wellbeing",BARCHESTER HEALTHCARE HOMES LTD,07/01/2019,1400.00
Bath and North East Somerset Council,80820047,LM3,Residential Care,P11,"Adult Care, Health & Wellbeing",CHERRY GARDEN PROPERTIES LTD,07/01/2019,1400.00
Bath and North East Somerset Council,80820040,LM3,Residential Care,P11,"Adult Care, Health & Wellbeing",FSHC NEWCO 2 LTD: REDACTED,07/01/2019,1400.00
Bath and North East Somerset Council,80820030,LM3,Residential Care,P11,"Adult Care, Health & Wellbeing",METHODIST HOMES FOR THE AGED,07/01/2019,1400.00
Bath and North East Somerset Council,80820045,LM3,Residential Care,P11,"Adult Care, Health & Wellbeing",NEWBRIDGE TOWERS RESIDENTIAL CARE HOME,07/01/2019,1400.00
Bath and North East Somerset Council,80820045,LM3,Residential Care,P11,"Adult Care, Health & Wellbeing",NEWBRIDGE TOWERS RESIDENTIAL CARE HOME,07/01/2019,1400.00
Bath and North East Somerset Council,80820053,LM3,Residential Care,P11,"Adult Care, Health & Wellbeing",ORIEL LODGE LIMITED,07/01/2019,1400.00
Bath and North East Somerset Council,80820044,LM3,Residential Care,P11,"Adult Care, Health & Wellbeing",SPRINGFIELD BATH LTD,07/01/2019,1400.00
Bath and North East Somerset Council,80820018,LM3,Residential Care,P11,"Adult Care, Health & Wellbeing",STANTON COURT,07/01/2019,1400.00
Bath and North East Somerset Council,80820018,LM3,Residential Care,P11,"Adult Care, Health & Wellbeing",STANTON COURT,07/01/2019,1400.00
Bath and North East Somerset Council,80819943,LM3,Residential Care,P11,"Adult Care, Health & Wellbeing",WOODLANDS & HILL BROW LTD,07/01/2019,1401.88
Bath and North East Somerset Council,10892267,LJ4,Contracts,P18,Transport & Environment,MARIAN CALINOIU (MARIO PRIVATE HIRE LTD),07/01/2019,1402.80
Bath and North East Somerset Council,80819896,LM6,Nursing Care,P11,"Adult Care, Health & Wellbeing",BRIGHTBOW LODGE,07/01/2019,1405.68
Bath and North East Somerset Council,80819896,LM6,Nursing Care,P11,"Adult Care, Health & Wellbeing",BRIGHTBOW LODGE,07/01/2019,1405.68
Bath and North East Somerset Council,80819964,LM6,Nursing Care,P11,"Adult Care, Health & Wellbeing",CHOLWELL CARE (NAILSEA) LTD,07/01/2019,1410.00
Bath and North East Somerset Council,80820050,LM3,Residential Care,P11,"Adult Care, Health & Wellbeing",ARTI CARE HOMES (SOUTHWEST) LTD,07/01/2019,1411.06
Bath and North East Somerset Council,80819895,LM3,Residential Care,P11,"Adult Care, Health & Wellbeing",REDACTED,07/01/2019,1411.24
Bath and North East Somerset Council,80820039,LM6,Nursing Care,P11,"Adult Care, Health & Wellbeing",BARKER CHEMICALS LTD T/A ST TERESA'S NH,07/01/2019,1412.40
Bath and North East Somerset Council,80820017,LM6,Nursing Care,P11,"Adult Care, Health & Wellbeing",BRIDGE CARE LTD,07/01/2019,1412.40
Bath and North East Somerset Council,80820057,LL3,Supported Living,P11,"Adult Care, Health & Wellbeing",THE BRANDON TRUST,07/01/2019,1413.64
Bath and North East Somerset Council,80820039,LM6,Nursing Care,P11,"Adult Care, Health & Wellbeing",BARKER CHEMICALS LTD T/A ST TERESA'S NH,07/01/2019,1416.40
Bath and North East Somerset Council,80820035,LM6,Nursing Care,P11,"Adult Care, Health & Wellbeing",CEDAR CARE HOMES LTD,07/01/2019,1416.40
Bath and North East Somerset Council,80819837,LL8,Individualised Budget,P11,"Adult Care, Health & Wellbeing",REDACTED,07/01/2019,1416.74
Bath and North East Somerset Council,80820035,LM6,Nursing Care,P11,"Adult Care, Health & Wellbeing",CEDAR CARE HOMES LTD,07/01/2019,1419.90
Bath and North East Somerset Council,80820033,LM3,Residential Care,P11,"Adult Care, Health & Wellbeing",SUNNYMEDE LTD,07/01/2019,1423.90
Bath and North East Somerset Council,80820039,LM6,Nursing Care,P11,"Adult Care, Health & Wellbeing",BARKER CHEMICALS LTD T/A ST TERESA'S NH,07/01/2019,1428.40
Bath and North East Somerset Council,80820043,LM6,Nursing Care,P11,"Adult Care, Health & Wellbeing",CEDAR CARE HOMES LTD,07/01/2019,1429.90
Bath and North East Somerset Council,80820025,LM6,Nursing Care,P11,"Adult Care, Health & Wellbeing",LARKHALL SPRINGS NURSING HOME,07/01/2019,1429.90
Bath and North East Somerset Council,80820035,LM6,Nursing Care,P11,"Adult Care, Health & Wellbeing",CEDAR CARE HOMES LTD,07/01/2019,1432.40
Bath and North East Somerset Council,80820021,LM6,Nursing Care,P11,"Adult Care, Health & Wellbeing",CEDAR PARK NURSING HOME,07/01/2019,1433.68
Bath and North East Somerset Council,80820039,LM6,Nursing Care,P11,"Adult Care, Health & Wellbeing",BARKER CHEMICALS LTD T/A ST TERESA'S NH,07/01/2019,1437.48
Bath and North East Somerset Council,80820039,LM3,Residential Care,P11,"Adult Care, Health & Wellbeing",BARKER CHEMICALS LTD T/A ST TERESA'S NH,07/01/2019,1437.50
Bath and North East Somerset Council,80820021,LM6,Nursing Care,P11,"Adult Care, Health & Wellbeing",CEDAR PARK NURSING HOME,07/01/2019,1439.90
Bath and North East Somerset Council,80820021,LM6,Nursing Care,P11,"Adult Care, Health & Wellbeing",CEDAR PARK NURSING HOME,07/01/2019,1439.90
Bath and North East Somerset Council,80820021,LM6,Nursing Care,P11,"Adult Care, Health & Wellbeing",CEDAR PARK NURSING HOME,07/01/2019,1439.90
Bath and North East Somerset Council,80820021,LM3,Residential Care,P11,"Adult Care, Health & Wellbeing",CEDAR PARK NURSING HOME,07/01/2019,1440.00
Bath and North East Somerset Council,10892388,LJ4,Contracts,P18,Transport & Environment,RUSSELL CONTRACTS (SW) LIMITED,07/01/2019,1440.00
Bath and North East Somerset Council,80820043,LM6,Nursing Care,P11,"Adult Care, Health & Wellbeing",CEDAR CARE HOMES LTD,07/01/2019,1441.14
Bath and North East Somerset Council,80820024,LM6,Nursing Care,P11,"Adult Care, Health & Wellbeing",BARCHESTER HEALTHCARE HOMES LTD,07/01/2019,1443.06
Bath and North East Somerset Council,80819975,LM3,Residential Care,P11,"Adult Care, Health & Wellbeing",CHASE LODGE CARE HOME,07/01/2019,1446.00
Bath and North East Somerset Council,80820039,LM6,Nursing Care,P11,"Adult Care, Health & Wellbeing",BARKER CHEMICALS LTD T/A ST TERESA'S NH,07/01/2019,1449.90
Bath and North East Somerset Council,80820056,LL3,Supported Living,P11,"Adult Care, Health & Wellbeing",SWALLOW LTD,07/01/2019,1454.00
Bath and North East Somerset Council,80820039,LM6,Nursing Care,P11,"Adult Care, Health & Wellbeing",BARKER CHEMICALS LTD T/A ST TERESA'S NH,07/01/2019,1455.68
Bath and North East Somerset Council,80820039,LM6,Nursing Care,P11,"Adult Care, Health & Wellbeing",BARKER CHEMICALS LTD T/A ST TERESA'S NH,07/01/2019,1455.68
Bath and North East Somerset Council,80820020,LM6,Nursing Care,P11,"Adult Care, Health & Wellbeing",CRANHILL NURSING HOME LTD,07/01/2019,1455.68
Bath and North East Somerset Council,80820039,LM6,Nursing Care,P11,"Adult Care, Health & Wellbeing",BARKER CHEMICALS LTD T/A ST TERESA'S NH,07/01/2019,1456.00
Bath and North East Somerset Council,80820039,LM6,Nursing Care,P11,"Adult Care, Health & Wellbeing",BARKER CHEMICALS LTD T/A ST TERESA'S NH,07/01/2019,1459.50
Bath and North East Somerset Council,10892252,LJ4,Contracts,P18,Transport & Environment,ROMAN CONTRACTS (BATH) LTD,07/01/2019,1463.75
Bath and North East Somerset Council,80820039,LM6,Nursing Care,P11,"Adult Care, Health & Wellbeing",BARKER CHEMICALS LTD T/A ST TERESA'S NH,07/01/2019,1468.40
Bath and North East Somerset Council,80820042,LM3,Residential Care,P11,"Adult Care, Health & Wellbeing",CARE FIRST CARE HOMES LTD,07/01/2019,1474.42
Bath and North East Somerset Council,80820047,LM6,Nursing Care,P11,"Adult Care, Health & Wellbeing",CHERRY GARDEN PROPERTIES LTD,07/01/2019,1474.50
Bath and North East Somerset Council,80820047,LM6,Nursing Care,P11,"Adult Care, Health & Wellbeing",CHERRY GARDEN PROPERTIES LTD,07/01/2019,1478.00
Bath and North East Somerset Council,80820048,LM6,Nursing Care,P11,"Adult Care, Health & Wellbeing",BARCHESTER HEALTH CARE,07/01/2019,1478.40
Bath and North East Somerset Council,80820048,LM6,Nursing Care,P11,"Adult Care, Health & Wellbeing",BARCHESTER HEALTH CARE,07/01/2019,1478.40
Bath and North East Somerset Council,80820035,LM6,Nursing Care,P11,"Adult Care, Health & Wellbeing",CEDAR CARE HOMES LTD,07/01/2019,1478.40
Bath and North East Somerset Council,80820016,LM6,Nursing Care,P11,"Adult Care, Health & Wellbeing",CHOLWELL HOUSE NURSING HOME,07/01/2019,1478.40
Bath and North East Somerset Council,80820039,LM6,Nursing Care,P11,"Adult Care, Health & Wellbeing",BARKER CHEMICALS LTD T/A ST TERESA'S NH,07/01/2019,1479.90
Bath and North East Somerset Council,80820039,LM6,Nursing Care,P11,"Adult Care, Health & Wellbeing",BARKER CHEMICALS LTD T/A ST TERESA'S NH,07/01/2019,1479.90
Bath and North East Somerset Council,80820039,LM6,Nursing Care,P11,"Adult Care, Health & Wellbeing",BARKER CHEMICALS LTD T/A ST TERESA'S NH,07/01/2019,1479.90
Bath and North East Somerset Council,80820035,LM6,Nursing Care,P11,"Adult Care, Health & Wellbeing",CEDAR CARE HOMES LTD,07/01/2019,1479.90
Bath and North East Somerset Council,80820025,LM6,Nursing Care,P11,"Adult Care, Health & Wellbeing",LARKHALL SPRINGS NURSING HOME,07/01/2019,1483.68
Bath and North East Somerset Council,80820025,LM6,Nursing Care,P11,"Adult Care, Health & Wellbeing",LARKHALL SPRINGS NURSING HOME,07/01/2019,1483.68
Bath and North East Somerset Council,80820025,LM6,Nursing Care,P11,"Adult Care, Health & Wellbeing",LARKHALL SPRINGS NURSING HOME,07/01/2019,1483.68
Bath and North East Somerset Council,80820025,LM6,Nursing Care,P11,"Adult Care, Health & Wellbeing",LARKHALL SPRINGS NURSING HOME,07/01/2019,1483.68
Bath and North East Somerset Council,80820025,LM6,Nursing Care,P11,"Adult Care, Health & Wellbeing",LARKHALL SPRINGS NURSING HOME,07/01/2019,1483.68
Bath and North East Somerset Council,80820025,LM6,Nursing Care,P11,"Adult Care, Health & Wellbeing",LARKHALL SPRINGS NURSING HOME,07/01/2019,1483.68
Bath and North East Somerset Council,80819967,LM3,Residential Care,P11,"Adult Care, Health & Wellbeing",BRUNEL CARE HOME,07/01/2019,1488.16
Bath and North East Somerset Council,80820048,LM6,Nursing Care,P11,"Adult Care, Health & Wellbeing",BARCHESTER HEALTH CARE,07/01/2019,1489.90
Bath and North East Somerset Council,80820025,LM6,Nursing Care,P11,"Adult Care, Health & Wellbeing",LARKHALL SPRINGS NURSING HOME,07/01/2019,1492.40
Bath and North East Somerset Council,80819482,LM6,Nursing Care,P11,"Adult Care, Health & Wellbeing",BARCHESTER HEALTHCARE HOMES LTD,07/01/2019,1494.00
Bath and North East Somerset Council,80819944,LM6,Nursing Care,P11,"Adult Care, Health & Wellbeing",FIR LAWN NURSING HOME LTD,07/01/2019,1494.00
Bath and North East Somerset Council,80819490,LM6,Nursing Care,P11,"Adult Care, Health & Wellbeing",T C CAREHOME LTD,07/01/2019,1494.00
Bath and North East Somerset Council,80820035,LM6,Nursing Care,P11,"Adult Care, Health & Wellbeing",CEDAR CARE HOMES LTD,07/01/2019,1496.40
Bath and North East Somerset Council,80820035,LM6,Nursing Care,P11,"Adult Care, Health & Wellbeing",CEDAR CARE HOMES LTD,07/01/2019,1496.40
Bath and North East Somerset Council,80820043,LM6,Nursing Care,P11,"Adult Care, Health & Wellbeing",CEDAR CARE HOMES LTD,07/01/2019,1496.40
Bath and North East Somerset Council,80820020,LM6,Nursing Care,P11,"Adult Care, Health & Wellbeing",CRANHILL NURSING HOME LTD,07/01/2019,1496.40
Bath and North East Somerset Council,80820020,LM6,Nursing Care,P11,"Adult Care, Health & Wellbeing",CRANHILL NURSING HOME LTD,07/01/2019,1496.40
Bath and North East Somerset Council,80819941,LM3,Residential Care,P11,"Adult Care, Health & Wellbeing",BELMONT VILLA RESIDENTIAL NURSING HOME LTD,07/01/2019,1500.00
Bath and North East Somerset Council,80819935,LM6,Nursing Care,P11,"Adult Care, Health & Wellbeing",BRUNELCARE WELFARE,07/01/2019,1500.00
Bath and North East Somerset Council,80819900,LM6,Nursing Care,P11,"Adult Care, Health & Wellbeing",REDACTED,07/01/2019,1500.00
Bath and North East Somerset Council,80820040,LM3,Residential Care,P11,"Adult Care, Health & Wellbeing",FSHC NEWCO 2 LTD: REDACTED,07/01/2019,1500.00
Bath and North East Somerset Council,80819907,LM3,Residential Care,P11,"Adult Care, Health & Wellbeing",LINKSIDE SERVICES LTD,07/01/2019,1500.00
Bath and North East Somerset Council,80820053,LM3,Residential Care,P11,"Adult Care, Health & Wellbeing",ORIEL LODGE LIMITED,07/01/2019,1500.00
Bath and North East Somerset Council,80820053,LM3,Residential Care,P11,"Adult Care, Health & Wellbeing",ORIEL LODGE LIMITED,07/01/2019,1500.00
Bath and North East Somerset Council,80820013,LM3,Residential Care,P11,"Adult Care, Health & Wellbeing",OSBORNE CARE HOMES LTD,07/01/2019,1500.00
Bath and North East Somerset Council,80820044,LM3,Residential Care,P11,"Adult Care, Health & Wellbeing",SPRINGFIELD BATH LTD,07/01/2019,1500.00
Bath and North East Somerset Council,80820044,LM3,Residential Care,P11,"Adult Care, Health & Wellbeing",SPRINGFIELD BATH LTD,07/01/2019,1500.00
Bath and North East Somerset Council,80820044,LM3,Residential Care,P11,"Adult Care, Health & Wellbeing",SPRINGFIELD BATH LTD,07/01/2019,1500.00
Bath and North East Somerset Council,80820019,LM3,Residential Care,P11,"Adult Care, Health & Wellbeing",SS PHILP & JAMES RETIREMENT HOME LTD,07/01/2019,1500.00
Bath and North East Somerset Council,80820016,LM6,Nursing Care,P11,"Adult Care, Health & Wellbeing",CHOLWELL HOUSE NURSING HOME,07/01/2019,1502.40
Bath and North East Somerset Council,80820016,LM6,Nursing Care,P11,"Adult Care, Health & Wellbeing",CHOLWELL HOUSE NURSING HOME,07/01/2019,1502.40
Bath and North East Somerset Council,80820016,LM6,Nursing Care,P11,"Adult Care, Health & Wellbeing",CHOLWELL HOUSE NURSING HOME,07/01/2019,1502.40
Bath and North East Somerset Council,10891670,LP1,Hardware Purchase,P17,Transformation & Customer Services,MAINTEL EUROPE LTD,07/01/2019,1503.15
Bath and North East Somerset Council,80820030,LM3,Residential Care,P11,"Adult Care, Health & Wellbeing",METHODIST HOMES FOR THE AGED,07/01/2019,1506.00
Bath and North East Somerset Council,80820024,LM6,Nursing Care,P11,"Adult Care, Health & Wellbeing",BARCHESTER HEALTHCARE HOMES LTD,07/01/2019,1507.68
Bath and North East Somerset Council,80819989,LM3,Residential Care,P11,"Adult Care, Health & Wellbeing",SOMERSET CARE LTD INCOME,07/01/2019,1510.00
Bath and North East Somerset Council,80820055,LM3,Residential Care,P11,"Adult Care, Health & Wellbeing",CEDAR CARE HOMES LTD,07/01/2019,1517.02
Bath and North East Somerset Council,10892285,LJ4,Contracts,P18,Transport & Environment,ROMAN CONTRACTS (BATH) LTD,07/01/2019,1519.50
Bath and North East Somerset Council,80820055,LM3,Residential Care,P11,"Adult Care, Health & Wellbeing",CEDAR CARE HOMES LTD,07/01/2019,1524.00
Bath and North East Somerset Council,80820025,LM6,Nursing Care,P11,"Adult Care, Health & Wellbeing",LARKHALL SPRINGS NURSING HOME,07/01/2019,1529.90
Bath and North East Somerset Council,80819822,LL8,Individualised Budget,P11,"Adult Care, Health & Wellbeing",REDACTED,07/01/2019,1531.18
Bath and North East Somerset Council,80819708,LL8,Individualised Budget,P11,"Adult Care, Health & Wellbeing",REDACTED,07/01/2019,1532.44
Bath and North East Somerset Council,80819537,LL8,Individualised Budget,P11,"Adult Care, Health & Wellbeing",REDACTED,07/01/2019,1533.20
Bath and North East Somerset Council,80820031,LM3,Residential Care,P11,"Adult Care, Health & Wellbeing",DIMENSIONS (UK) LTD,07/01/2019,1533.82
Bath and North East Somerset Council,80819788,LL8,Individualised Budget,P11,"Adult Care, Health & Wellbeing",REDACTED,07/01/2019,1535.96
Bath and North East Somerset Council,80820043,LM6,Nursing Care,P11,"Adult Care, Health & Wellbeing",CEDAR CARE HOMES LTD,07/01/2019,1540.00
Bath and North East Somerset Council,80820055,LM3,Residential Care,P11,"Adult Care, Health & Wellbeing",CEDAR CARE HOMES LTD,07/01/2019,1540.00
Bath and North East Somerset Council,80820055,LM3,Residential Care,P11,"Adult Care, Health & Wellbeing",CEDAR CARE HOMES LTD,07/01/2019,1540.00
Bath and North East Somerset Council,80820055,LM3,Residential Care,P11,"Adult Care, Health & Wellbeing",CEDAR CARE HOMES LTD,07/01/2019,1540.00
Bath and North East Somerset Council,80820055,LM3,Residential Care,P11,"Adult Care, Health & Wellbeing",CEDAR CARE HOMES LTD,07/01/2019,1540.00
Bath and North East Somerset Council,80820055,LM3,Residential Care,P11,"Adult Care, Health & Wellbeing",CEDAR CARE HOMES LTD,07/01/2019,1540.00
Bath and North East Somerset Council,80820055,LM3,Residential Care,P11,"Adult Care, Health & Wellbeing",CEDAR CARE HOMES LTD,07/01/2019,1540.00
Bath and North East Somerset Council,80820055,LM3,Residential Care,P11,"Adult Care, Health & Wellbeing",CEDAR CARE HOMES LTD,07/01/2019,1540.00
Bath and North East Somerset Council,80820055,LM3,Residential Care,P11,"Adult Care, Health & Wellbeing",CEDAR CARE HOMES LTD,07/01/2019,1540.00
Bath and North East Somerset Council,80820055,LM3,Residential Care,P11,"Adult Care, Health & Wellbeing",CEDAR CARE HOMES LTD,07/01/2019,1540.00
Bath and North East Somerset Council,80819979,LM3,Residential Care,P11,"Adult Care, Health & Wellbeing",ST RONAN'S CARE HOME,07/01/2019,1540.00
Bath and North East Somerset Council,80819957,LM3,Residential Care,P11,"Adult Care, Health & Wellbeing",LAUDCARE LTD,07/01/2019,1544.00
Bath and North East Somerset Council,80820024,LM6,Nursing Care,P11,"Adult Care, Health & Wellbeing",BARCHESTER HEALTHCARE HOMES LTD,07/01/2019,1546.40
Bath and North East Somerset Council,80820025,LM6,Nursing Care,P11,"Adult Care, Health & Wellbeing",LARKHALL SPRINGS NURSING HOME,07/01/2019,1546.40
Bath and North East Somerset Council,80820030,LM3,Residential Care,P11,"Adult Care, Health & Wellbeing",METHODIST HOMES FOR THE AGED,07/01/2019,1550.00
Bath and North East Somerset Council,80820030,LM3,Residential Care,P11,"Adult Care, Health & Wellbeing",METHODIST HOMES FOR THE AGED,07/01/2019,1550.00
Bath and North East Somerset Council,80820060,LL3,Supported Living,P11,"Adult Care, Health & Wellbeing",DIMENSIONS (UK) LTD,07/01/2019,1550.36
Bath and North East Somerset Council,80819981,LM6,Nursing Care,P11,"Adult Care, Health & Wellbeing",HALLMARK CARE HOMES (BRIGHTON) LTD,07/01/2019,1559.90
Bath and North East Somerset Council,80820053,LM3,Residential Care,P11,"Adult Care, Health & Wellbeing",ORIEL LODGE LIMITED,07/01/2019,1560.00
Bath and North East Somerset Council,80820053,LM3,Residential Care,P11,"Adult Care, Health & Wellbeing",ORIEL LODGE LIMITED,07/01/2019,1560.00
Bath and North East Somerset Council,80820044,LM3,Residential Care,P11,"Adult Care, Health & Wellbeing",SPRINGFIELD BATH LTD,07/01/2019,1561.46
Bath and North East Somerset Council,80820039,LM6,Nursing Care,P11,"Adult Care, Health & Wellbeing",BARKER CHEMICALS LTD T/A ST TERESA'S NH,07/01/2019,1561.68
Bath and North East Somerset Council,80820039,LM6,Nursing Care,P11,"Adult Care, Health & Wellbeing",BARKER CHEMICALS LTD T/A ST TERESA'S NH,07/01/2019,1561.68
Bath and North East Somerset Council,80820044,LM3,Residential Care,P11,"Adult Care, Health & Wellbeing",SPRINGFIELD BATH LTD,07/01/2019,1564.00
Bath and North East Somerset Council,80819610,LL8,Individualised Budget,P11,"Adult Care, Health & Wellbeing",REDACTED,07/01/2019,1567.56
Bath and North East Somerset Council,10891670,3E5,PCB IT Hardware,P10,Finance & Efficiency,MAINTEL EUROPE LTD,07/01/2019,1568.76
Bath and North East Somerset Council,80819603,LL8,Individualised Budget,P11,"Adult Care, Health & Wellbeing",REDACTED,07/01/2019,1571.60
